Body Name,Body,Service Area Catergorisation,Service Division Catergorisation,Responsible Unit,Expenses Type,Detailed Expenses Type,Expenses Code,Date,Transaction Number,Amount,Capital / Revenue,Supplier Name,Supplier ID
North East Lincolnshire Council,http://statistics.data.gov.uk/id/local-authority/00FC),Economy And Growth,Regeneration,Clee Hlf Townscape Heritage,Cap Land/Build-Build Enh Wrk,Cap Land/Build-Build Enh Wrk,YA102,22/10/2021,971726,13017,CAPITAL,REDACTED PERSONAL INFORMATION,REDACTED PERSONAL INFORMATION
North East Lincolnshire Council,http://statistics.data.gov.uk/id/local-authority/00FC),Economy And Growth,Regeneration,Clee Hlf Townscape Heritage,Cap Land/Build-Prof Fees,Cap Land/Build-Prof Fees,YA103,07/10/2021,693156,34453,CAPITAL,CONTROL PANELS AND INSTALLATIONS LTD,148754
North East Lincolnshire Council,http://statistics.data.gov.uk/id/local-authority/00FC),Economy And Growth,Regeneration,Clee Hlf Townscape Heritage,Cap Land/Build-Prof Fees,Cap Land/Build-Prof Fees,YA103,07/10/2021,693158,4034.26,CAPITAL,ROYAL AIR FORCES ASSOCIATION,110620
North East Lincolnshire Council,http://statistics.data.gov.uk/id/local-authority/00FC),Economy And Growth,Regeneration,Shiip Scheme,Cap Infrastr-Build Enh Wrk,Cap Infrastr-Build Enh Wrk,YC102,15/10/2021,693718,900,CAPITAL,ONEWAY TM LIMITED,128602
North East Lincolnshire Council,http://statistics.data.gov.uk/id/local-authority/00FC),Economy And Growth,Regeneration,Shiip Scheme,Cap Infrastr-Build Enh Wrk,Cap Infrastr-Build Enh Wrk,YC102,15/10/2021,693717,450,CAPITAL,ONEWAY TM LIMITED,128602
North East Lincolnshire Council,http://statistics.data.gov.uk/id/local-authority/00FC),Economy And Growth,Regeneration,Shiip Scheme,Cap Infrastr-Build Enh Wrk,Cap Infrastr-Build Enh Wrk,YC102,14/10/2021,694285,11236.72,CAPITAL,INTEGRATED UTILITY SERVICES,104162
North East Lincolnshire Council,http://statistics.data.gov.uk/id/local-authority/00FC),Economy And Growth,Regeneration,Shiip Scheme,Cap Infrastr-Prof Fees,Cap Infrastr-Prof Fees,YC103,22/10/2021,695571,2173.5,CAPITAL,BROWNE JACOBSON LLP,111781
North East Lincolnshire Council,http://statistics.data.gov.uk/id/local-authority/00FC),Economy And Growth,Regeneration,Shiip Scheme,Cap Infrastr-Prof Fees,Cap Infrastr-Prof Fees,YC103,22/10/2021,695573,1881.5,CAPITAL,BROWNE JACOBSON LLP,111781
North East Lincolnshire Council,http://statistics.data.gov.uk/id/local-authority/00FC),Economy And Growth,Regeneration,Shiip Scheme,Cap Infrastr-Build Enh Wrk,Cap Infrastr-Build Enh Wrk,YC102,01/10/2021,692375,9318,CAPITAL,GOWN ENGINEERING LTD,148800
North East Lincolnshire Council,http://statistics.data.gov.uk/id/local-authority/00FC),Economy And Growth,Regeneration,Shiip Scheme,Cap Infrastr-Prof Fees,Cap Infrastr-Prof Fees,YC103,05/10/2021,692763,17160,CAPITAL,ROGER WARDLE,147975
North East Lincolnshire Council,http://statistics.data.gov.uk/id/local-authority/00FC),Economy And Growth,Regeneration,Shiip Scheme,Cap Infrastr-Build Enh Wrk,Cap Infrastr-Build Enh Wrk,YC102,18/10/2021,693529,2252,CAPITAL,J MCCANN & CO LTD,100841
North East Lincolnshire Council,http://statistics.data.gov.uk/id/local-authority/00FC),Economy And Growth,Regeneration,Unlocking The Potential,Cap Infrastr-Build Enh Wrk,Cap Infrastr-Build Enh Wrk,YC102,29/10/2021,695896,4062.5,CAPITAL,ALAN WOOD PARTNERSHIP LTD,101760
North East Lincolnshire Council,http://statistics.data.gov.uk/id/local-authority/00FC),Economy And Growth,Regeneration,Unlocking The Potential,Cap Infrastr-Build Enh Wrk,Cap Infrastr-Build Enh Wrk,YC102,13/10/2021,687812,1100.76,CAPITAL,J MCCANN & CO LTD,100841
North East Lincolnshire Council,http://statistics.data.gov.uk/id/local-authority/00FC),Economy And Growth,Regeneration,Unlocking The Potential,Cap Infrastr-Prof Fees,Cap Infrastr-Prof Fees,YC103,11/10/2021,693483,21428.57,CAPITAL,ENGIE SERVICES LTD,133267
North East Lincolnshire Council,http://statistics.data.gov.uk/id/local-authority/00FC),Economy And Growth,Regeneration,Unlocking The Potential,Cap Infrastr-Build Enh Wrk,Cap Infrastr-Build Enh Wrk,YC102,01/10/2021,692524,10040.92,CAPITAL,C R REYNOLDS (CONSTRUCTION) LTD,103021
North East Lincolnshire Council,http://statistics.data.gov.uk/id/local-authority/00FC),Economy And Growth,Regeneration,Cleethorpes Public Art,Cap Infrastr-Prof Fees,Cap Infrastr-Prof Fees,YC103,14/10/2021,694286,82846.9,CAPITAL,THE LIGHT LAB,144607
North East Lincolnshire Council,http://statistics.data.gov.uk/id/local-authority/00FC),Economy And Growth,Regeneration,Cleethorpes Public Art,Cap Infrastr-Prof Fees,Cap Infrastr-Prof Fees,YC103,11/10/2021,693523,26800,CAPITAL,J MCCANN & CO LTD,100841
North East Lincolnshire Council,http://statistics.data.gov.uk/id/local-authority/00FC),Economy And Growth,Regeneration,Cdf - Open For Culture,Cap Land/Build-Build Enh Wrk,Cap Land/Build-Build Enh Wrk,YA102,29/10/2021,680841,11047,CAPITAL,BLACKROW ENGINEERING  LTD,111748
North East Lincolnshire Council,http://statistics.data.gov.uk/id/local-authority/00FC),Economy And Growth,Regeneration,Cdf - Open For Culture,Cap Land/Build-Build Enh Wrk,Cap Land/Build-Build Enh Wrk,YA102,29/10/2021,696263,16499,CAPITAL,BLACKROW ENGINEERING  LTD,111748
North East Lincolnshire Council,http://statistics.data.gov.uk/id/local-authority/00FC),Economy And Growth,Regeneration,Cdf - Open For Culture,Cap Veh Plt Eqp-Purchase,Cap Veh Plt Eqp-Purchase,YB101,25/10/2021,695644,480,CAPITAL,URBIS SCHREDER LIMITED,149904
North East Lincolnshire Council,http://statistics.data.gov.uk/id/local-authority/00FC),Economy And Growth,Regeneration,Cdf - Open For Culture,Cap Veh Plt Eqp-Purchase,Cap Veh Plt Eqp-Purchase,YB101,19/10/2021,694765,480,CAPITAL,URBIS SCHREDER LIMITED,149904
North East Lincolnshire Council,http://statistics.data.gov.uk/id/local-authority/00FC),Economy And Growth,Regeneration,Cdf - Open For Culture,Cap Infrastr-Build Enh Wrk,Cap Infrastr-Build Enh Wrk,YC102,01/10/2021,682473,3928.98,CAPITAL,PEARCE SOUND & LIGHTING LTD,148750
North East Lincolnshire Council,http://statistics.data.gov.uk/id/local-authority/00FC),Economy And Growth,Regeneration,Future High Street Funds,Cap Land/Build-Prof Fees,Cap Land/Build-Prof Fees,YA103,18/10/2021,694860,39500,CAPITAL,MONTAGU EVANS LLP,145979
North East Lincolnshire Council,http://statistics.data.gov.uk/id/local-authority/00FC),Economy And Growth,Regeneration,Future High Street Funds,Cap Land/Build-Prof Fees,Cap Land/Build-Prof Fees,YA103,18/10/2021,690731,3500,CAPITAL,QUARTERBRIDGE PROJECT MANAGEMENT LTD,149463
North East Lincolnshire Council,http://statistics.data.gov.uk/id/local-authority/00FC),Economy And Growth,Regeneration,Future High Street Funds,Cap Land/Build-Prof Fees,Cap Land/Build-Prof Fees,YA103,11/10/2021,693747,7415.5,CAPITAL,FREETHS LLP,149375
North East Lincolnshire Council,http://statistics.data.gov.uk/id/local-authority/00FC),Economy And Growth,Regeneration,Towns Fund,Cap Land/Build-Prof Fees,Cap Land/Build-Prof Fees,YA103,18/10/2021,694827,1250,CAPITAL,BROWNE JACOBSON LLP,111781
North East Lincolnshire Council,http://statistics.data.gov.uk/id/local-authority/00FC),Economy And Growth,Housing Highways And Transport,Local Transport Plan Schemes,Cap Infrastr-Build Enh Wrk,Cap Infrastr-Build Enh Wrk,YC102,05/10/2021,692660,5600,CAPITAL,TRANPORT INITIATIVES,149382
North East Lincolnshire Council,http://statistics.data.gov.uk/id/local-authority/00FC),Economy And Growth,Housing Highways And Transport,Local Transport Plan Schemes,Cap Infrastr-Build Enh Wrk,Cap Infrastr-Build Enh Wrk,YC102,07/10/2021,693188,450,CAPITAL,ONEWAY TM LIMITED,128602
North East Lincolnshire Council,http://statistics.data.gov.uk/id/local-authority/00FC),Economy And Growth,Housing Highways And Transport,Local Transport Plan Schemes,Cap Infrastr-Build Enh Wrk,Cap Infrastr-Build Enh Wrk,YC102,08/10/2021,688659,525,CAPITAL,JAPANESE KNOTWEED SOLUTIONS LTD,127717
North East Lincolnshire Council,http://statistics.data.gov.uk/id/local-authority/00FC),Economy And Growth,Housing Highways And Transport,Local Transport Plan Schemes,Cap Land/Build-Build Enh Wrk,Cap Land/Build-Build Enh Wrk,YA102,22/10/2021,695478,15467.56,CAPITAL,J MCCANN & CO LTD,100841
North East Lincolnshire Council,http://statistics.data.gov.uk/id/local-authority/00FC),Economy And Growth,Housing Highways And Transport,Local Transport Plan Schemes,Cap Land/Build-Build Enh Wrk,Cap Land/Build-Build Enh Wrk,YA102,11/10/2021,693531,18129.12,CAPITAL,J MCCANN & CO LTD,100841
North East Lincolnshire Council,http://statistics.data.gov.uk/id/local-authority/00FC),Economy And Growth,Housing Highways And Transport,Local Transport Plan Schemes,Cap Land/Build-Build Enh Wrk,Cap Land/Build-Build Enh Wrk,YA102,11/10/2021,693528,10248.9,CAPITAL,J MCCANN & CO LTD,100841
North East Lincolnshire Council,http://statistics.data.gov.uk/id/local-authority/00FC),Economy And Growth,Housing Highways And Transport,Local Transport Plan Schemes,Cap Land/Build-Build Enh Wrk,Cap Land/Build-Build Enh Wrk,YA102,19/10/2021,694941,9315.35,CAPITAL,J MCCANN & CO LTD,100841
North East Lincolnshire Council,http://statistics.data.gov.uk/id/local-authority/00FC),Economy And Growth,Housing Highways And Transport,Local Transport Plan Schemes,Cap Land/Build-Build Enh Wrk,Cap Land/Build-Build Enh Wrk,YA102,19/10/2021,694940,35359.18,CAPITAL,J MCCANN & CO LTD,100841
North East Lincolnshire Council,http://statistics.data.gov.uk/id/local-authority/00FC),Economy And Growth,Housing Highways And Transport,Local Transport Plan Schemes,Cap Infrastr-Build Enh Wrk,Cap Infrastr-Build Enh Wrk,YC102,07/10/2021,693013,2438.4,CAPITAL,CGC ECOLOGY LTD,142378
North East Lincolnshire Council,http://statistics.data.gov.uk/id/local-authority/00FC),Economy And Growth,Housing Highways And Transport,Local Transport Plan Schemes,Cap Infrastr-Build Enh Wrk,Cap Infrastr-Build Enh Wrk,YC102,15/10/2021,693704,2075.56,CAPITAL,CGC ECOLOGY LTD,142378
North East Lincolnshire Council,http://statistics.data.gov.uk/id/local-authority/00FC),Economy And Growth,Housing Highways And Transport,Local Transport Plan Schemes,Cap Infrastr-Prof Fees,Cap Infrastr-Prof Fees,YC103,12/10/2021,693670,795,CAPITAL,DELTA-SIMONS ENVIRONMENTAL CONSULTANTS LTD,122455
North East Lincolnshire Council,http://statistics.data.gov.uk/id/local-authority/00FC),Economy And Growth,Housing Highways And Transport,Local Transport Plan Schemes,Cap Infrastr-Prof Fees,Cap Infrastr-Prof Fees,YC103,12/10/2021,687566,12352.5,CAPITAL,PELL FRISCHMANN CONSULTANTS LTD,100880
North East Lincolnshire Council,http://statistics.data.gov.uk/id/local-authority/00FC),Economy And Growth,Housing Highways And Transport,Local Transport Plan Schemes,Cap Infrastr-Prof Fees,Cap Infrastr-Prof Fees,YC103,12/10/2021,689360,8235,CAPITAL,PELL FRISCHMANN CONSULTANTS LTD,100880
North East Lincolnshire Council,http://statistics.data.gov.uk/id/local-authority/00FC),Economy And Growth,Housing Highways And Transport,Local Transport Plan Schemes,Cap Infrastr-Prof Fees,Cap Infrastr-Prof Fees,YC103,28/10/2021,696294,500,CAPITAL,DELTA-SIMONS ENVIRONMENTAL CONSULTANTS LTD,122455
North East Lincolnshire Council,http://statistics.data.gov.uk/id/local-authority/00FC),Economy And Growth,Housing Highways And Transport,Local Transport Plan Schemes,Cap Infrastr-Purchase,Cap Infrastr-Purchase,YC101,20/10/2021,692170,12203.56,CAPITAL,R2P UK SYSTEMS LTD,124772
North East Lincolnshire Council,http://statistics.data.gov.uk/id/local-authority/00FC),Economy And Growth,Housing Highways And Transport,Local Transport Plan Schemes,Cap Infrastr-Build Enh Wrk,Cap Infrastr-Build Enh Wrk,YC102,11/10/2021,693470,2923.2,CAPITAL,KIELY BROS LTD,106644
North East Lincolnshire Council,http://statistics.data.gov.uk/id/local-authority/00FC),Economy And Growth,Housing Highways And Transport,Local Transport Plan Schemes,Cap Infrastr-Build Enh Wrk,Cap Infrastr-Build Enh Wrk,YC102,22/10/2021,695603,11503.5,CAPITAL,KCOM,121096
North East Lincolnshire Council,http://statistics.data.gov.uk/id/local-authority/00FC),Economy And Growth,Housing Highways And Transport,Local Transport Plan Schemes,Cap Infrastr-Build Enh Wrk,Cap Infrastr-Build Enh Wrk,YC102,21/10/2021,694976,2396.16,CAPITAL,BRITISH TELECOMMUNICATIONS PLC,100974
North East Lincolnshire Council,http://statistics.data.gov.uk/id/local-authority/00FC),Economy And Growth,Housing Highways And Transport,Local Transport Plan Schemes,Cap Land/Build-Build Enh Wrk,Cap Land/Build-Build Enh Wrk,YA102,01/10/2021,692122,10380,CAPITAL,MORELOCK SIGNS LTD,100920
North East Lincolnshire Council,http://statistics.data.gov.uk/id/local-authority/00FC),Economy And Growth,Housing Highways And Transport,Local Transport Plan Schemes,Cap Infrastr-Prof Fees,Cap Infrastr-Prof Fees,YC103,19/10/2021,695241,6840,CAPITAL,ENGIE SERVICES LTD,133267
North East Lincolnshire Council,http://statistics.data.gov.uk/id/local-authority/00FC),Economy And Growth,Housing Highways And Transport,Housing Assist Grants And Loan,Cap Grants To O/Side Sources,Cap Grants To O/Side Sources,YJ101,04/10/2021,692626,543.89,CAPITAL,PACIFICA GROUP,149391
North East Lincolnshire Council,http://statistics.data.gov.uk/id/local-authority/00FC),Economy And Growth,Housing Highways And Transport,Housing Assist Grants And Loan,Cap Grants To O/Side Sources,Cap Grants To O/Side Sources,YJ101,08/10/2021,693223,1135.54,CAPITAL,PACIFICA GROUP,149391
North East Lincolnshire Council,http://statistics.data.gov.uk/id/local-authority/00FC),Economy And Growth,Housing Highways And Transport,Housing Assist Grants And Loan,Cap Grants To O/Side Sources,Cap Grants To O/Side Sources,YJ101,07/10/2021,693249,1409.34,CAPITAL,YES ENERGY SOLUTIONS,138575
North East Lincolnshire Council,http://statistics.data.gov.uk/id/local-authority/00FC),Economy And Growth,Housing Highways And Transport,Housing Assist Grants And Loan,Cap Grants To O/Side Sources,Cap Grants To O/Side Sources,YJ101,18/10/2021,694763,350,CAPITAL,JACKSON GREEN & PRESTON,111045
North East Lincolnshire Council,http://statistics.data.gov.uk/id/local-authority/00FC),Economy And Growth,Housing Highways And Transport,Housing Assist Grants And Loan,Cap Grants To O/Side Sources,Cap Grants To O/Side Sources,YJ101,12/10/2021,693532,2850,CAPITAL,EAST MARSH CONSTRUCTION CIC,146757
North East Lincolnshire Council,http://statistics.data.gov.uk/id/local-authority/00FC),Economy And Growth,Housing Highways And Transport,Housing Assist Grants And Loan,Cap Grants To O/Side Sources,Cap Grants To O/Side Sources,YJ101,28/10/2021,696359,1355.17,CAPITAL,EMPOWER EMPLOYABILITY MENTORING PROGRAMME,118831
North East Lincolnshire Council,http://statistics.data.gov.uk/id/local-authority/00FC),Economy And Growth,Housing Highways And Transport,Affordable Housing (S106),Cap Land/Build-Prof Fees,Cap Land/Build-Prof Fees,YA103,01/10/2021,692520,125000,CAPITAL,GRIMSBY CLEETHORPES & HUMBER REGION YMCA,100305
North East Lincolnshire Council,http://statistics.data.gov.uk/id/local-authority/00FC),Economy And Growth,Housing Highways And Transport,Gllep Junction Improvement,Cap Infrastr-Purchase,Cap Infrastr-Purchase,YC101,22/10/2021,683360,139604.38,CAPITAL,PBS CONSTRUCTION (NORTH EAST) LTD,127459
North East Lincolnshire Council,http://statistics.data.gov.uk/id/local-authority/00FC),Economy And Growth,Housing Highways And Transport,Willingham / Peaks Drainage,Cap Land/Build-Prof Fees,Cap Land/Build-Prof Fees,YA103,11/10/2021,693624,5080,CAPITAL,ALLIANCE GROUP SOLUTIONS LTD,146115
North East Lincolnshire Council,http://statistics.data.gov.uk/id/local-authority/00FC),Economy And Growth,Housing Highways And Transport,Willingham / Peaks Drainage,Cap Land/Build-Prof Fees,Cap Land/Build-Prof Fees,YA103,25/10/2021,695760,2006.55,CAPITAL,PBS CONSTRUCTION (NORTH EAST) LTD,127459
North East Lincolnshire Council,http://statistics.data.gov.uk/id/local-authority/00FC),Economy And Growth,Housing Highways And Transport,Willingham / Peaks Drainage,Cap Land/Build-Prof Fees,Cap Land/Build-Prof Fees,YA103,19/10/2021,694885,63811.42,CAPITAL,WHITEHOUSE CONSTRUCTION CO LTD,148500
North East Lincolnshire Council,http://statistics.data.gov.uk/id/local-authority/00FC),Economy And Growth,Housing Highways And Transport,Accelerated Cons Funding,Cap Infrastr-Build Enh Wrk,Cap Infrastr-Build Enh Wrk,YC102,01/10/2021,692525,24565.13,CAPITAL,C R REYNOLDS (CONSTRUCTION) LTD,103021
North East Lincolnshire Council,http://statistics.data.gov.uk/id/local-authority/00FC),Economy And Growth,Housing Highways And Transport,Accelerated Cons Funding,Cap Infrastr-Build Enh Wrk,Cap Infrastr-Build Enh Wrk,YC102,25/10/2021,695761,256333.06,CAPITAL,C R REYNOLDS (CONSTRUCTION) LTD,103021
North East Lincolnshire Council,http://statistics.data.gov.uk/id/local-authority/00FC),Economy And Growth,Housing Highways And Transport,Accelerated Cons Funding,Cap Infrastr-Build Enh Wrk,Cap Infrastr-Build Enh Wrk,YC102,04/10/2021,692373,67590.76,CAPITAL,CADENT GAS LIMITED,138392
North East Lincolnshire Council,http://statistics.data.gov.uk/id/local-authority/00FC),Economy And Growth,Housing Highways And Transport,Accelerated Cons Funding,Cap Infrastr-Build Enh Wrk,Cap Infrastr-Build Enh Wrk,YC102,04/10/2021,692373,13518.15,CAPITAL,CADENT GAS LIMITED,138392
North East Lincolnshire Council,http://statistics.data.gov.uk/id/local-authority/00FC),Economy And Growth,Housing Highways And Transport,Accelerated Cons Funding,Cap Infrastr-Build Enh Wrk,Cap Infrastr-Build Enh Wrk,YC102,28/10/2021,696354,565.5,CAPITAL,ONEWAY TM LIMITED,128602
North East Lincolnshire Council,http://statistics.data.gov.uk/id/local-authority/00FC),Economy And Growth,Housing Highways And Transport,Accelerated Cons Funding,Cap Infrastr-Build Enh Wrk,Cap Infrastr-Build Enh Wrk,YC102,28/10/2021,696355,680.6,CAPITAL,ONEWAY TM LIMITED,128602
North East Lincolnshire Council,http://statistics.data.gov.uk/id/local-authority/00FC),Economy And Growth,Housing Highways And Transport,Accelerated Cons Funding,Cap Infrastr-Build Enh Wrk,Cap Infrastr-Build Enh Wrk,YC102,28/10/2021,696356,691.6,CAPITAL,ONEWAY TM LIMITED,128602
North East Lincolnshire Council,http://statistics.data.gov.uk/id/local-authority/00FC),Economy And Growth,Housing Highways And Transport,Accelerated Cons Funding,Cap Land/Build-Build Enh Wrk,Cap Land/Build-Build Enh Wrk,YA102,25/10/2021,695656,1950,CAPITAL,DELTA-SIMONS ENVIRONMENTAL CONSULTANTS LTD,122455
North East Lincolnshire Council,http://statistics.data.gov.uk/id/local-authority/00FC),Economy And Growth,Housing Highways And Transport,Accelerated Cons Funding,Cap Land/Build-Prof Fees,Cap Land/Build-Prof Fees,YA103,19/10/2021,694958,3000,CAPITAL,ENGIE SERVICES LTD,133267
North East Lincolnshire Council,http://statistics.data.gov.uk/id/local-authority/00FC),Economy And Growth,Housing Highways And Transport,Accelerated Cons Funding,Cap Land/Build-Prof Fees,Cap Land/Build-Prof Fees,YA103,20/10/2021,694972,3000,CAPITAL,ENGIE SERVICES LTD,133267
North East Lincolnshire Council,http://statistics.data.gov.uk/id/local-authority/00FC),Economy And Growth,Housing Highways And Transport,Corporation Rd Bridge Refurb,Cap Land/Build-Build Enh Wrk,Cap Land/Build-Build Enh Wrk,YA102,04/10/2021,692490,7500,CAPITAL,ALAN WOOD PARTNERSHIP LTD,101760
North East Lincolnshire Council,http://statistics.data.gov.uk/id/local-authority/00FC),Economy And Growth,Housing Highways And Transport,Corporation Rd Bridge Refurb,Cap Land/Build-Build Enh Wrk,Cap Land/Build-Build Enh Wrk,YA102,11/10/2021,693530,3497,CAPITAL,J MCCANN & CO LTD,100841
North East Lincolnshire Council,http://statistics.data.gov.uk/id/local-authority/00FC),Economy And Growth,Housing Highways And Transport,Corporation Rd Bridge Refurb,Cap Land/Build-Build Enh Wrk,Cap Land/Build-Build Enh Wrk,YA102,13/10/2021,693719,1310,CAPITAL,ONEWAY TM LIMITED,128602
North East Lincolnshire Council,http://statistics.data.gov.uk/id/local-authority/00FC),Economy And Growth,Housing Highways And Transport,Corporation Rd Bridge Refurb,Cap Land/Build-Build Enh Wrk,Cap Land/Build-Build Enh Wrk,YA102,08/10/2021,690722,5750,CAPITAL,LANDSCOPE ENGINEERING LTD,149401
North East Lincolnshire Council,http://statistics.data.gov.uk/id/local-authority/00FC),Economy And Growth,Housing Highways And Transport,Corporation Rd Bridge Refurb,Cap Infrastr-Build Enh Wrk,Cap Infrastr-Build Enh Wrk,YC102,26/10/2021,695305,5400,CAPITAL,ENGIE SERVICES LTD,133267
North East Lincolnshire Council,http://statistics.data.gov.uk/id/local-authority/00FC),Economy And Growth,Housing Highways And Transport,Corporation Rd Bridge Refurb,Cap Infrastr-Build Enh Wrk,Cap Infrastr-Build Enh Wrk,YC102,12/10/2021,693806,9500,CAPITAL,ENGIE SERVICES LTD,133267
North East Lincolnshire Council,http://statistics.data.gov.uk/id/local-authority/00FC),Economy And Growth,Housing Highways And Transport,Corporation Rd Bridge Refurb,Cap Infrastr-Build Enh Wrk,Cap Infrastr-Build Enh Wrk,YC102,19/10/2021,694362,7000,CAPITAL,ONEWAY TM LIMITED,128602
North East Lincolnshire Council,http://statistics.data.gov.uk/id/local-authority/00FC),Economy And Growth,Housing Highways And Transport,Corporation Rd Bridge Refurb,Cap Infrastr-Build Enh Wrk,Cap Infrastr-Build Enh Wrk,YC102,13/10/2021,693824,1400,CAPITAL,ONEWAY TM LIMITED,128602
North East Lincolnshire Council,http://statistics.data.gov.uk/id/local-authority/00FC),Economy And Growth,Housing Highways And Transport,Grimsby-Immingham Ext Cycleway,Cap Infrastr-Build Enh Wrk,Cap Infrastr-Build Enh Wrk,YC102,18/10/2021,693128,224183.47,CAPITAL,C R REYNOLDS (CONSTRUCTION) LTD,103021
North East Lincolnshire Council,http://statistics.data.gov.uk/id/local-authority/00FC),Economy And Growth,Housing Highways And Transport,Grimsby-Immingham Ext Cycleway,Cap Infrastr-Build Enh Wrk,Cap Infrastr-Build Enh Wrk,YC102,08/10/2021,693108,6200,CAPITAL,ONEWAY TM LIMITED,128602
North East Lincolnshire Council,http://statistics.data.gov.uk/id/local-authority/00FC),Economy And Growth,Housing Highways And Transport,Grimsby-Immingham Ext Cycleway,Cap Infrastr-Build Enh Wrk,Cap Infrastr-Build Enh Wrk,YC102,28/10/2021,696490,2556.89,CAPITAL,SOUTHAM SERVICES (LINCS) LTD,140951
North East Lincolnshire Council,http://statistics.data.gov.uk/id/local-authority/00FC),Economy And Growth,Housing Highways And Transport,Grimsby-Immingham Ext Cycleway,Cap Infrastr-Build Enh Wrk,Cap Infrastr-Build Enh Wrk,YC102,11/10/2021,693528,3172.57,CAPITAL,J MCCANN & CO LTD,100841
North East Lincolnshire Council,http://statistics.data.gov.uk/id/local-authority/00FC),Resources,Law Governance And Assets,Backlog Maintenance,Cap Land/Build-Prof Fees,Cap Land/Build-Prof Fees,YA103,21/10/2021,695285,570,CAPITAL,ENGIE SERVICES LTD,133267
North East Lincolnshire Council,http://statistics.data.gov.uk/id/local-authority/00FC),Resources,Law Governance And Assets,Backlog Maintenance,Cap Land/Build-Build Enh Wrk,Cap Land/Build-Build Enh Wrk,YA102,26/10/2021,695634,5715,CAPITAL,FOOD SECTOR CONSTRUCTION LTD,150011
North East Lincolnshire Council,http://statistics.data.gov.uk/id/local-authority/00FC),Resources,Law Governance And Assets,Backlog Maintenance,Cap Land/Build-Build Enh Wrk,Cap Land/Build-Build Enh Wrk,YA102,20/10/2021,695197,846.08,CAPITAL,MOBILE MINI UK LTD,105081
North East Lincolnshire Council,http://statistics.data.gov.uk/id/local-authority/00FC),Resources,Law Governance And Assets,Backlog Maintenance,Cap Land/Build-Build Enh Wrk,Cap Land/Build-Build Enh Wrk,YA102,28/10/2021,696330,8786.76,CAPITAL,ENGIE SERVICES LTD,133267
North East Lincolnshire Council,http://statistics.data.gov.uk/id/local-authority/00FC),Resources,Law Governance And Assets,Backlog Maintenance,Cap Land/Build-Build Enh Wrk,Cap Land/Build-Build Enh Wrk,YA102,28/10/2021,696328,297.5,CAPITAL,ENGIE SERVICES LTD,133267
North East Lincolnshire Council,http://statistics.data.gov.uk/id/local-authority/00FC),Resources,Law Governance And Assets,Backlog Maintenance,Cap Land/Build-Prof Fees,Cap Land/Build-Prof Fees,YA103,28/10/2021,696292,702,CAPITAL,ENGIE SERVICES LTD,133267
North East Lincolnshire Council,http://statistics.data.gov.uk/id/local-authority/00FC),Resources,Law Governance And Assets,Property Rationalisation Prog,Cap Land/Build-Build Enh Wrk,Cap Land/Build-Build Enh Wrk,YA102,11/10/2021,693731,808,CAPITAL,ELLGIA LIMITED,101433
North East Lincolnshire Council,http://statistics.data.gov.uk/id/local-authority/00FC),Resources,Law Governance And Assets,Property Rationalisation Prog,Cap Land/Build-Build Enh Wrk,Cap Land/Build-Build Enh Wrk,YA102,11/10/2021,693732,808,CAPITAL,ELLGIA LIMITED,101433
North East Lincolnshire Council,http://statistics.data.gov.uk/id/local-authority/00FC),Resources,Law Governance And Assets,Playing Pitch Reprovision,Cap Land/Build-Prof Fees,Cap Land/Build-Prof Fees,YA103,21/10/2021,695284,10000,CAPITAL,ENGIE SERVICES LTD,133267
North East Lincolnshire Council,http://statistics.data.gov.uk/id/local-authority/00FC),Resources,Policy Strategy And Resources,Ict Refresh,Cap Land/Build-Build Enh Wrk,Cap Land/Build-Build Enh Wrk,YA102,21/10/2021,695364,8456.7,CAPITAL,XMA LIMITED,100699
North East Lincolnshire Council,http://statistics.data.gov.uk/id/local-authority/00FC),Resources,Policy Strategy And Resources,Ict Refresh,Cap Land/Build-Build Enh Wrk,Cap Land/Build-Build Enh Wrk,YA102,26/10/2021,695757,500,CAPITAL,TOTAL COMPUTER NETWORKS LTD,141310
North East Lincolnshire Council,http://statistics.data.gov.uk/id/local-authority/00FC),Resources,Policy Strategy And Resources,Ict Refresh,Cap Intangible Assets,Cap Intangible Assets,YH101,11/10/2021,693598,450,CAPITAL,GAMMA BUSINESS COMMUNICATIONS LTD,108104
North East Lincolnshire Council,http://statistics.data.gov.uk/id/local-authority/00FC),Resources,Policy Strategy And Resources,System Investment,Cap Infrastr-Prof Fees,Cap Infrastr-Prof Fees,YC103,18/10/2021,694806,540,CAPITAL,MIDLAND SOFTWARE LTD,102633
North East Lincolnshire Council,http://statistics.data.gov.uk/id/local-authority/00FC),Resources,Policy Strategy And Resources,System Investment,Cap Intangible Assets,Cap Intangible Assets,YH101,26/10/2021,689056,58000,CAPITAL,ADVANCED BUSINESS SOLUTIONS,101614
North East Lincolnshire Council,http://statistics.data.gov.uk/id/local-authority/00FC),Environment,Environment,Fleet Replacement Programme,Cap Veh Plt Eqp-Purchase,Cap Veh Plt Eqp-Purchase,YB101,12/10/2021,693655,635,CAPITAL,SCARAB SWEEPERS LTD,148812
North East Lincolnshire Council,http://statistics.data.gov.uk/id/local-authority/00FC),Environment,Environment,Fleet Replacement Programme,Cap Veh Plt Eqp-Purchase,Cap Veh Plt Eqp-Purchase,YB101,12/10/2021,693653,635,CAPITAL,SCARAB SWEEPERS LTD,148812
North East Lincolnshire Council,http://statistics.data.gov.uk/id/local-authority/00FC),Environment,Environment,Fleet Replacement Programme,Cap Veh Plt Eqp-Purchase,Cap Veh Plt Eqp-Purchase,YB101,12/10/2021,693655,70444.87,CAPITAL,SCARAB SWEEPERS LTD,148812
North East Lincolnshire Council,http://statistics.data.gov.uk/id/local-authority/00FC),Environment,Environment,Fleet Replacement Programme,Cap Veh Plt Eqp-Purchase,Cap Veh Plt Eqp-Purchase,YB101,12/10/2021,693653,70444.87,CAPITAL,SCARAB SWEEPERS LTD,148812
North East Lincolnshire Council,http://statistics.data.gov.uk/id/local-authority/00FC),Environment,Environment,Fleet Replacement Programme,Cap Veh Plt Eqp-Purchase,Cap Veh Plt Eqp-Purchase,YB101,12/10/2021,693655,1208.13,CAPITAL,SCARAB SWEEPERS LTD,148812
North East Lincolnshire Council,http://statistics.data.gov.uk/id/local-authority/00FC),Environment,Environment,Fleet Replacement Programme,Cap Veh Plt Eqp-Purchase,Cap Veh Plt Eqp-Purchase,YB101,12/10/2021,693653,1208.13,CAPITAL,SCARAB SWEEPERS LTD,148812
North East Lincolnshire Council,http://statistics.data.gov.uk/id/local-authority/00FC),Environment,Environment,Fleet Replacement Programme,Cap Veh Plt Eqp-Purchase,Cap Veh Plt Eqp-Purchase,YB101,12/10/2021,693655,305,CAPITAL,SCARAB SWEEPERS LTD,148812
North East Lincolnshire Council,http://statistics.data.gov.uk/id/local-authority/00FC),Environment,Environment,Fleet Replacement Programme,Cap Veh Plt Eqp-Purchase,Cap Veh Plt Eqp-Purchase,YB101,12/10/2021,693653,305,CAPITAL,SCARAB SWEEPERS LTD,148812
North East Lincolnshire Council,http://statistics.data.gov.uk/id/local-authority/00FC),Environment,Environment,Fleet Replacement Programme,Cap Veh Plt Eqp-Purchase,Cap Veh Plt Eqp-Purchase,YB101,11/10/2021,691586,2381.46,CAPITAL,MIS CONVERSIONS LTD,149462
North East Lincolnshire Council,http://statistics.data.gov.uk/id/local-authority/00FC),Environment,Environment,Fleet Replacement Programme,Cap Veh Plt Eqp-Purchase,Cap Veh Plt Eqp-Purchase,YB101,11/10/2021,691588,2381.46,CAPITAL,MIS CONVERSIONS LTD,149462
North East Lincolnshire Council,http://statistics.data.gov.uk/id/local-authority/00FC),Environment,Environment,Fleet Replacement Programme,Cap Veh Plt Eqp-Purchase,Cap Veh Plt Eqp-Purchase,YB101,12/10/2021,691587,2381.46,CAPITAL,MIS CONVERSIONS LTD,149462
North East Lincolnshire Council,http://statistics.data.gov.uk/id/local-authority/00FC),Environment,Environment,Fleet Replacement Programme,Cap Veh Plt Eqp-Purchase,Cap Veh Plt Eqp-Purchase,YB101,12/10/2021,691589,1748.41,CAPITAL,MIS CONVERSIONS LTD,149462
North East Lincolnshire Council,http://statistics.data.gov.uk/id/local-authority/00FC),Environment,Environment,Fleet Replacement Programme,Cap Veh Plt Eqp-Purchase,Cap Veh Plt Eqp-Purchase,YB101,18/10/2021,694728,750,CAPITAL,CTRACK UK LTD,147152
North East Lincolnshire Council,http://statistics.data.gov.uk/id/local-authority/00FC),Environment,Environment,Fleet Replacement Programme,Cap Veh Plt Eqp-Purchase,Cap Veh Plt Eqp-Purchase,YB101,26/10/2021,695496,420,CAPITAL,SIGN OF THE TIMES,100575
North East Lincolnshire Council,http://statistics.data.gov.uk/id/local-authority/00FC),Environment,Environment,Enhancement Bereavement Serv,Cap Land/Build-Build Enh Wrk,Cap Land/Build-Build Enh Wrk,YA102,11/10/2021,693666,1000,CAPITAL,ENGIE SERVICES LTD,133267
North East Lincolnshire Council,http://statistics.data.gov.uk/id/local-authority/00FC),Environment,Environment,Depot Rationalisation,Cap Land/Build-Purchase,Cap Land/Build-Purchase,YA101,07/10/2021,693165,7500,CAPITAL,ENGIE SERVICES LTD,133267
North East Lincolnshire Council,http://statistics.data.gov.uk/id/local-authority/00FC),Environment,Environment,Depot Rationalisation,Cap Land/Build-Purchase,Cap Land/Build-Purchase,YA101,07/10/2021,693022,1212.8,CAPITAL,CLEVELAND CONTAINERS LTD,149901
North East Lincolnshire Council,http://statistics.data.gov.uk/id/local-authority/00FC),Environment,Environment,Depot Rationalisation,Cap Land/Build-Purchase,Cap Land/Build-Purchase,YA101,07/10/2021,693022,4240,CAPITAL,CLEVELAND CONTAINERS LTD,149901
North East Lincolnshire Council,http://statistics.data.gov.uk/id/local-authority/00FC),Environment,Environment,Depot Rationalisation,Cap Land/Build-Purchase,Cap Land/Build-Purchase,YA101,25/10/2021,695663,2120,CAPITAL,CLEVELAND CONTAINERS LTD,149901
North East Lincolnshire Council,http://statistics.data.gov.uk/id/local-authority/00FC),Environment,Environment,Depot Rationalisation,Cap Land/Build-Purchase,Cap Land/Build-Purchase,YA101,25/10/2021,695663,606.4,CAPITAL,CLEVELAND CONTAINERS LTD,149901
North East Lincolnshire Council,http://statistics.data.gov.uk/id/local-authority/00FC),Environment,Environment,Depot Rationalisation,Cap Land/Build-Purchase,Cap Land/Build-Purchase,YA101,13/10/2021,693778,285,CAPITAL,CLEVELAND CONTAINERS LTD,149901
North East Lincolnshire Council,http://statistics.data.gov.uk/id/local-authority/00FC),Environment,Environment,Depot Rationalisation,Cap Land/Build-Purchase,Cap Land/Build-Purchase,YA101,07/10/2021,693022,400,CAPITAL,CLEVELAND CONTAINERS LTD,149901
North East Lincolnshire Council,http://statistics.data.gov.uk/id/local-authority/00FC),Environment,Environment,Depot Rationalisation,Cap Land/Build-Purchase,Cap Land/Build-Purchase,YA101,07/10/2021,693022,1170.56,CAPITAL,CLEVELAND CONTAINERS LTD,149901
North East Lincolnshire Council,http://statistics.data.gov.uk/id/local-authority/00FC),Environment,Environment,Depot Rationalisation,Cap Land/Build-Purchase,Cap Land/Build-Purchase,YA101,25/10/2021,695663,585.28,CAPITAL,CLEVELAND CONTAINERS LTD,149901
North East Lincolnshire Council,http://statistics.data.gov.uk/id/local-authority/00FC),Environment,Environment,Depot Rationalisation,Cap Land/Build-Purchase,Cap Land/Build-Purchase,YA101,21/10/2021,695324,3400,CAPITAL,LOCAL TRANSPORT PROJECTS LTD,121248
North East Lincolnshire Council,http://statistics.data.gov.uk/id/local-authority/00FC),Environment,Environment,Resort Management,Cap Land/Build-Build Enh Wrk,Cap Land/Build-Build Enh Wrk,YA102,15/10/2021,693760,556.88,CAPITAL,MOBILE MINI UK LTD,105081
North East Lincolnshire Council,http://statistics.data.gov.uk/id/local-authority/00FC),Environment,Environment,Public Sector Decarbonisation,Cap Land/Build-Build Enh Wrk,Cap Land/Build-Build Enh Wrk,YA102,12/10/2021,693526,3725.23,CAPITAL,TOPCON BUILDING LTD,144162
North East Lincolnshire Council,http://statistics.data.gov.uk/id/local-authority/00FC),Environment,Environment,Public Sector Decarbonisation,Cap Land/Build-Build Enh Wrk,Cap Land/Build-Build Enh Wrk,YA102,11/10/2021,693525,71630.72,CAPITAL,TOPCON BUILDING LTD,144162
North East Lincolnshire Council,http://statistics.data.gov.uk/id/local-authority/00FC),Adult Services,Adult Services,Hps-Disabled Fac. Grants,Cap Grants To O/Side Sources,Cap Grants To O/Side Sources,YJ101,29/10/2021,696333,13703.39,CAPITAL,VIC HANSEN BUILDING & JOINERY LTD,103981
North East Lincolnshire Council,http://statistics.data.gov.uk/id/local-authority/00FC),Adult Services,Adult Services,Hps-Disabled Fac. Grants,Cap Grants To O/Side Sources,Cap Grants To O/Side Sources,YJ101,14/10/2021,693828,4514.46,CAPITAL,TSPRO LTD,146603
North East Lincolnshire Council,http://statistics.data.gov.uk/id/local-authority/00FC),Adult Services,Adult Services,Hps-Disabled Fac. Grants,Cap Grants To O/Side Sources,Cap Grants To O/Side Sources,YJ101,29/10/2021,696331,11980.56,CAPITAL,VIC HANSEN BUILDING & JOINERY LTD,103981
North East Lincolnshire Council,http://statistics.data.gov.uk/id/local-authority/00FC),Adult Services,Adult Services,Hps-Disabled Fac. Grants,Cap Grants To O/Side Sources,Cap Grants To O/Side Sources,YJ101,29/10/2021,696369,20141.19,CAPITAL,TSPRO LTD,146603
North East Lincolnshire Council,http://statistics.data.gov.uk/id/local-authority/00FC),Adult Services,Adult Services,Hps-Disabled Fac. Grants,Cap Grants To O/Side Sources,Cap Grants To O/Side Sources,YJ101,22/10/2021,695551,9634.13,CAPITAL,HOBSON & PORTER,101010
North East Lincolnshire Council,http://statistics.data.gov.uk/id/local-authority/00FC),Adult Services,Adult Services,Hps-Disabled Fac. Grants,Cap Grants To O/Side Sources,Cap Grants To O/Side Sources,YJ101,29/10/2021,696775,5819,CAPITAL,ENGIE SERVICES LTD,133267
North East Lincolnshire Council,http://statistics.data.gov.uk/id/local-authority/00FC),Adult Services,Adult Services,Hps-Disabled Fac. Grants,Cap Grants To O/Side Sources,Cap Grants To O/Side Sources,YJ101,21/10/2021,694960,4577.68,CAPITAL,ENGIE SERVICES LTD,133267
North East Lincolnshire Council,http://statistics.data.gov.uk/id/local-authority/00FC),Adult Services,Adult Services,Hps-Disabled Fac. Grants,Cap Grants To O/Side Sources,Cap Grants To O/Side Sources,YJ101,22/10/2021,695543,4310,CAPITAL,OBAM LIFT SERVICES LTD,112666
North East Lincolnshire Council,http://statistics.data.gov.uk/id/local-authority/00FC),Adult Services,Adult Services,Hps-Disabled Fac. Grants,Cap Grants To O/Side Sources,Cap Grants To O/Side Sources,YJ101,29/10/2021,696298,30187.89,CAPITAL,JC POMFRET CONSTRUCTION LTD,136453
North East Lincolnshire Council,http://statistics.data.gov.uk/id/local-authority/00FC),Adult Services,Adult Services,Hps-Disabled Fac. Grants,Cap Grants To O/Side Sources,Cap Grants To O/Side Sources,YJ101,22/10/2021,695588,1857.72,CAPITAL,DOLPHIN MOBILITY EAST MIDLANDS LTD,101317
North East Lincolnshire Council,http://statistics.data.gov.uk/id/local-authority/00FC),Adult Services,Adult Services,Hps-Disabled Fac. Grants,Cap Grants To O/Side Sources,Cap Grants To O/Side Sources,YJ101,22/10/2021,695546,4700,CAPITAL,OBAM LIFT SERVICES LTD,112666
North East Lincolnshire Council,http://statistics.data.gov.uk/id/local-authority/00FC),Adult Services,Adult Services,Hps-Disabled Fac. Grants,Cap Grants To O/Side Sources,Cap Grants To O/Side Sources,YJ101,25/10/2021,695544,4785,CAPITAL,OBAM LIFT SERVICES LTD,112666
North East Lincolnshire Council,http://statistics.data.gov.uk/id/local-authority/00FC),Adult Services,Adult Services,Hps-Disabled Fac. Grants,Cap Grants To O/Side Sources,Cap Grants To O/Side Sources,YJ101,13/10/2021,693785,5680,CAPITAL,OBAM LIFT SERVICES LTD,112666
North East Lincolnshire Council,http://statistics.data.gov.uk/id/local-authority/00FC),Adult Services,Adult Services,Hps-Disabled Fac. Grants,Cap Grants To O/Side Sources,Cap Grants To O/Side Sources,YJ101,22/10/2021,695545,1561,CAPITAL,OBAM LIFT SERVICES LTD,112666
North East Lincolnshire Council,http://statistics.data.gov.uk/id/local-authority/00FC),Adult Services,Adult Services,Hps-Disabled Fac. Grants,Cap Grants To O/Side Sources,Cap Grants To O/Side Sources,YJ101,29/10/2021,696776,9080.89,CAPITAL,ENGIE SERVICES LTD,133267
North East Lincolnshire Council,http://statistics.data.gov.uk/id/local-authority/00FC),Adult Services,Adult Services,Hps-Disabled Fac. Grants,Cap Grants To O/Side Sources,Cap Grants To O/Side Sources,YJ101,12/10/2021,693783,16002.36,CAPITAL,ASKERTON HOMES LTD,145694
North East Lincolnshire Council,http://statistics.data.gov.uk/id/local-authority/00FC),Adult Services,Adult Services,Hps-Disabled Fac. Grants,Cap Grants To O/Side Sources,Cap Grants To O/Side Sources,YJ101,29/10/2021,696508,10561.12,CAPITAL,HOBSON & PORTER,101010
North East Lincolnshire Council,http://statistics.data.gov.uk/id/local-authority/00FC),Adult Services,Adult Services,Hps-Disabled Fac. Grants,Cap Grants To O/Side Sources,Cap Grants To O/Side Sources,YJ101,14/10/2021,693784,15486.75,CAPITAL,VIC HANSEN BUILDING & JOINERY LTD,103981
North East Lincolnshire Council,http://statistics.data.gov.uk/id/local-authority/00FC),Adult Services,Adult Services,Hps-Disabled Fac. Grants,Cap Grants To O/Side Sources,Cap Grants To O/Side Sources,YJ101,29/10/2021,696397,9073.81,CAPITAL,ABLE 4 ENTERPRISE LTD,120159
North East Lincolnshire Council,http://statistics.data.gov.uk/id/local-authority/00FC),Adult Services,Adult Services,Hps-Disabled Fac. Grants,Cap Grants To O/Side Sources,Cap Grants To O/Side Sources,YJ101,29/10/2021,696772,16726.25,CAPITAL,ABLE 4 ENTERPRISE LTD,120159
North East Lincolnshire Council,http://statistics.data.gov.uk/id/local-authority/00FC),Adult Services,Adult Services,Hps-Disabled Fac. Grants,Cap Grants To O/Side Sources,Cap Grants To O/Side Sources,YJ101,29/10/2021,696362,13893.52,CAPITAL,JC POMFRET CONSTRUCTION LTD,136453
North East Lincolnshire Council,http://statistics.data.gov.uk/id/local-authority/00FC),Adult Services,Adult Services,Hps-Disabled Fac. Grants,Cap Grants To O/Side Sources,Cap Grants To O/Side Sources,YJ101,25/10/2021,695590,8121.35,CAPITAL,JC POMFRET CONSTRUCTION LTD,136453
North East Lincolnshire Council,http://statistics.data.gov.uk/id/local-authority/00FC),Adult Services,Adult Services,Hps-Disabled Fac. Grants,Cap Grants To O/Side Sources,Cap Grants To O/Side Sources,YJ101,28/10/2021,696316,1741,CAPITAL,OBAM LIFT SERVICES LTD,112666
North East Lincolnshire Council,http://statistics.data.gov.uk/id/local-authority/00FC),Adult Services,Adult Services,Hps-Disabled Fac. Grants,Cap Grants To O/Side Sources,Cap Grants To O/Side Sources,YJ101,04/10/2021,692585,4085,CAPITAL,CLOSOMAT LTD,100849
North East Lincolnshire Council,http://statistics.data.gov.uk/id/local-authority/00FC),Adult Services,Adult Services,Hps-Disabled Fac. Grants,Cap Grants To O/Side Sources,Cap Grants To O/Side Sources,YJ101,29/10/2021,696285,11423.52,CAPITAL,JC POMFRET CONSTRUCTION LTD,136453
North East Lincolnshire Council,http://statistics.data.gov.uk/id/local-authority/00FC),Adult Services,Adult Services,Hps-Disabled Fac. Grants,Cap Grants To O/Side Sources,Cap Grants To O/Side Sources,YJ101,25/10/2021,695867,15651.02,CAPITAL,EJ BUILDING & JOINERY,149682
North East Lincolnshire Council,http://statistics.data.gov.uk/id/local-authority/00FC),Adult Services,Adult Services,Hps-Disabled Fac. Grants,Cap Grants To O/Side Sources,Cap Grants To O/Side Sources,YJ101,04/10/2021,692591,3954.78,CAPITAL,ASKERTON HOMES LTD,145694
North East Lincolnshire Council,http://statistics.data.gov.uk/id/local-authority/00FC),Adult Services,Adult Services,Hps-Disabled Fac. Grants,Cap Grants To O/Side Sources,Cap Grants To O/Side Sources,YJ101,07/10/2021,693186,2230,CAPITAL,OBAM LIFT SERVICES LTD,112666
North East Lincolnshire Council,http://statistics.data.gov.uk/id/local-authority/00FC),Adult Services,Adult Services,Hps-Disabled Fac. Grants,Cap Grants To O/Side Sources,Cap Grants To O/Side Sources,YJ101,29/10/2021,696773,9199.51,CAPITAL,ABLE 4 ENTERPRISE LTD,120159
North East Lincolnshire Council,http://statistics.data.gov.uk/id/local-authority/00FC),Adult Services,Adult Services,Hps-Disabled Fac. Grants,Cap Grants To O/Side Sources,Cap Grants To O/Side Sources,YJ101,04/10/2021,692592,574.2,CAPITAL,ASKERTON HOMES LTD,145694
North East Lincolnshire Council,http://statistics.data.gov.uk/id/local-authority/00FC),Adult Services,Adult Services,Hps-Disabled Fac. Grants,Cap Grants To O/Side Sources,Cap Grants To O/Side Sources,YJ101,13/10/2021,694205,25710,CAPITAL,JC POMFRET CONSTRUCTION LTD,136453
North East Lincolnshire Council,http://statistics.data.gov.uk/id/local-authority/00FC),Childrens Services,Education And Inclusion,Access And Education Services,Miscellaneous Expenses,Other Expenses General,LL119,25/10/2021,695363,487.5,REVENUE,LEARNING4LIFE-GY-CIC,144120
North East Lincolnshire Council,http://statistics.data.gov.uk/id/local-authority/00FC),Childrens Services,Education And Inclusion,Access And Education Services,Contract Hire-Operating Leases,Vehicles - Contract Hire,JC101,15/10/2021,694344,600,REVENUE,REDACTED PERSONAL INFORMATION,REDACTED PERSONAL INFORMATION
North East Lincolnshire Council,http://statistics.data.gov.uk/id/local-authority/00FC),Childrens Services,Education And Inclusion,Access And Education Services,Contract Hire-Operating Leases,Vehicles - Contract Hire,JC101,18/10/2021,694804,800,REVENUE,AA RADIO CARS LTD,101222
North East Lincolnshire Council,http://statistics.data.gov.uk/id/local-authority/00FC),Childrens Services,Education And Inclusion,Access And Education Services,Contract Hire-Operating Leases,Vehicles - Contract Hire,JC101,19/10/2021,694329,557.25,REVENUE,LINKS TAXIS,100546
North East Lincolnshire Council,http://statistics.data.gov.uk/id/local-authority/00FC),Childrens Services,Education And Inclusion,Access And Education Services,Contract Hire-Operating Leases,Vehicles - Contract Hire,JC101,19/10/2021,694328,462,REVENUE,LINKS TAXIS,100546
North East Lincolnshire Council,http://statistics.data.gov.uk/id/local-authority/00FC),Childrens Services,Education And Inclusion,Access And Education Services,Contract Hire-Operating Leases,Vehicles - Contract Hire,JC101,28/10/2021,696289,310,REVENUE,COXONS CARS LIMITED,100578
North East Lincolnshire Council,http://statistics.data.gov.uk/id/local-authority/00FC),Childrens Services,Education And Inclusion,Access And Education Services,Contract Hire-Operating Leases,Vehicles - Contract Hire,JC101,14/10/2021,694196,1350,REVENUE,SMT (LINCS) ENTERPRISES LTD,141297
North East Lincolnshire Council,http://statistics.data.gov.uk/id/local-authority/00FC),Childrens Services,Education And Inclusion,Access And Education Services,Contract Hire-Operating Leases,Vehicles - Contract Hire,JC101,25/10/2021,695878,1120,REVENUE,SMT (LINCS) ENTERPRISES LTD,141297
North East Lincolnshire Council,http://statistics.data.gov.uk/id/local-authority/00FC),Childrens Services,Education And Inclusion,Access And Education Services,Contract Hire-Operating Leases,Vehicles - Contract Hire,JC101,18/10/2021,694436,312,REVENUE,AA RADIO CARS LTD,101222
North East Lincolnshire Council,http://statistics.data.gov.uk/id/local-authority/00FC),Childrens Services,Education And Inclusion,Access And Education Services,Contract Hire-Operating Leases,Vehicles - Contract Hire,JC101,19/10/2021,694341,586.25,REVENUE,LINKS TAXIS,100546
North East Lincolnshire Council,http://statistics.data.gov.uk/id/local-authority/00FC),Childrens Services,Education And Inclusion,Access And Education Services,Contract Hire-Operating Leases,Vehicles - Contract Hire,JC101,18/10/2021,694333,267,REVENUE,LINKS TAXIS,100546
North East Lincolnshire Council,http://statistics.data.gov.uk/id/local-authority/00FC),Childrens Services,Education And Inclusion,Access And Education Services,Contract Hire-Operating Leases,Vehicles - Contract Hire,JC101,14/10/2021,694194,300,REVENUE,SMT (LINCS) ENTERPRISES LTD,141297
North East Lincolnshire Council,http://statistics.data.gov.uk/id/local-authority/00FC),Childrens Services,Education And Inclusion,Access And Education Services,Contract Hire-Operating Leases,Vehicles - Contract Hire,JC101,19/10/2021,694393,900,REVENUE,SMT (LINCS) ENTERPRISES LTD,141297
North East Lincolnshire Council,http://statistics.data.gov.uk/id/local-authority/00FC),Childrens Services,Education And Inclusion,Access And Education Services,Contract Hire-Operating Leases,Vehicles - Contract Hire,JC101,26/10/2021,695783,720,REVENUE,SMT (LINCS) ENTERPRISES LTD,141297
North East Lincolnshire Council,http://statistics.data.gov.uk/id/local-authority/00FC),Childrens Services,Education And Inclusion,Access And Education Services,Contract Hire-Operating Leases,Vehicles - Contract Hire,JC101,19/10/2021,694395,720,REVENUE,SMT (LINCS) ENTERPRISES LTD,141297
North East Lincolnshire Council,http://statistics.data.gov.uk/id/local-authority/00FC),Childrens Services,Education And Inclusion,Access And Education Services,Contract Hire-Operating Leases,Vehicles - Contract Hire,JC101,26/10/2021,695857,720,REVENUE,SMT (LINCS) ENTERPRISES LTD,141297
North East Lincolnshire Council,http://statistics.data.gov.uk/id/local-authority/00FC),Childrens Services,Education And Inclusion,Access And Education Services,Contract Hire-Operating Leases,Vehicles - Contract Hire,JC101,14/10/2021,694191,400,REVENUE,SMT (LINCS) ENTERPRISES LTD,141297
North East Lincolnshire Council,http://statistics.data.gov.uk/id/local-authority/00FC),Childrens Services,Education And Inclusion,Access And Education Services,Contract Hire-Operating Leases,Vehicles - Contract Hire,JC101,26/10/2021,695780,320,REVENUE,SMT (LINCS) ENTERPRISES LTD,141297
North East Lincolnshire Council,http://statistics.data.gov.uk/id/local-authority/00FC),Childrens Services,Education And Inclusion,Access And Education Services,Contract Hire-Operating Leases,Vehicles - Contract Hire,JC101,05/10/2021,692756,960,REVENUE,COXONS CARS LIMITED,100578
North East Lincolnshire Council,http://statistics.data.gov.uk/id/local-authority/00FC),Childrens Services,Education And Inclusion,Access And Education Services,Private Contractors,Concessionary Fares,PH104,08/10/2021,692721,656,REVENUE,STAGECOACH SERVICES,101404
North East Lincolnshire Council,http://statistics.data.gov.uk/id/local-authority/00FC),Childrens Services,Education And Inclusion,Access And Education Services,Contract Hire-Operating Leases,Vehicles - Contract Hire,JC101,19/10/2021,694302,1392,REVENUE,LINKS TAXIS,100546
North East Lincolnshire Council,http://statistics.data.gov.uk/id/local-authority/00FC),Childrens Services,Education And Inclusion,Access And Education Services,Contract Hire-Operating Leases,Vehicles - Contract Hire,JC101,19/10/2021,694300,1302,REVENUE,LINKS TAXIS,100546
North East Lincolnshire Council,http://statistics.data.gov.uk/id/local-authority/00FC),Childrens Services,Education And Inclusion,Access And Education Services,Contract Hire-Operating Leases,Vehicles - Contract Hire,JC101,18/10/2021,694788,1365,REVENUE,MINICABS CLEETHORPES (LINCS) LTD,102124
North East Lincolnshire Council,http://statistics.data.gov.uk/id/local-authority/00FC),Childrens Services,Education And Inclusion,Access And Education Services,Contract Hire-Operating Leases,Vehicles - Contract Hire,JC101,26/10/2021,695906,975,REVENUE,MINICABS CLEETHORPES (LINCS) LTD,102124
North East Lincolnshire Council,http://statistics.data.gov.uk/id/local-authority/00FC),Childrens Services,Education And Inclusion,Access And Education Services,Contract Hire-Operating Leases,Vehicles - Contract Hire,JC101,18/10/2021,694358,2292,REVENUE,GRIMSBY MINIBUSES LTD,121524
North East Lincolnshire Council,http://statistics.data.gov.uk/id/local-authority/00FC),Childrens Services,Education And Inclusion,Access And Education Services,Contract Hire-Operating Leases,Vehicles - Contract Hire,JC101,25/10/2021,695834,1719,REVENUE,GRIMSBY MINIBUSES LTD,121524
North East Lincolnshire Council,http://statistics.data.gov.uk/id/local-authority/00FC),Childrens Services,Education And Inclusion,Access And Education Services,Contract Hire-Operating Leases,Vehicles - Contract Hire,JC101,18/10/2021,694739,1647.8,REVENUE,GRIMSBY MINIBUSES LTD,121524
North East Lincolnshire Council,http://statistics.data.gov.uk/id/local-authority/00FC),Childrens Services,Education And Inclusion,Access And Education Services,Contract Hire-Operating Leases,Vehicles - Contract Hire,JC101,18/10/2021,694359,3145.8,REVENUE,GRIMSBY MINIBUSES LTD,121524
North East Lincolnshire Council,http://statistics.data.gov.uk/id/local-authority/00FC),Childrens Services,Education And Inclusion,Access And Education Services,Contract Hire-Operating Leases,Vehicles - Contract Hire,JC101,19/10/2021,694352,3752.5,REVENUE,AMVALE LIMITED,101030
North East Lincolnshire Council,http://statistics.data.gov.uk/id/local-authority/00FC),Childrens Services,Education And Inclusion,Access And Education Services,Contract Hire-Operating Leases,Vehicles - Contract Hire,JC101,25/10/2021,695624,3160,REVENUE,AMVALE LIMITED,101030
North East Lincolnshire Council,http://statistics.data.gov.uk/id/local-authority/00FC),Childrens Services,Education And Inclusion,Access And Education Services,Contract Hire-Operating Leases,Vehicles - Contract Hire,JC101,19/10/2021,694351,3591,REVENUE,AMVALE LIMITED,101030
North East Lincolnshire Council,http://statistics.data.gov.uk/id/local-authority/00FC),Childrens Services,Education And Inclusion,Access And Education Services,Contract Hire-Operating Leases,Vehicles - Contract Hire,JC101,25/10/2021,695625,3024,REVENUE,AMVALE LIMITED,101030
North East Lincolnshire Council,http://statistics.data.gov.uk/id/local-authority/00FC),Childrens Services,Education And Inclusion,Access And Education Services,Contract Hire-Operating Leases,Vehicles - Contract Hire,JC101,19/10/2021,694350,3591,REVENUE,AMVALE LIMITED,101030
North East Lincolnshire Council,http://statistics.data.gov.uk/id/local-authority/00FC),Childrens Services,Education And Inclusion,Access And Education Services,Contract Hire-Operating Leases,Vehicles - Contract Hire,JC101,25/10/2021,695626,3024,REVENUE,AMVALE LIMITED,101030
North East Lincolnshire Council,http://statistics.data.gov.uk/id/local-authority/00FC),Childrens Services,Education And Inclusion,Access And Education Services,Contract Hire-Operating Leases,Vehicles - Contract Hire,JC101,19/10/2021,694349,3591,REVENUE,AMVALE LIMITED,101030
North East Lincolnshire Council,http://statistics.data.gov.uk/id/local-authority/00FC),Childrens Services,Education And Inclusion,Access And Education Services,Contract Hire-Operating Leases,Vehicles - Contract Hire,JC101,25/10/2021,695627,3024,REVENUE,AMVALE LIMITED,101030
North East Lincolnshire Council,http://statistics.data.gov.uk/id/local-authority/00FC),Childrens Services,Education And Inclusion,Access And Education Services,Contract Hire-Operating Leases,Vehicles - Contract Hire,JC101,05/10/2021,692737,760,REVENUE,COXONS CARS LIMITED,100578
North East Lincolnshire Council,http://statistics.data.gov.uk/id/local-authority/00FC),Childrens Services,Education And Inclusion,Access And Education Services,Contract Hire-Operating Leases,Vehicles - Contract Hire,JC101,28/10/2021,696403,640,REVENUE,COXONS CARS LIMITED,100578
North East Lincolnshire Council,http://statistics.data.gov.uk/id/local-authority/00FC),Childrens Services,Education And Inclusion,Access And Education Services,Contract Hire-Operating Leases,Vehicles - Contract Hire,JC101,22/10/2021,695604,1672,REVENUE,LINKS TAXIS,100546
North East Lincolnshire Council,http://statistics.data.gov.uk/id/local-authority/00FC),Childrens Services,Education And Inclusion,Access And Education Services,Contract Hire-Operating Leases,Vehicles - Contract Hire,JC101,18/10/2021,694634,2641,REVENUE,AMVALE MEDICAL TRANSPORT LTD,130777
North East Lincolnshire Council,http://statistics.data.gov.uk/id/local-authority/00FC),Childrens Services,Education And Inclusion,Access And Education Services,Contract Hire-Operating Leases,Vehicles - Contract Hire,JC101,29/10/2021,696523,2224,REVENUE,AMVALE MEDICAL TRANSPORT LTD,130777
North East Lincolnshire Council,http://statistics.data.gov.uk/id/local-authority/00FC),Childrens Services,Education And Inclusion,Access And Education Services,Contract Hire-Operating Leases,Vehicles - Contract Hire,JC101,05/10/2021,692731,2432,REVENUE,THE BUS RUN,101522
North East Lincolnshire Council,http://statistics.data.gov.uk/id/local-authority/00FC),Childrens Services,Education And Inclusion,Access And Education Services,Contract Hire-Operating Leases,Vehicles - Contract Hire,JC101,18/10/2021,694360,2310.4,REVENUE,GRIMSBY MINIBUSES LTD,121524
North East Lincolnshire Council,http://statistics.data.gov.uk/id/local-authority/00FC),Childrens Services,Education And Inclusion,Access And Education Services,Contract Hire-Operating Leases,Vehicles - Contract Hire,JC101,26/10/2021,695835,1945.6,REVENUE,GRIMSBY MINIBUSES LTD,121524
North East Lincolnshire Council,http://statistics.data.gov.uk/id/local-authority/00FC),Childrens Services,Education And Inclusion,Access And Education Services,Contract Hire-Operating Leases,Vehicles - Contract Hire,JC101,18/10/2021,694361,2675.2,REVENUE,GRIMSBY MINIBUSES LTD,121524
North East Lincolnshire Council,http://statistics.data.gov.uk/id/local-authority/00FC),Childrens Services,Education And Inclusion,Access And Education Services,Contract Hire-Operating Leases,Vehicles - Contract Hire,JC101,26/10/2021,695836,2252.8,REVENUE,GRIMSBY MINIBUSES LTD,121524
North East Lincolnshire Council,http://statistics.data.gov.uk/id/local-authority/00FC),Childrens Services,Education And Inclusion,Access And Education Services,Contract Hire-Operating Leases,Vehicles - Contract Hire,JC101,11/10/2021,693466,2033,REVENUE,HANSONS AIRPORT EXPRESS,111879
North East Lincolnshire Council,http://statistics.data.gov.uk/id/local-authority/00FC),Childrens Services,Education And Inclusion,Access And Education Services,Contract Hire-Operating Leases,Vehicles - Contract Hire,JC101,11/10/2021,693465,2033,REVENUE,HANSONS AIRPORT EXPRESS,111879
North East Lincolnshire Council,http://statistics.data.gov.uk/id/local-authority/00FC),Childrens Services,Education And Inclusion,Access And Education Services,Contract Hire-Operating Leases,Vehicles - Contract Hire,JC101,18/10/2021,694633,2622,REVENUE,AMVALE MEDICAL TRANSPORT LTD,130777
North East Lincolnshire Council,http://statistics.data.gov.uk/id/local-authority/00FC),Childrens Services,Education And Inclusion,Access And Education Services,Contract Hire-Operating Leases,Vehicles - Contract Hire,JC101,29/10/2021,696522,2208,REVENUE,AMVALE MEDICAL TRANSPORT LTD,130777
North East Lincolnshire Council,http://statistics.data.gov.uk/id/local-authority/00FC),Childrens Services,Education And Inclusion,Access And Education Services,Contract Hire-Operating Leases,Vehicles - Contract Hire,JC101,14/10/2021,694410,4200,REVENUE,PC COACHES LTD,102879
North East Lincolnshire Council,http://statistics.data.gov.uk/id/local-authority/00FC),Childrens Services,Education And Inclusion,Access And Education Services,Contract Hire-Operating Leases,Vehicles - Contract Hire,JC101,18/10/2021,694434,2580,REVENUE,AMVALE MEDICAL TRANSPORT LTD,130777
North East Lincolnshire Council,http://statistics.data.gov.uk/id/local-authority/00FC),Childrens Services,Education And Inclusion,Access And Education Services,Contract Hire-Operating Leases,Vehicles - Contract Hire,JC101,29/10/2021,696528,2064,REVENUE,AMVALE MEDICAL TRANSPORT LTD,130777
North East Lincolnshire Council,http://statistics.data.gov.uk/id/local-authority/00FC),Childrens Services,Education And Inclusion,Access And Education Services,Contract Hire-Operating Leases,Vehicles - Contract Hire,JC101,18/10/2021,694632,2641,REVENUE,AMVALE MEDICAL TRANSPORT LTD,130777
North East Lincolnshire Council,http://statistics.data.gov.uk/id/local-authority/00FC),Childrens Services,Education And Inclusion,Access And Education Services,Contract Hire-Operating Leases,Vehicles - Contract Hire,JC101,29/10/2021,696521,2224,REVENUE,AMVALE MEDICAL TRANSPORT LTD,130777
North East Lincolnshire Council,http://statistics.data.gov.uk/id/local-authority/00FC),Childrens Services,Education And Inclusion,Access And Education Services,Contract Hire-Operating Leases,Vehicles - Contract Hire,JC101,19/10/2021,694384,1235,REVENUE,SMT (LINCS) ENTERPRISES LTD,141297
North East Lincolnshire Council,http://statistics.data.gov.uk/id/local-authority/00FC),Childrens Services,Education And Inclusion,Access And Education Services,Contract Hire-Operating Leases,Vehicles - Contract Hire,JC101,25/10/2021,695781,1040,REVENUE,SMT (LINCS) ENTERPRISES LTD,141297
North East Lincolnshire Council,http://statistics.data.gov.uk/id/local-authority/00FC),Childrens Services,Education And Inclusion,Access And Education Services,Contract Hire-Operating Leases,Vehicles - Contract Hire,JC101,18/10/2021,694789,1480,REVENUE,MINICABS CLEETHORPES (LINCS) LTD,102124
North East Lincolnshire Council,http://statistics.data.gov.uk/id/local-authority/00FC),Childrens Services,Education And Inclusion,Access And Education Services,Contract Hire-Operating Leases,Vehicles - Contract Hire,JC101,26/10/2021,695907,1184,REVENUE,MINICABS CLEETHORPES (LINCS) LTD,102124
North East Lincolnshire Council,http://statistics.data.gov.uk/id/local-authority/00FC),Childrens Services,Education And Inclusion,Access And Education Services,Contract Hire-Operating Leases,Vehicles - Contract Hire,JC101,19/10/2021,694400,1540,REVENUE,SMT (LINCS) ENTERPRISES LTD,141297
North East Lincolnshire Council,http://statistics.data.gov.uk/id/local-authority/00FC),Childrens Services,Education And Inclusion,Access And Education Services,Contract Hire-Operating Leases,Vehicles - Contract Hire,JC101,26/10/2021,695827,1340,REVENUE,SMT (LINCS) ENTERPRISES LTD,141297
North East Lincolnshire Council,http://statistics.data.gov.uk/id/local-authority/00FC),Childrens Services,Education And Inclusion,Access And Education Services,Contract Hire-Operating Leases,Vehicles - Contract Hire,JC101,19/10/2021,694785,1440,REVENUE,MINICABS CLEETHORPES (LINCS) LTD,102124
North East Lincolnshire Council,http://statistics.data.gov.uk/id/local-authority/00FC),Childrens Services,Education And Inclusion,Access And Education Services,Contract Hire-Operating Leases,Vehicles - Contract Hire,JC101,26/10/2021,695903,1280,REVENUE,MINICABS CLEETHORPES (LINCS) LTD,102124
North East Lincolnshire Council,http://statistics.data.gov.uk/id/local-authority/00FC),Childrens Services,Education And Inclusion,Access And Education Services,Contract Hire-Operating Leases,Vehicles - Contract Hire,JC101,19/10/2021,694394,1950,REVENUE,SMT (LINCS) ENTERPRISES LTD,141297
North East Lincolnshire Council,http://statistics.data.gov.uk/id/local-authority/00FC),Childrens Services,Education And Inclusion,Access And Education Services,Contract Hire-Operating Leases,Vehicles - Contract Hire,JC101,25/10/2021,695881,1599,REVENUE,SMT (LINCS) ENTERPRISES LTD,141297
North East Lincolnshire Council,http://statistics.data.gov.uk/id/local-authority/00FC),Childrens Services,Education And Inclusion,Access And Education Services,Contract Hire-Operating Leases,Vehicles - Contract Hire,JC101,19/10/2021,694301,1178,REVENUE,LINKS TAXIS,100546
North East Lincolnshire Council,http://statistics.data.gov.uk/id/local-authority/00FC),Childrens Services,Education And Inclusion,Access And Education Services,Contract Hire-Operating Leases,Vehicles - Contract Hire,JC101,18/10/2021,694784,1235,REVENUE,MINICABS CLEETHORPES (LINCS) LTD,102124
North East Lincolnshire Council,http://statistics.data.gov.uk/id/local-authority/00FC),Childrens Services,Education And Inclusion,Access And Education Services,Contract Hire-Operating Leases,Vehicles - Contract Hire,JC101,26/10/2021,695902,1040,REVENUE,MINICABS CLEETHORPES (LINCS) LTD,102124
North East Lincolnshire Council,http://statistics.data.gov.uk/id/local-authority/00FC),Childrens Services,Education And Inclusion,Access And Education Services,Contract Hire-Operating Leases,Vehicles - Contract Hire,JC101,21/10/2021,695336,1303.5,REVENUE,LINKS TAXIS,100546
North East Lincolnshire Council,http://statistics.data.gov.uk/id/local-authority/00FC),Childrens Services,Education And Inclusion,Access And Education Services,Contract Hire-Operating Leases,Vehicles - Contract Hire,JC101,18/10/2021,694334,1298,REVENUE,AA RADIO CARS LTD,101222
North East Lincolnshire Council,http://statistics.data.gov.uk/id/local-authority/00FC),Childrens Services,Education And Inclusion,Access And Education Services,Contract Hire-Operating Leases,Vehicles - Contract Hire,JC101,18/10/2021,694786,1696,REVENUE,MINICABS CLEETHORPES (LINCS) LTD,102124
North East Lincolnshire Council,http://statistics.data.gov.uk/id/local-authority/00FC),Childrens Services,Education And Inclusion,Access And Education Services,Contract Hire-Operating Leases,Vehicles - Contract Hire,JC101,26/10/2021,695904,1607.5,REVENUE,MINICABS CLEETHORPES (LINCS) LTD,102124
North East Lincolnshire Council,http://statistics.data.gov.uk/id/local-authority/00FC),Childrens Services,Education And Inclusion,Access And Education Services,Contract Hire-Operating Leases,Vehicles - Contract Hire,JC101,19/10/2021,694790,1600,REVENUE,MINICABS CLEETHORPES (LINCS) LTD,102124
North East Lincolnshire Council,http://statistics.data.gov.uk/id/local-authority/00FC),Childrens Services,Education And Inclusion,Access And Education Services,Contract Hire-Operating Leases,Vehicles - Contract Hire,JC101,26/10/2021,695905,1560,REVENUE,MINICABS CLEETHORPES (LINCS) LTD,102124
North East Lincolnshire Council,http://statistics.data.gov.uk/id/local-authority/00FC),Childrens Services,Education And Inclusion,Access And Education Services,Contract Hire-Operating Leases,Vehicles - Contract Hire,JC101,19/10/2021,694392,1190,REVENUE,SMT (LINCS) ENTERPRISES LTD,141297
North East Lincolnshire Council,http://statistics.data.gov.uk/id/local-authority/00FC),Childrens Services,Education And Inclusion,Access And Education Services,Contract Hire-Operating Leases,Vehicles - Contract Hire,JC101,26/10/2021,695893,1050,REVENUE,SMT (LINCS) ENTERPRISES LTD,141297
North East Lincolnshire Council,http://statistics.data.gov.uk/id/local-authority/00FC),Childrens Services,Education And Inclusion,Access And Education Services,Contract Hire-Operating Leases,Vehicles - Contract Hire,JC101,14/10/2021,694196,1350,REVENUE,SMT (LINCS) ENTERPRISES LTD,141297
North East Lincolnshire Council,http://statistics.data.gov.uk/id/local-authority/00FC),Childrens Services,Education And Inclusion,Access And Education Services,Contract Hire-Operating Leases,Vehicles - Contract Hire,JC101,25/10/2021,695878,1120,REVENUE,SMT (LINCS) ENTERPRISES LTD,141297
North East Lincolnshire Council,http://statistics.data.gov.uk/id/local-authority/00FC),Childrens Services,Education And Inclusion,Access And Education Services,Contract Hire-Operating Leases,Vehicles - Contract Hire,JC101,18/10/2021,694336,1836,REVENUE,AA RADIO CARS LTD,101222
North East Lincolnshire Council,http://statistics.data.gov.uk/id/local-authority/00FC),Childrens Services,Education And Inclusion,Access And Education Services,Contract Hire-Operating Leases,Vehicles - Contract Hire,JC101,18/10/2021,694337,2052,REVENUE,AA RADIO CARS LTD,101222
North East Lincolnshire Council,http://statistics.data.gov.uk/id/local-authority/00FC),Childrens Services,Education And Inclusion,Access And Education Services,Contract Hire-Operating Leases,Vehicles - Contract Hire,JC101,19/10/2021,694391,1985.5,REVENUE,SMT (LINCS) ENTERPRISES LTD,141297
North East Lincolnshire Council,http://statistics.data.gov.uk/id/local-authority/00FC),Childrens Services,Education And Inclusion,Access And Education Services,Contract Hire-Operating Leases,Vehicles - Contract Hire,JC101,25/10/2021,695879,1558.9,REVENUE,SMT (LINCS) ENTERPRISES LTD,141297
North East Lincolnshire Council,http://statistics.data.gov.uk/id/local-authority/00FC),Childrens Services,Education And Inclusion,Access And Education Services,Contract Hire-Operating Leases,Vehicles - Contract Hire,JC101,19/10/2021,694363,2846.2,REVENUE,GRIMSBY MINIBUSES LTD,121524
North East Lincolnshire Council,http://statistics.data.gov.uk/id/local-authority/00FC),Childrens Services,Education And Inclusion,Access And Education Services,Contract Hire-Operating Leases,Vehicles - Contract Hire,JC101,18/10/2021,694374,1530,REVENUE,SMT (LINCS) ENTERPRISES LTD,141297
North East Lincolnshire Council,http://statistics.data.gov.uk/id/local-authority/00FC),Childrens Services,Education And Inclusion,Access And Education Services,Contract Hire-Operating Leases,Vehicles - Contract Hire,JC101,26/10/2021,695789,990,REVENUE,SMT (LINCS) ENTERPRISES LTD,141297
North East Lincolnshire Council,http://statistics.data.gov.uk/id/local-authority/00FC),Childrens Services,Education And Inclusion,Access And Education Services,Contract Hire-Operating Leases,Vehicles - Contract Hire,JC101,18/10/2021,694376,1650,REVENUE,SMT (LINCS) ENTERPRISES LTD,141297
North East Lincolnshire Council,http://statistics.data.gov.uk/id/local-authority/00FC),Childrens Services,Education And Inclusion,Access And Education Services,Contract Hire-Operating Leases,Vehicles - Contract Hire,JC101,26/10/2021,695853,1650,REVENUE,SMT (LINCS) ENTERPRISES LTD,141297
North East Lincolnshire Council,http://statistics.data.gov.uk/id/local-authority/00FC),Childrens Services,Education And Inclusion,Access And Education Services,Contract Hire-Operating Leases,Vehicles - Contract Hire,JC101,19/10/2021,694353,1700,REVENUE,DRS TAXI SERVICE,141083
North East Lincolnshire Council,http://statistics.data.gov.uk/id/local-authority/00FC),Childrens Services,Education And Inclusion,Access And Education Services,Contract Hire-Operating Leases,Vehicles - Contract Hire,JC101,25/10/2021,695838,1424,REVENUE,DRS TAXI SERVICE,141083
North East Lincolnshire Council,http://statistics.data.gov.uk/id/local-authority/00FC),Childrens Services,Education And Inclusion,Access And Education Services,Contract Hire-Operating Leases,Vehicles - Contract Hire,JC101,18/10/2021,694787,1400,REVENUE,MINICABS CLEETHORPES (LINCS) LTD,102124
North East Lincolnshire Council,http://statistics.data.gov.uk/id/local-authority/00FC),Childrens Services,Education And Inclusion,Access And Education Services,Contract Hire-Operating Leases,Vehicles - Contract Hire,JC101,26/10/2021,695911,1120,REVENUE,MINICABS CLEETHORPES (LINCS) LTD,102124
North East Lincolnshire Council,http://statistics.data.gov.uk/id/local-authority/00FC),Childrens Services,Education And Inclusion,Access And Education Services,Contract Hire-Operating Leases,Vehicles - Contract Hire,JC101,14/10/2021,694175,2130,REVENUE,SMT (LINCS) ENTERPRISES LTD,141297
North East Lincolnshire Council,http://statistics.data.gov.uk/id/local-authority/00FC),Childrens Services,Education And Inclusion,Access And Education Services,Contract Hire-Operating Leases,Vehicles - Contract Hire,JC101,26/10/2021,695886,2226,REVENUE,SMT (LINCS) ENTERPRISES LTD,141297
North East Lincolnshire Council,http://statistics.data.gov.uk/id/local-authority/00FC),Childrens Services,Education And Inclusion,Access And Education Services,Contract Hire-Operating Leases,Vehicles - Contract Hire,JC101,19/10/2021,694316,1054.5,REVENUE,LINKS TAXIS,100546
North East Lincolnshire Council,http://statistics.data.gov.uk/id/local-authority/00FC),Childrens Services,Education And Inclusion,Access And Education Services,Contract Hire-Operating Leases,Vehicles - Contract Hire,JC101,18/10/2021,694367,875,REVENUE,SMT (LINCS) ENTERPRISES LTD,141297
North East Lincolnshire Council,http://statistics.data.gov.uk/id/local-authority/00FC),Childrens Services,Education And Inclusion,Access And Education Services,Contract Hire-Operating Leases,Vehicles - Contract Hire,JC101,26/10/2021,695877,700,REVENUE,SMT (LINCS) ENTERPRISES LTD,141297
North East Lincolnshire Council,http://statistics.data.gov.uk/id/local-authority/00FC),Childrens Services,Education And Inclusion,Access And Education Services,Contract Hire-Operating Leases,Vehicles - Contract Hire,JC101,19/10/2021,694424,784,REVENUE,LINKS TAXIS,100546
North East Lincolnshire Council,http://statistics.data.gov.uk/id/local-authority/00FC),Childrens Services,Education And Inclusion,Access And Education Services,Contract Hire-Operating Leases,Vehicles - Contract Hire,JC101,14/10/2021,694195,1260,REVENUE,SMT (LINCS) ENTERPRISES LTD,141297
North East Lincolnshire Council,http://statistics.data.gov.uk/id/local-authority/00FC),Childrens Services,Education And Inclusion,Access And Education Services,Contract Hire-Operating Leases,Vehicles - Contract Hire,JC101,19/10/2021,694354,2923,REVENUE,DRS TAXI SERVICE,141083
North East Lincolnshire Council,http://statistics.data.gov.uk/id/local-authority/00FC),Childrens Services,Education And Inclusion,Access And Education Services,Contract Hire-Operating Leases,Vehicles - Contract Hire,JC101,25/10/2021,695841,1538,REVENUE,DRS TAXI SERVICE,141083
North East Lincolnshire Council,http://statistics.data.gov.uk/id/local-authority/00FC),Childrens Services,Education And Inclusion,Access And Education Services,Contract Hire-Operating Leases,Vehicles - Contract Hire,JC101,11/10/2021,693464,1819,REVENUE,REDACTED PERSONAL INFORMATION,REDACTED PERSONAL INFORMATION
North East Lincolnshire Council,http://statistics.data.gov.uk/id/local-authority/00FC),Childrens Services,Education And Inclusion,Access And Education Services,Contract Hire-Operating Leases,Vehicles - Contract Hire,JC101,19/10/2021,694297,1898,REVENUE,LINKS TAXIS,100546
North East Lincolnshire Council,http://statistics.data.gov.uk/id/local-authority/00FC),Childrens Services,Education And Inclusion,Access And Education Services,Contract Hire-Operating Leases,Vehicles - Contract Hire,JC101,14/10/2021,694185,1330,REVENUE,SMT (LINCS) ENTERPRISES LTD,141297
North East Lincolnshire Council,http://statistics.data.gov.uk/id/local-authority/00FC),Childrens Services,Education And Inclusion,Access And Education Services,Contract Hire-Operating Leases,Vehicles - Contract Hire,JC101,25/10/2021,695884,1067.5,REVENUE,SMT (LINCS) ENTERPRISES LTD,141297
North East Lincolnshire Council,http://statistics.data.gov.uk/id/local-authority/00FC),Childrens Services,Education And Inclusion,Access And Education Services,Contract Hire-Operating Leases,Vehicles - Contract Hire,JC101,19/10/2021,694386,875,REVENUE,SMT (LINCS) ENTERPRISES LTD,141297
North East Lincolnshire Council,http://statistics.data.gov.uk/id/local-authority/00FC),Childrens Services,Education And Inclusion,Access And Education Services,Contract Hire-Operating Leases,Vehicles - Contract Hire,JC101,25/10/2021,695826,665,REVENUE,SMT (LINCS) ENTERPRISES LTD,141297
North East Lincolnshire Council,http://statistics.data.gov.uk/id/local-authority/00FC),Childrens Services,Education And Inclusion,Access And Education Services,Contract Hire-Operating Leases,Vehicles - Contract Hire,JC101,19/10/2021,694341,586.25,REVENUE,LINKS TAXIS,100546
North East Lincolnshire Council,http://statistics.data.gov.uk/id/local-authority/00FC),Childrens Services,Education And Inclusion,Access And Education Services,Contract Hire-Operating Leases,Vehicles - Contract Hire,JC101,13/10/2021,694192,1380,REVENUE,SMT (LINCS) ENTERPRISES LTD,141297
North East Lincolnshire Council,http://statistics.data.gov.uk/id/local-authority/00FC),Childrens Services,Education And Inclusion,Access And Education Services,Contract Hire-Operating Leases,Vehicles - Contract Hire,JC101,26/10/2021,695770,660,REVENUE,SMT (LINCS) ENTERPRISES LTD,141297
North East Lincolnshire Council,http://statistics.data.gov.uk/id/local-authority/00FC),Childrens Services,Education And Inclusion,Access And Education Services,Contract Hire-Operating Leases,Vehicles - Contract Hire,JC101,19/10/2021,695235,1858.2,REVENUE,GRIMSBY MINIBUSES LTD,121524
North East Lincolnshire Council,http://statistics.data.gov.uk/id/local-authority/00FC),Childrens Services,Education And Inclusion,Access And Education Services,Contract Hire-Operating Leases,Vehicles - Contract Hire,JC101,25/10/2021,695738,-293.4,REVENUE,GRIMSBY MINIBUSES LTD,121524
North East Lincolnshire Council,http://statistics.data.gov.uk/id/local-authority/00FC),Childrens Services,Education And Inclusion,Access And Education Services,Contract Hire-Operating Leases,Vehicles - Contract Hire,JC101,19/10/2021,694403,3505.75,REVENUE,SMT (LINCS) ENTERPRISES LTD,141297
North East Lincolnshire Council,http://statistics.data.gov.uk/id/local-authority/00FC),Childrens Services,Education And Inclusion,Access And Education Services,Contract Hire-Operating Leases,Vehicles - Contract Hire,JC101,26/10/2021,695866,2960,REVENUE,SMT (LINCS) ENTERPRISES LTD,141297
North East Lincolnshire Council,http://statistics.data.gov.uk/id/local-authority/00FC),Childrens Services,Education And Inclusion,Access And Education Services,Contract Hire-Operating Leases,Vehicles - Contract Hire,JC101,14/10/2021,694183,950,REVENUE,SMT (LINCS) ENTERPRISES LTD,141297
North East Lincolnshire Council,http://statistics.data.gov.uk/id/local-authority/00FC),Childrens Services,Education And Inclusion,Access And Education Services,Contract Hire-Operating Leases,Vehicles - Contract Hire,JC101,26/10/2021,695791,768,REVENUE,SMT (LINCS) ENTERPRISES LTD,141297
North East Lincolnshire Council,http://statistics.data.gov.uk/id/local-authority/00FC),Childrens Services,Education And Inclusion,Access And Education Services,Contract Hire-Operating Leases,Vehicles - Contract Hire,JC101,19/10/2021,694387,1491.5,REVENUE,SMT (LINCS) ENTERPRISES LTD,141297
North East Lincolnshire Council,http://statistics.data.gov.uk/id/local-authority/00FC),Childrens Services,Education And Inclusion,Access And Education Services,Contract Hire-Operating Leases,Vehicles - Contract Hire,JC101,25/10/2021,695858,1256,REVENUE,SMT (LINCS) ENTERPRISES LTD,141297
North East Lincolnshire Council,http://statistics.data.gov.uk/id/local-authority/00FC),Childrens Services,Education And Inclusion,Access And Education Services,Contract Hire-Operating Leases,Vehicles - Contract Hire,JC101,26/10/2021,696254,4114,REVENUE,SMT (LINCS) ENTERPRISES LTD,141297
North East Lincolnshire Council,http://statistics.data.gov.uk/id/local-authority/00FC),Childrens Services,Education And Inclusion,Access And Education Services,Contract Hire-Operating Leases,Vehicles - Contract Hire,JC101,29/10/2021,696783,2057,REVENUE,SMT (LINCS) ENTERPRISES LTD,141297
North East Lincolnshire Council,http://statistics.data.gov.uk/id/local-authority/00FC),Childrens Services,Education And Inclusion,Access And Education Services,Contract Hire-Operating Leases,Vehicles - Contract Hire,JC101,19/10/2021,694295,1925,REVENUE,LINKS TAXIS,100546
North East Lincolnshire Council,http://statistics.data.gov.uk/id/local-authority/00FC),Childrens Services,Education And Inclusion,Access And Education Services,Contract Hire-Operating Leases,Vehicles - Contract Hire,JC101,18/10/2021,694433,5700,REVENUE,AMVALE MEDICAL TRANSPORT LTD,130777
North East Lincolnshire Council,http://statistics.data.gov.uk/id/local-authority/00FC),Childrens Services,Education And Inclusion,Access And Education Services,Contract Hire-Operating Leases,Vehicles - Contract Hire,JC101,29/10/2021,696519,4500,REVENUE,AMVALE MEDICAL TRANSPORT LTD,130777
North East Lincolnshire Council,http://statistics.data.gov.uk/id/local-authority/00FC),Childrens Services,Education And Inclusion,Access And Education Services,Contract Hire-Operating Leases,Vehicles - Contract Hire,JC101,18/10/2021,694435,4340,REVENUE,AMVALE MEDICAL TRANSPORT LTD,130777
North East Lincolnshire Council,http://statistics.data.gov.uk/id/local-authority/00FC),Childrens Services,Education And Inclusion,Access And Education Services,Contract Hire-Operating Leases,Vehicles - Contract Hire,JC101,29/10/2021,696525,3472,REVENUE,AMVALE MEDICAL TRANSPORT LTD,130777
North East Lincolnshire Council,http://statistics.data.gov.uk/id/local-authority/00FC),Childrens Services,Education And Inclusion,Access And Education Services,Contract Hire-Operating Leases,Vehicles - Contract Hire,JC101,18/10/2021,694382,820,REVENUE,AMVALE LIMITED,101030
North East Lincolnshire Council,http://statistics.data.gov.uk/id/local-authority/00FC),Childrens Services,Education And Inclusion,Access And Education Services,Contract Hire-Operating Leases,Vehicles - Contract Hire,JC101,18/10/2021,694385,820,REVENUE,AMVALE LIMITED,101030
North East Lincolnshire Council,http://statistics.data.gov.uk/id/local-authority/00FC),Childrens Services,Education And Inclusion,Access And Education Services,Contract Hire-Operating Leases,Vehicles - Contract Hire,JC101,18/10/2021,694388,820,REVENUE,AMVALE LIMITED,101030
North East Lincolnshire Council,http://statistics.data.gov.uk/id/local-authority/00FC),Childrens Services,Education And Inclusion,Access And Education Services,Contract Hire-Operating Leases,Vehicles - Contract Hire,JC101,14/10/2021,694184,1008,REVENUE,SMT (LINCS) ENTERPRISES LTD,141297
North East Lincolnshire Council,http://statistics.data.gov.uk/id/local-authority/00FC),Childrens Services,Education And Inclusion,Access And Education Services,Contract Hire-Operating Leases,Vehicles - Contract Hire,JC101,25/10/2021,695782,768,REVENUE,SMT (LINCS) ENTERPRISES LTD,141297
North East Lincolnshire Council,http://statistics.data.gov.uk/id/local-authority/00FC),Childrens Services,Education And Inclusion,Access And Education Services,Contract Hire-Operating Leases,Vehicles - Contract Hire,JC101,14/10/2021,694179,684,REVENUE,SMT (LINCS) ENTERPRISES LTD,141297
North East Lincolnshire Council,http://statistics.data.gov.uk/id/local-authority/00FC),Childrens Services,Education And Inclusion,Access And Education Services,Contract Hire-Operating Leases,Vehicles - Contract Hire,JC101,26/10/2021,695786,576,REVENUE,SMT (LINCS) ENTERPRISES LTD,141297
North East Lincolnshire Council,http://statistics.data.gov.uk/id/local-authority/00FC),Childrens Services,Education And Inclusion,Access And Education Services,Contract Hire-Operating Leases,Vehicles - Contract Hire,JC101,14/10/2021,694189,912,REVENUE,SMT (LINCS) ENTERPRISES LTD,141297
North East Lincolnshire Council,http://statistics.data.gov.uk/id/local-authority/00FC),Childrens Services,Education And Inclusion,Access And Education Services,Contract Hire-Operating Leases,Vehicles - Contract Hire,JC101,25/10/2021,695859,768,REVENUE,SMT (LINCS) ENTERPRISES LTD,141297
North East Lincolnshire Council,http://statistics.data.gov.uk/id/local-authority/00FC),Childrens Services,Education And Inclusion,Access And Education Services,Contract Hire-Operating Leases,Vehicles - Contract Hire,JC101,18/10/2021,694338,561,REVENUE,AA RADIO CARS LTD,101222
North East Lincolnshire Council,http://statistics.data.gov.uk/id/local-authority/00FC),Childrens Services,Education And Inclusion,Access And Education Services,Contract Hire-Operating Leases,Vehicles - Contract Hire,JC101,18/10/2021,694340,902,REVENUE,AA RADIO CARS LTD,101222
North East Lincolnshire Council,http://statistics.data.gov.uk/id/local-authority/00FC),Childrens Services,Education And Inclusion,Access And Education Services,Contract Hire-Operating Leases,Vehicles - Contract Hire,JC101,18/10/2021,694335,663,REVENUE,AA RADIO CARS LTD,101222
North East Lincolnshire Council,http://statistics.data.gov.uk/id/local-authority/00FC),Childrens Services,Education And Inclusion,Access And Education Services,Contract Hire-Operating Leases,Vehicles - Contract Hire,JC101,13/10/2021,694193,1345,REVENUE,SMT (LINCS) ENTERPRISES LTD,141297
North East Lincolnshire Council,http://statistics.data.gov.uk/id/local-authority/00FC),Childrens Services,Education And Inclusion,Access And Education Services,Contract Hire-Operating Leases,Vehicles - Contract Hire,JC101,26/10/2021,695862,1200,REVENUE,SMT (LINCS) ENTERPRISES LTD,141297
North East Lincolnshire Council,http://statistics.data.gov.uk/id/local-authority/00FC),Childrens Services,Education And Inclusion,Access And Education Services,Contract Hire-Operating Leases,Vehicles - Contract Hire,JC101,05/10/2021,692738,756,REVENUE,COXONS CARS LIMITED,100578
North East Lincolnshire Council,http://statistics.data.gov.uk/id/local-authority/00FC),Childrens Services,Education And Inclusion,Access And Education Services,Contract Hire-Operating Leases,Vehicles - Contract Hire,JC101,28/10/2021,696405,504,REVENUE,COXONS CARS LIMITED,100578
North East Lincolnshire Council,http://statistics.data.gov.uk/id/local-authority/00FC),Childrens Services,Education And Inclusion,Access And Education Services,Contract Hire-Operating Leases,Vehicles - Contract Hire,JC101,18/10/2021,694333,541,REVENUE,LINKS TAXIS,100546
North East Lincolnshire Council,http://statistics.data.gov.uk/id/local-authority/00FC),Childrens Services,Education And Inclusion,Access And Education Services,Contract Hire-Operating Leases,Vehicles - Contract Hire,JC101,19/10/2021,694399,1000,REVENUE,SMT (LINCS) ENTERPRISES LTD,141297
North East Lincolnshire Council,http://statistics.data.gov.uk/id/local-authority/00FC),Childrens Services,Education And Inclusion,Access And Education Services,Contract Hire-Operating Leases,Vehicles - Contract Hire,JC101,25/10/2021,695779,550,REVENUE,SMT (LINCS) ENTERPRISES LTD,141297
North East Lincolnshire Council,http://statistics.data.gov.uk/id/local-authority/00FC),Childrens Services,Education And Inclusion,Access And Education Services,Contract Hire-Operating Leases,Vehicles - Contract Hire,JC101,05/10/2021,692733,726,REVENUE,COXONS CARS LIMITED,100578
North East Lincolnshire Council,http://statistics.data.gov.uk/id/local-authority/00FC),Childrens Services,Education And Inclusion,Access And Education Services,Contract Hire-Operating Leases,Vehicles - Contract Hire,JC101,28/10/2021,696400,768,REVENUE,COXONS CARS LIMITED,100578
North East Lincolnshire Council,http://statistics.data.gov.uk/id/local-authority/00FC),Childrens Services,Education And Inclusion,Access And Education Services,Contract Hire-Operating Leases,Vehicles - Contract Hire,JC101,19/10/2021,694329,557.25,REVENUE,LINKS TAXIS,100546
North East Lincolnshire Council,http://statistics.data.gov.uk/id/local-authority/00FC),Childrens Services,Education And Inclusion,Access And Education Services,Contract Hire-Operating Leases,Vehicles - Contract Hire,JC101,14/10/2021,694194,300,REVENUE,SMT (LINCS) ENTERPRISES LTD,141297
North East Lincolnshire Council,http://statistics.data.gov.uk/id/local-authority/00FC),Childrens Services,Education And Inclusion,Access And Education Services,Contract Hire-Operating Leases,Vehicles - Contract Hire,JC101,19/10/2021,694405,770,REVENUE,SMT (LINCS) ENTERPRISES LTD,141297
North East Lincolnshire Council,http://statistics.data.gov.uk/id/local-authority/00FC),Childrens Services,Education And Inclusion,Access And Education Services,Contract Hire-Operating Leases,Vehicles - Contract Hire,JC101,25/10/2021,695882,550,REVENUE,SMT (LINCS) ENTERPRISES LTD,141297
North East Lincolnshire Council,http://statistics.data.gov.uk/id/local-authority/00FC),Childrens Services,Education And Inclusion,Access And Education Services,Contract Hire-Operating Leases,Vehicles - Contract Hire,JC101,18/10/2021,694438,936,REVENUE,AA RADIO CARS LTD,101222
North East Lincolnshire Council,http://statistics.data.gov.uk/id/local-authority/00FC),Childrens Services,Education And Inclusion,Access And Education Services,Contract Hire-Operating Leases,Vehicles - Contract Hire,JC101,19/10/2021,694404,760,REVENUE,SMT (LINCS) ENTERPRISES LTD,141297
North East Lincolnshire Council,http://statistics.data.gov.uk/id/local-authority/00FC),Childrens Services,Education And Inclusion,Access And Education Services,Contract Hire-Operating Leases,Vehicles - Contract Hire,JC101,26/10/2021,695855,1252,REVENUE,SMT (LINCS) ENTERPRISES LTD,141297
North East Lincolnshire Council,http://statistics.data.gov.uk/id/local-authority/00FC),Childrens Services,Education And Inclusion,Access And Education Services,Contract Hire-Operating Leases,Vehicles - Contract Hire,JC101,14/10/2021,694190,760,REVENUE,SMT (LINCS) ENTERPRISES LTD,141297
North East Lincolnshire Council,http://statistics.data.gov.uk/id/local-authority/00FC),Childrens Services,Education And Inclusion,Access And Education Services,Contract Hire-Operating Leases,Vehicles - Contract Hire,JC101,26/10/2021,695864,640,REVENUE,SMT (LINCS) ENTERPRISES LTD,141297
North East Lincolnshire Council,http://statistics.data.gov.uk/id/local-authority/00FC),Childrens Services,Education And Inclusion,Access And Education Services,Contract Hire-Operating Leases,Vehicles - Contract Hire,JC101,19/10/2021,694328,462,REVENUE,LINKS TAXIS,100546
North East Lincolnshire Council,http://statistics.data.gov.uk/id/local-authority/00FC),Childrens Services,Education And Inclusion,Access And Education Services,Contract Hire-Operating Leases,Vehicles - Contract Hire,JC101,14/10/2021,694181,855,REVENUE,SMT (LINCS) ENTERPRISES LTD,141297
North East Lincolnshire Council,http://statistics.data.gov.uk/id/local-authority/00FC),Childrens Services,Education And Inclusion,Access And Education Services,Contract Hire-Operating Leases,Vehicles - Contract Hire,JC101,25/10/2021,695880,720,REVENUE,SMT (LINCS) ENTERPRISES LTD,141297
North East Lincolnshire Council,http://statistics.data.gov.uk/id/local-authority/00FC),Childrens Services,Education And Inclusion,Access And Education Services,Contract Hire-Operating Leases,Vehicles - Contract Hire,JC101,19/10/2021,694425,752,REVENUE,LINKS TAXIS,100546
North East Lincolnshire Council,http://statistics.data.gov.uk/id/local-authority/00FC),Childrens Services,Education And Inclusion,Access And Education Services,Contract Hire-Operating Leases,Vehicles - Contract Hire,JC101,19/10/2021,694422,420,REVENUE,LINKS TAXIS,100546
North East Lincolnshire Council,http://statistics.data.gov.uk/id/local-authority/00FC),Childrens Services,Education And Inclusion,Access And Education Services,Contract Hire-Operating Leases,Vehicles - Contract Hire,JC101,19/10/2021,694298,798,REVENUE,LINKS TAXIS,100546
North East Lincolnshire Council,http://statistics.data.gov.uk/id/local-authority/00FC),Childrens Services,Education And Inclusion,Access And Education Services,Contract Hire-Operating Leases,Vehicles - Contract Hire,JC101,18/10/2021,694802,2550,REVENUE,BEST FUTURES COMMUNITY INTEREST COMPANY,128600
North East Lincolnshire Council,http://statistics.data.gov.uk/id/local-authority/00FC),Childrens Services,Education And Inclusion,Access And Education Services,Contract Hire-Operating Leases,Vehicles - Contract Hire,JC101,11/10/2021,693467,516.5,REVENUE,HANSONS AIRPORT EXPRESS,111879
North East Lincolnshire Council,http://statistics.data.gov.uk/id/local-authority/00FC),Childrens Services,Education And Inclusion,Access And Education Services,Contract Hire-Operating Leases,Vehicles - Contract Hire,JC101,14/10/2021,694188,840,REVENUE,SMT (LINCS) ENTERPRISES LTD,141297
North East Lincolnshire Council,http://statistics.data.gov.uk/id/local-authority/00FC),Childrens Services,Education And Inclusion,Access And Education Services,Contract Hire-Operating Leases,Vehicles - Contract Hire,JC101,25/10/2021,695883,640,REVENUE,SMT (LINCS) ENTERPRISES LTD,141297
North East Lincolnshire Council,http://statistics.data.gov.uk/id/local-authority/00FC),Childrens Services,Education And Inclusion,Access And Education Services,Contract Hire-Operating Leases,Vehicles - Contract Hire,JC101,19/10/2021,694390,600,REVENUE,SMT (LINCS) ENTERPRISES LTD,141297
North East Lincolnshire Council,http://statistics.data.gov.uk/id/local-authority/00FC),Childrens Services,Education And Inclusion,Access And Education Services,Contract Hire-Operating Leases,Vehicles - Contract Hire,JC101,26/10/2021,695784,800,REVENUE,SMT (LINCS) ENTERPRISES LTD,141297
North East Lincolnshire Council,http://statistics.data.gov.uk/id/local-authority/00FC),Childrens Services,Education And Inclusion,Access And Education Services,Contract Hire-Operating Leases,Vehicles - Contract Hire,JC101,19/10/2021,694379,945,REVENUE,SMT (LINCS) ENTERPRISES LTD,141297
North East Lincolnshire Council,http://statistics.data.gov.uk/id/local-authority/00FC),Childrens Services,Education And Inclusion,Access And Education Services,Contract Hire-Operating Leases,Vehicles - Contract Hire,JC101,26/10/2021,695790,720,REVENUE,SMT (LINCS) ENTERPRISES LTD,141297
North East Lincolnshire Council,http://statistics.data.gov.uk/id/local-authority/00FC),Childrens Services,Education And Inclusion,Access And Education Services,Contract Hire-Operating Leases,Vehicles - Contract Hire,JC101,19/10/2021,694397,1710,REVENUE,SMT (LINCS) ENTERPRISES LTD,141297
North East Lincolnshire Council,http://statistics.data.gov.uk/id/local-authority/00FC),Childrens Services,Education And Inclusion,Access And Education Services,Contract Hire-Operating Leases,Vehicles - Contract Hire,JC101,26/10/2021,695876,1440,REVENUE,SMT (LINCS) ENTERPRISES LTD,141297
North East Lincolnshire Council,http://statistics.data.gov.uk/id/local-authority/00FC),Childrens Services,Education And Inclusion,Access And Education Services,Contract Hire-Operating Leases,Vehicles - Contract Hire,JC101,07/10/2021,693100,1505,REVENUE,S&B PRIVATE HIRE,149599
North East Lincolnshire Council,http://statistics.data.gov.uk/id/local-authority/00FC),Childrens Services,Education And Inclusion,Access And Education Services,Contract Hire-Operating Leases,Vehicles - Contract Hire,JC101,26/10/2021,696240,1440,REVENUE,S&B PRIVATE HIRE,149599
North East Lincolnshire Council,http://statistics.data.gov.uk/id/local-authority/00FC),Childrens Services,Education And Inclusion,Access And Education Services,Contract Hire-Operating Leases,Vehicles - Contract Hire,JC101,14/10/2021,694187,1710,REVENUE,SMT (LINCS) ENTERPRISES LTD,141297
North East Lincolnshire Council,http://statistics.data.gov.uk/id/local-authority/00FC),Childrens Services,Education And Inclusion,Access And Education Services,Contract Hire-Operating Leases,Vehicles - Contract Hire,JC101,19/10/2021,694299,1303,REVENUE,LINKS TAXIS,100546
North East Lincolnshire Council,http://statistics.data.gov.uk/id/local-authority/00FC),Childrens Services,Education And Inclusion,Access And Education Services,Contract Hire-Operating Leases,Vehicles - Contract Hire,JC101,18/10/2021,694635,1386,REVENUE,AMVALE MEDICAL TRANSPORT LTD,130777
North East Lincolnshire Council,http://statistics.data.gov.uk/id/local-authority/00FC),Childrens Services,Education And Inclusion,Access And Education Services,Contract Hire-Operating Leases,Vehicles - Contract Hire,JC101,29/10/2021,696524,1584,REVENUE,AMVALE MEDICAL TRANSPORT LTD,130777
North East Lincolnshire Council,http://statistics.data.gov.uk/id/local-authority/00FC),Childrens Services,Education And Inclusion,Access And Education Services,Contract Hire-Operating Leases,Vehicles - Contract Hire,JC101,22/10/2021,695591,658,REVENUE,LINKS TAXIS,100546
North East Lincolnshire Council,http://statistics.data.gov.uk/id/local-authority/00FC),Childrens Services,Education And Inclusion,Access And Education Services,Contract Hire-Operating Leases,Vehicles - Contract Hire,JC101,19/10/2021,694456,518,REVENUE,LINKS TAXIS,100546
North East Lincolnshire Council,http://statistics.data.gov.uk/id/local-authority/00FC),Childrens Services,Education And Inclusion,Access And Education Services,Contract Hire-Operating Leases,Vehicles - Contract Hire,JC101,05/10/2021,692757,750,REVENUE,COXONS CARS LIMITED,100578
North East Lincolnshire Council,http://statistics.data.gov.uk/id/local-authority/00FC),Childrens Services,Education And Inclusion,Access And Education Services,Contract Hire-Operating Leases,Vehicles - Contract Hire,JC101,28/10/2021,696288,800,REVENUE,COXONS CARS LIMITED,100578
North East Lincolnshire Council,http://statistics.data.gov.uk/id/local-authority/00FC),Childrens Services,Education And Inclusion,Access And Education Services,Contract Hire-Operating Leases,Vehicles - Contract Hire,JC101,18/10/2021,694439,498,REVENUE,AA RADIO CARS LTD,101222
North East Lincolnshire Council,http://statistics.data.gov.uk/id/local-authority/00FC),Childrens Services,Education And Inclusion,Access And Education Services,Contract Hire-Operating Leases,Vehicles - Contract Hire,JC101,22/10/2021,695592,375,REVENUE,LINKS TAXIS,100546
North East Lincolnshire Council,http://statistics.data.gov.uk/id/local-authority/00FC),Childrens Services,Education And Inclusion,Access And Education Services,Contract Hire-Operating Leases,Vehicles - Contract Hire,JC101,05/10/2021,692734,792,REVENUE,COXONS CARS LIMITED,100578
North East Lincolnshire Council,http://statistics.data.gov.uk/id/local-authority/00FC),Childrens Services,Education And Inclusion,Access And Education Services,Contract Hire-Operating Leases,Vehicles - Contract Hire,JC101,28/10/2021,696399,720,REVENUE,COXONS CARS LIMITED,100578
North East Lincolnshire Council,http://statistics.data.gov.uk/id/local-authority/00FC),Childrens Services,Education And Inclusion,Access And Education Services,Contract Hire-Operating Leases,Vehicles - Contract Hire,JC101,19/10/2021,694420,775,REVENUE,LINKS TAXIS,100546
North East Lincolnshire Council,http://statistics.data.gov.uk/id/local-authority/00FC),Childrens Services,Education And Inclusion,Access And Education Services,Contract Hire-Operating Leases,Vehicles - Contract Hire,JC101,25/10/2021,695356,1116,REVENUE,LINKS TAXIS,100546
North East Lincolnshire Council,http://statistics.data.gov.uk/id/local-authority/00FC),Childrens Services,Education And Inclusion,Access And Education Services,Contract Hire-Operating Leases,Vehicles - Contract Hire,JC101,22/10/2021,695595,598,REVENUE,LINKS TAXIS,100546
North East Lincolnshire Council,http://statistics.data.gov.uk/id/local-authority/00FC),Childrens Services,Education And Inclusion,Access And Education Services,Contract Hire-Operating Leases,Vehicles - Contract Hire,JC101,05/10/2021,692758,540,REVENUE,COXONS CARS LIMITED,100578
North East Lincolnshire Council,http://statistics.data.gov.uk/id/local-authority/00FC),Childrens Services,Education And Inclusion,Access And Education Services,Contract Hire-Operating Leases,Vehicles - Contract Hire,JC101,28/10/2021,696402,540,REVENUE,COXONS CARS LIMITED,100578
North East Lincolnshire Council,http://statistics.data.gov.uk/id/local-authority/00FC),Childrens Services,Education And Inclusion,Access And Education Services,Contract Hire-Operating Leases,Vehicles - Contract Hire,JC101,19/10/2021,694332,893,REVENUE,LINKS TAXIS,100546
North East Lincolnshire Council,http://statistics.data.gov.uk/id/local-authority/00FC),Childrens Services,Education And Inclusion,Access And Education Services,Contract Hire-Operating Leases,Vehicles - Contract Hire,JC101,22/10/2021,695593,634.5,REVENUE,LINKS TAXIS,100546
North East Lincolnshire Council,http://statistics.data.gov.uk/id/local-authority/00FC),Childrens Services,Education And Inclusion,Access And Education Services,Contract Hire-Operating Leases,Vehicles - Contract Hire,JC101,18/10/2021,694442,416,REVENUE,AA RADIO CARS LTD,101222
North East Lincolnshire Council,http://statistics.data.gov.uk/id/local-authority/00FC),Childrens Services,Education And Inclusion,Access And Education Services,Contract Hire-Operating Leases,Vehicles - Contract Hire,JC101,14/10/2021,694444,460,REVENUE,AA RADIO CARS LTD,101222
North East Lincolnshire Council,http://statistics.data.gov.uk/id/local-authority/00FC),Childrens Services,Education And Inclusion,Access And Education Services,Contract Hire-Operating Leases,Vehicles - Contract Hire,JC101,11/10/2021,693671,2917.5,REVENUE,F HUNT (COACH HIRE) LTD,104034
North East Lincolnshire Council,http://statistics.data.gov.uk/id/local-authority/00FC),Childrens Services,Education And Inclusion,Access And Education Services,Contract Hire-Operating Leases,Vehicles - Contract Hire,JC101,18/10/2021,694805,522,REVENUE,AA RADIO CARS LTD,101222
North East Lincolnshire Council,http://statistics.data.gov.uk/id/local-authority/00FC),Childrens Services,Education And Inclusion,Access And Education Services,Contract Hire-Operating Leases,Vehicles - Contract Hire,JC101,19/10/2021,694377,2580,REVENUE,AMVALE LIMITED,101030
North East Lincolnshire Council,http://statistics.data.gov.uk/id/local-authority/00FC),Childrens Services,Education And Inclusion,Access And Education Services,Contract Hire-Operating Leases,Vehicles - Contract Hire,JC101,25/10/2021,695617,1935,REVENUE,AMVALE LIMITED,101030
North East Lincolnshire Council,http://statistics.data.gov.uk/id/local-authority/00FC),Childrens Services,Education And Inclusion,Access And Education Services,Contract Hire-Operating Leases,Vehicles - Contract Hire,JC101,19/10/2021,694375,2780,REVENUE,AMVALE LIMITED,101030
North East Lincolnshire Council,http://statistics.data.gov.uk/id/local-authority/00FC),Childrens Services,Education And Inclusion,Access And Education Services,Contract Hire-Operating Leases,Vehicles - Contract Hire,JC101,25/10/2021,695618,2085,REVENUE,AMVALE LIMITED,101030
North East Lincolnshire Council,http://statistics.data.gov.uk/id/local-authority/00FC),Childrens Services,Education And Inclusion,Access And Education Services,Contract Hire-Operating Leases,Vehicles - Contract Hire,JC101,19/10/2021,694370,2898,REVENUE,AMVALE LIMITED,101030
North East Lincolnshire Council,http://statistics.data.gov.uk/id/local-authority/00FC),Childrens Services,Education And Inclusion,Access And Education Services,Contract Hire-Operating Leases,Vehicles - Contract Hire,JC101,25/10/2021,695619,2070,REVENUE,AMVALE LIMITED,101030
North East Lincolnshire Council,http://statistics.data.gov.uk/id/local-authority/00FC),Childrens Services,Education And Inclusion,Access And Education Services,Contract Hire-Operating Leases,Vehicles - Contract Hire,JC101,19/10/2021,694886,490.28,REVENUE,MINICABS CLEETHORPES (LINCS) LTD,102124
North East Lincolnshire Council,http://statistics.data.gov.uk/id/local-authority/00FC),Childrens Services,Education And Inclusion,Access And Education Services,Direct Employee Expenses,Agency Supply Teachers,EA104,11/10/2021,693728,350,REVENUE,BENJAMIN NUNN,143807
North East Lincolnshire Council,http://statistics.data.gov.uk/id/local-authority/00FC),Childrens Services,Education And Inclusion,Access And Education Services,Direct Employee Expenses,Agency Supply Teachers,EA104,11/10/2021,693729,525,REVENUE,BENJAMIN NUNN,143807
North East Lincolnshire Council,http://statistics.data.gov.uk/id/local-authority/00FC),Childrens Services,Education And Inclusion,Access And Education Services,Direct Employee Expenses,Agency Supply Teachers,EA104,11/10/2021,693726,350,REVENUE,BENJAMIN NUNN,143807
North East Lincolnshire Council,http://statistics.data.gov.uk/id/local-authority/00FC),Childrens Services,Education And Inclusion,Access And Education Services,Direct Employee Expenses,Agency Supply Teachers,EA104,18/10/2021,694355,525,REVENUE,EMMA MIDDLETON,105103
North East Lincolnshire Council,http://statistics.data.gov.uk/id/local-authority/00FC),Childrens Services,Education And Inclusion,Access And Education Services,Direct Employee Expenses,Agency Supply Teachers,EA104,11/10/2021,693727,525,REVENUE,BENJAMIN NUNN,143807
North East Lincolnshire Council,http://statistics.data.gov.uk/id/local-authority/00FC),Childrens Services,Education And Inclusion,Access And Education Services,Direct Employee Expenses,Agency Supply Teachers,EA104,11/10/2021,693564,262.5,REVENUE,MAUREEN BROMLEY,100804
North East Lincolnshire Council,http://statistics.data.gov.uk/id/local-authority/00FC),Childrens Services,Education And Inclusion,Access And Education Services,Direct Employee Expenses,Agency Supply Teachers,EA104,19/10/2021,694921,350,REVENUE,REBECCA SMITH,149672
North East Lincolnshire Council,http://statistics.data.gov.uk/id/local-authority/00FC),Childrens Services,Education And Inclusion,Access And Education Services,Direct Employee Expenses,Agency Supply Teachers,EA104,11/10/2021,693565,1470,REVENUE,ZOE EVERATT,106842
North East Lincolnshire Council,http://statistics.data.gov.uk/id/local-authority/00FC),Childrens Services,Education And Inclusion,Access And Education Services,Direct Employee Expenses,Agency Supply Teachers,EA104,28/10/2021,696501,330,REVENUE,ZOE EVERATT,106842
North East Lincolnshire Council,http://statistics.data.gov.uk/id/local-authority/00FC),Childrens Services,Education And Inclusion,Access And Education Services,Direct Employee Expenses,Agency Supply Teachers,EA104,11/10/2021,693665,262.5,REVENUE,KEVIN ROGERS,101480
North East Lincolnshire Council,http://statistics.data.gov.uk/id/local-authority/00FC),Childrens Services,Education And Inclusion,Access And Education Services,Direct Employee Expenses,Agency Supply Teachers,EA104,05/10/2021,692773,350,REVENUE,RYAN A RYDER,148821
North East Lincolnshire Council,http://statistics.data.gov.uk/id/local-authority/00FC),Childrens Services,Education And Inclusion,Access And Education Services,Direct Employee Expenses,Agency Supply Teachers,EA104,12/10/2021,693829,1450,REVENUE,JACQUELINE KIRWIN,107311
North East Lincolnshire Council,http://statistics.data.gov.uk/id/local-authority/00FC),Childrens Services,Education And Inclusion,Access And Education Services,Indirect Employee Expenses,Staff Training,EB122,04/10/2021,692539,460,REVENUE,SING UP,110186
North East Lincolnshire Council,http://statistics.data.gov.uk/id/local-authority/00FC),Childrens Services,Education And Inclusion,Access And Education Services,Rents,Rent,GC101,12/10/2021,693419,1250,REVENUE,JOHN WHITGIFT ACADEMY,106898
North East Lincolnshire Council,http://statistics.data.gov.uk/id/local-authority/00FC),Childrens Services,Education And Inclusion,Access And Education Services,Miscellaneous Expenses,Other Expenses General,LL119,04/10/2021,692562,330,REVENUE,ROY LAUGHTON,100543
North East Lincolnshire Council,http://statistics.data.gov.uk/id/local-authority/00FC),Childrens Services,Education And Inclusion,Access And Education Services,Miscellaneous Expenses,Other Expenses General,LL119,26/10/2021,695767,1188,REVENUE,THE UK ASSOCIATION FOR MUSIC EDUCATION,135418
North East Lincolnshire Council,http://statistics.data.gov.uk/id/local-authority/00FC),Childrens Services,Education And Inclusion,Access And Education Services,Private Contractors,Third Party Prov - Private,PH101,04/10/2021,692541,2400,REVENUE,STEPHEN WILD,149777
North East Lincolnshire Council,http://statistics.data.gov.uk/id/local-authority/00FC),Childrens Services,Education And Inclusion,Access And Education Services,Other Agencies,Other,PJ121,01/10/2021,692519,1200,REVENUE,EMMA MIDDLETON,105103
North East Lincolnshire Council,http://statistics.data.gov.uk/id/local-authority/00FC),Childrens Services,Education And Inclusion,Access And Education Services,Other Agencies,Other,PJ121,18/10/2021,694858,1200,REVENUE,EMMA MIDDLETON,105103
North East Lincolnshire Council,http://statistics.data.gov.uk/id/local-authority/00FC),Childrens Services,Education And Inclusion,Access And Education Services,Other Agencies,Performers,PJ101,22/10/2021,695355,5250,REVENUE,LEICESTERSHIRE COUNTY COUNCIL,100872
North East Lincolnshire Council,http://statistics.data.gov.uk/id/local-authority/00FC),Childrens Services,Education And Inclusion,Access And Education Services,Other Agencies,Performers,PJ101,25/10/2021,695354,5250,REVENUE,LEICESTERSHIRE COUNTY COUNCIL,100872
North East Lincolnshire Council,http://statistics.data.gov.uk/id/local-authority/00FC),Childrens Services,Education And Inclusion,Access And Education Services,Other Agencies,Performers,PJ101,22/10/2021,695353,650,REVENUE,LEICESTERSHIRE COUNTY COUNCIL,100872
North East Lincolnshire Council,http://statistics.data.gov.uk/id/local-authority/00FC),Childrens Services,Education And Inclusion,Access And Education Services,Other Agencies,Tuition,PJ112,26/10/2021,971837,250,REVENUE,REDACTED PERSONAL INFORMATION,REDACTED PERSONAL INFORMATION
North East Lincolnshire Council,http://statistics.data.gov.uk/id/local-authority/00FC),Childrens Services,Education And Inclusion,Access And Education Services,Other Agencies,Tuition,PJ112,04/10/2021,692540,337.5,REVENUE,SUE BURNHAM,145697
North East Lincolnshire Council,http://statistics.data.gov.uk/id/local-authority/00FC),Childrens Services,Education And Inclusion,Access And Education Services,Other Agencies,Tuition,PJ112,08/10/2021,693225,300,REVENUE,EDUCLA,147507
North East Lincolnshire Council,http://statistics.data.gov.uk/id/local-authority/00FC),Childrens Services,Education And Inclusion,Access And Education Services,Contract Hire-Operating Leases,Vehicles - Contract Hire,JC101,14/10/2021,694445,3357.28,REVENUE,FRANKLIN COLLEGE,101073
North East Lincolnshire Council,http://statistics.data.gov.uk/id/local-authority/00FC),Childrens Services,Education And Inclusion,Access And Education Services,Contract Hire-Operating Leases,Vehicles - Contract Hire,JC101,18/10/2021,694828,-562.53,REVENUE,FRANKLIN COLLEGE,101073
North East Lincolnshire Council,http://statistics.data.gov.uk/id/local-authority/00FC),Childrens Services,Education And Inclusion,Access And Education Services,Contract Hire-Operating Leases,Vehicles - Contract Hire,JC101,18/10/2021,694345,12912.2,REVENUE,FRANKLIN COLLEGE,101073
North East Lincolnshire Council,http://statistics.data.gov.uk/id/local-authority/00FC),Childrens Services,Education And Inclusion,Access And Education Services,Contract Hire-Operating Leases,Vehicles - Contract Hire,JC101,18/10/2021,694346,8409.72,REVENUE,FRANKLIN COLLEGE,101073
North East Lincolnshire Council,http://statistics.data.gov.uk/id/local-authority/00FC),Childrens Services,Education And Inclusion,Earning & Learning,Rents,Rent,GC101,05/10/2021,692654,19500,REVENUE,FORESIGHT NEL LTD,102869
North East Lincolnshire Council,http://statistics.data.gov.uk/id/local-authority/00FC),Childrens Services,Education And Inclusion,Earning & Learning,Rents,Rent,GC101,07/10/2021,693126,19500,REVENUE,FORESIGHT NEL LTD,102869
North East Lincolnshire Council,http://statistics.data.gov.uk/id/local-authority/00FC),Childrens Services,Education And Inclusion,Sen/Inclusion,Direct Employee Expenses,Agency Staff,EA105,19/10/2021,690717,653.05,REVENUE,ON LINE PEOPLE LTD,144850
North East Lincolnshire Council,http://statistics.data.gov.uk/id/local-authority/00FC),Childrens Services,Education And Inclusion,Sen/Inclusion,Direct Employee Expenses,Agency Staff,EA105,21/10/2021,695472,653.05,REVENUE,ON LINE PEOPLE LTD,144850
North East Lincolnshire Council,http://statistics.data.gov.uk/id/local-authority/00FC),Childrens Services,Education And Inclusion,Sen/Inclusion,Direct Employee Expenses,Agency Staff,EA105,21/10/2021,695474,547.15,REVENUE,ON LINE PEOPLE LTD,144850
North East Lincolnshire Council,http://statistics.data.gov.uk/id/local-authority/00FC),Childrens Services,Education And Inclusion,Sen/Inclusion,Direct Employee Expenses,Agency Staff,EA105,22/10/2021,695473,653.05,REVENUE,ON LINE PEOPLE LTD,144850
North East Lincolnshire Council,http://statistics.data.gov.uk/id/local-authority/00FC),Childrens Services,Education And Inclusion,Sen/Inclusion,Miscellaneous Expenses,Contingency Reserve,LL123,21/10/2021,695266,8700,REVENUE,THE CAMBRIDGE PARK ACADEMY,107472
North East Lincolnshire Council,http://statistics.data.gov.uk/id/local-authority/00FC),Childrens Services,Education And Inclusion,Sen/Inclusion,Miscellaneous Expenses,Contingency Reserve,LL123,11/10/2021,693761,2456.68,REVENUE,BURSAR PRIMARY ACADEMY,111550
North East Lincolnshire Council,http://statistics.data.gov.uk/id/local-authority/00FC),Childrens Services,Education And Inclusion,Sen/Inclusion,Miscellaneous Expenses,Contingency Reserve,LL123,11/10/2021,693473,3253.53,REVENUE,MACAULAY PRIMARY ACADEMY,112680
North East Lincolnshire Council,http://statistics.data.gov.uk/id/local-authority/00FC),Childrens Services,Education And Inclusion,Sen/Inclusion,Voluntary Associations,Third Pp - Third Sector,PF101,11/10/2021,693425,19625,REVENUE,BARNARDO SERVICES LTD,101050
North East Lincolnshire Council,http://statistics.data.gov.uk/id/local-authority/00FC),Childrens Services,Education And Inclusion,Sen/Inclusion,Direct Employee Expenses,Agency Staff,EA105,11/10/2021,693563,16950,REVENUE,THE UNIVERSITY OF SHEFFIELD,128707
North East Lincolnshire Council,http://statistics.data.gov.uk/id/local-authority/00FC),Childrens Services,Education And Inclusion,Sen/Inclusion,Contributions To Provisions,Contributions - Other,LK103,22/10/2021,695487,1174.5,REVENUE,COMMUNITY ACCORD,106613
North East Lincolnshire Council,http://statistics.data.gov.uk/id/local-authority/00FC),Childrens Services,Education And Inclusion,Sen/Inclusion,Communications And Computing,Computer S/Ware - Purchases,LF101,15/10/2021,694715,320.28,REVENUE,BALLICOM LIMITED,149429
North East Lincolnshire Council,http://statistics.data.gov.uk/id/local-authority/00FC),Childrens Services,Education And Inclusion,Sen/Inclusion,Other Local Authorities,Third Pp - Other Local Auth,PC101,22/10/2021,695489,1750.4,REVENUE,REDACTED PERSONAL INFORMATION,REDACTED PERSONAL INFORMATION
North East Lincolnshire Council,http://statistics.data.gov.uk/id/local-authority/00FC),Childrens Services,Education And Inclusion,Sen/Inclusion,Private Contractors,Third Party Prov - Private,PH101,04/10/2021,692556,2296.67,REVENUE,LINKAGE COMMUNITY TRUST,100343
North East Lincolnshire Council,http://statistics.data.gov.uk/id/local-authority/00FC),Childrens Services,Education And Inclusion,Sen/Inclusion,Private Contractors,Third Party Prov - Private,PH101,04/10/2021,692558,2295,REVENUE,LINKAGE COMMUNITY TRUST,100343
North East Lincolnshire Council,http://statistics.data.gov.uk/id/local-authority/00FC),Childrens Services,Education And Inclusion,Sen/Inclusion,Private Contractors,Third Party Prov - Private,PH101,12/10/2021,693493,18391.38,REVENUE,LEARNING4LIFE-GY-CIC,144120
North East Lincolnshire Council,http://statistics.data.gov.uk/id/local-authority/00FC),Childrens Services,Education And Inclusion,Sen/Inclusion,Private Contractors,Third Party Prov - Private,PH101,15/10/2021,694661,1005.45,REVENUE,CPO MEDIA,102186
North East Lincolnshire Council,http://statistics.data.gov.uk/id/local-authority/00FC),Childrens Services,Education And Inclusion,Sen/Inclusion,Miscellaneous Expenses,Contingency Reserve,LL123,21/10/2021,695274,1417,REVENUE,PHOENIX PARK ACADEMY,126685
North East Lincolnshire Council,http://statistics.data.gov.uk/id/local-authority/00FC),Childrens Services,Education And Inclusion,Sen/Inclusion,Miscellaneous Expenses,Contingency Reserve,LL123,21/10/2021,695276,17000,REVENUE,PHOENIX PARK ACADEMY,126685
North East Lincolnshire Council,http://statistics.data.gov.uk/id/local-authority/00FC),Childrens Services,Education And Inclusion,Sen/Inclusion,Miscellaneous Expenses,Contingency Reserve,LL123,21/10/2021,695275,48167,REVENUE,PHOENIX PARK ACADEMY,126685
North East Lincolnshire Council,http://statistics.data.gov.uk/id/local-authority/00FC),Childrens Services,Education And Inclusion,Sen/Inclusion,Miscellaneous Expenses,Contingency Reserve,LL123,21/10/2021,695277,28333,REVENUE,SEVENHILLS ACADEMY,128660
North East Lincolnshire Council,http://statistics.data.gov.uk/id/local-authority/00FC),Childrens Services,Education And Inclusion,Sen/Inclusion,Miscellaneous Expenses,Contingency Reserve,LL123,21/10/2021,695278,28333,REVENUE,SEVENHILLS ACADEMY,128660
North East Lincolnshire Council,http://statistics.data.gov.uk/id/local-authority/00FC),Childrens Services,Education And Inclusion,Sen/Inclusion,Contributions To Provisions,Contributions - Other,LK103,21/10/2021,695267,1700,REVENUE,THE CAMBRIDGE PARK ACADEMY,107472
North East Lincolnshire Council,http://statistics.data.gov.uk/id/local-authority/00FC),Childrens Services,Education And Inclusion,Sen/Inclusion,Contributions To Provisions,Contributions - Other,LK103,15/10/2021,694650,575,REVENUE,WELLSPRING ACADEMY TRUST,143489
North East Lincolnshire Council,http://statistics.data.gov.uk/id/local-authority/00FC),Childrens Services,Education And Inclusion,Sen/Inclusion,Contributions To Provisions,Contributions - Third Sector,LK102,26/10/2021,972091,935,REVENUE,REDACTED PERSONAL INFORMATION,REDACTED PERSONAL INFORMATION
North East Lincolnshire Council,http://statistics.data.gov.uk/id/local-authority/00FC),Childrens Services,Education And Inclusion,Sen/Inclusion,Contributions To Provisions,Contributions - Third Sector,LK102,11/10/2021,693696,368,REVENUE,PRIORY GROUP NORTHERN OFFICE,109109
North East Lincolnshire Council,http://statistics.data.gov.uk/id/local-authority/00FC),Childrens Services,Education And Inclusion,Sen/Inclusion,Contributions To Provisions,Contributions - Third Sector,LK102,11/10/2021,693695,464.54,REVENUE,TEACHING PERSONNEL LTD,101305
North East Lincolnshire Council,http://statistics.data.gov.uk/id/local-authority/00FC),Childrens Services,Education And Inclusion,Sen/Inclusion,Contributions To Provisions,Contributions - Third Sector,LK102,11/10/2021,693690,303.55,REVENUE,PC WORLD BUSINESS,120051
North East Lincolnshire Council,http://statistics.data.gov.uk/id/local-authority/00FC),Childrens Services,Education And Inclusion,Sen/Inclusion,Contributions To Provisions,Contributions - Third Sector,LK102,11/10/2021,693689,1190,REVENUE,THE HUNTERCOMBE GROUP,143993
North East Lincolnshire Council,http://statistics.data.gov.uk/id/local-authority/00FC),Childrens Services,Education And Inclusion,Sen/Inclusion,Contributions To Provisions,Contributions - Third Sector,LK102,11/10/2021,693688,3783.33,REVENUE,HOLLY LITTLEWOOD,148641
North East Lincolnshire Council,http://statistics.data.gov.uk/id/local-authority/00FC),Childrens Services,Education And Inclusion,Sen/Inclusion,Contributions To Provisions,Contributions - Third Sector,LK102,22/10/2021,695486,2093.08,REVENUE,AK PAYROLL SERVICES LTD,145107
North East Lincolnshire Council,http://statistics.data.gov.uk/id/local-authority/00FC),Childrens Services,Education And Inclusion,Sen/Inclusion,Contributions To Provisions,Contributions - Third Sector,LK102,15/10/2021,694660,1410,REVENUE,TARGETED PROVISION LTD,146662
North East Lincolnshire Council,http://statistics.data.gov.uk/id/local-authority/00FC),Childrens Services,Education And Inclusion,Sen/Inclusion,Contributions To Provisions,Contributions - Third Sector,LK102,15/10/2021,694655,390,REVENUE,TARGETED PROVISION LTD,146662
North East Lincolnshire Council,http://statistics.data.gov.uk/id/local-authority/00FC),Childrens Services,Education And Inclusion,Sen/Inclusion,Contributions To Provisions,Contributions - Third Sector,LK102,15/10/2021,694653,975,REVENUE,TARGETED PROVISION LTD,146662
North East Lincolnshire Council,http://statistics.data.gov.uk/id/local-authority/00FC),Childrens Services,Education And Inclusion,Sen/Inclusion,Contributions To Provisions,Contributions - Third Sector,LK102,15/10/2021,694658,550,REVENUE,TARGETED PROVISION LTD,146662
North East Lincolnshire Council,http://statistics.data.gov.uk/id/local-authority/00FC),Childrens Services,Education And Inclusion,Sen/Inclusion,Contributions To Provisions,Contributions - Third Sector,LK102,15/10/2021,694659,302.5,REVENUE,TARGETED PROVISION LTD,146662
North East Lincolnshire Council,http://statistics.data.gov.uk/id/local-authority/00FC),Childrens Services,Education And Inclusion,Sen/Inclusion,Contributions To Provisions,Contributions - Third Sector,LK102,15/10/2021,694656,330,REVENUE,TARGETED PROVISION LTD,146662
North East Lincolnshire Council,http://statistics.data.gov.uk/id/local-authority/00FC),Childrens Services,Education And Inclusion,Sen/Inclusion,Contributions To Provisions,Contributions - Third Sector,LK102,15/10/2021,694654,1402.5,REVENUE,TARGETED PROVISION LTD,146662
North East Lincolnshire Council,http://statistics.data.gov.uk/id/local-authority/00FC),Childrens Services,Education And Inclusion,Sen/Inclusion,Contributions To Provisions,Contributions - Third Sector,LK102,15/10/2021,694657,1980,REVENUE,TARGETED PROVISION LTD,146662
North East Lincolnshire Council,http://statistics.data.gov.uk/id/local-authority/00FC),Childrens Services,Education And Inclusion,Sen/Inclusion,Contributions To Provisions,Contributions - Third Sector,LK102,18/10/2021,694771,524.79,REVENUE,PC WORLD BUSINESS,120051
North East Lincolnshire Council,http://statistics.data.gov.uk/id/local-authority/00FC),Childrens Services,Education And Inclusion,Sen/Inclusion,Contributions To Provisions,Contributions - Third Sector,LK102,15/10/2021,694651,464.54,REVENUE,TEACHING PERSONNEL LTD,101305
North East Lincolnshire Council,http://statistics.data.gov.uk/id/local-authority/00FC),Childrens Services,Education And Inclusion,Sen/Inclusion,Contributions To Provisions,Contributions - Third Sector,LK102,22/10/2021,695562,5555.46,REVENUE,MACAULAY PRIMARY ACADEMY,112680
North East Lincolnshire Council,http://statistics.data.gov.uk/id/local-authority/00FC),Childrens Services,Education And Inclusion,Sen/Inclusion,Contributions To Provisions,Contributions - Third Sector,LK102,22/10/2021,695561,650,REVENUE,CHANGING LIVES THROUGH CHANGING MINDS,146329
North East Lincolnshire Council,http://statistics.data.gov.uk/id/local-authority/00FC),Childrens Services,Education And Inclusion,Sen/Inclusion,Contributions To Provisions,Contributions - Third Sector,LK102,25/10/2021,695731,3312,REVENUE,PRIORY GROUP,147103
North East Lincolnshire Council,http://statistics.data.gov.uk/id/local-authority/00FC),Childrens Services,Education And Inclusion,Sen/Inclusion,Contributions To Provisions,Contributions - Third Sector,LK102,25/10/2021,695732,3128,REVENUE,PRIORY GROUP,147103
North East Lincolnshire Council,http://statistics.data.gov.uk/id/local-authority/00FC),Childrens Services,Education And Inclusion,Sen/Inclusion,Miscellaneous Expenses,Contingency Reserve,LL123,21/10/2021,695268,155534,REVENUE,THE CAMBRIDGE PARK ACADEMY,107472
North East Lincolnshire Council,http://statistics.data.gov.uk/id/local-authority/00FC),Childrens Services,Education And Inclusion,Sen/Inclusion,Miscellaneous Expenses,Contingency Reserve,LL123,21/10/2021,695265,9817,REVENUE,THE CAMBRIDGE PARK ACADEMY,107472
North East Lincolnshire Council,http://statistics.data.gov.uk/id/local-authority/00FC),Childrens Services,Education And Inclusion,Sen/Inclusion,Miscellaneous Expenses,Contingency Reserve,LL123,21/10/2021,695269,9817,REVENUE,HUMBERSTON PARK SPECIAL SCHOOL,107911
North East Lincolnshire Council,http://statistics.data.gov.uk/id/local-authority/00FC),Childrens Services,Education And Inclusion,Sen/Inclusion,Miscellaneous Expenses,Contingency Reserve,LL123,21/10/2021,695270,122718,REVENUE,HUMBERSTON PARK SPECIAL SCHOOL,107911
North East Lincolnshire Council,http://statistics.data.gov.uk/id/local-authority/00FC),Childrens Services,Education And Inclusion,Sen/Inclusion,Miscellaneous Expenses,Other Expenses General,LL119,21/10/2021,695272,6000,REVENUE,EASTFIELD PRIMARY ACADEMY,121907
North East Lincolnshire Council,http://statistics.data.gov.uk/id/local-authority/00FC),Childrens Services,Education And Inclusion,Sen/Inclusion,Miscellaneous Expenses,Other Expenses General,LL119,21/10/2021,695273,1958,REVENUE,EASTFIELD PRIMARY ACADEMY,121907
North East Lincolnshire Council,http://statistics.data.gov.uk/id/local-authority/00FC),Childrens Services,Education And Inclusion,Sen/Inclusion,Miscellaneous Expenses,Other Expenses General,LL119,21/10/2021,695271,9000,REVENUE,EASTFIELD PRIMARY ACADEMY,121907
North East Lincolnshire Council,http://statistics.data.gov.uk/id/local-authority/00FC),Childrens Services,Education And Inclusion,Sen/Inclusion,Other Local Authorities,Third Pp - Other Local Auth,PC101,18/10/2021,691618,246051.33,REVENUE,REDACTED PERSONAL INFORMATION,REDACTED PERSONAL INFORMATION
North East Lincolnshire Council,http://statistics.data.gov.uk/id/local-authority/00FC),Childrens Services,Education And Inclusion,Sen/Inclusion,Other Local Authorities,Third Pp - Other Local Auth,PC101,18/10/2021,691638,-3436.65,REVENUE,REDACTED PERSONAL INFORMATION,REDACTED PERSONAL INFORMATION
North East Lincolnshire Council,http://statistics.data.gov.uk/id/local-authority/00FC),Childrens Services,Education And Inclusion,Sen/Inclusion,Other Local Authorities,Third Pp - Other Local Auth,PC101,12/10/2021,693762,4991,REVENUE,REDACTED PERSONAL INFORMATION,REDACTED PERSONAL INFORMATION
North East Lincolnshire Council,http://statistics.data.gov.uk/id/local-authority/00FC),Childrens Services,Education And Inclusion,Sen/Inclusion,Other Local Authorities,Third Pp - Other Local Auth,PC101,12/10/2021,693673,4830,REVENUE,REDACTED PERSONAL INFORMATION,REDACTED PERSONAL INFORMATION
North East Lincolnshire Council,http://statistics.data.gov.uk/id/local-authority/00FC),Childrens Services,Education And Inclusion,Sen/Inclusion,Other Local Authorities,Third Pp - Other Local Auth,PC101,12/10/2021,693702,3920,REVENUE,REDACTED PERSONAL INFORMATION,REDACTED PERSONAL INFORMATION
North East Lincolnshire Council,http://statistics.data.gov.uk/id/local-authority/00FC),Childrens Services,Education And Inclusion,Sen/Inclusion,Other Local Authorities,Third Pp - Other Local Auth,PC101,22/10/2021,695507,1127,REVENUE,REDACTED PERSONAL INFORMATION,REDACTED PERSONAL INFORMATION
North East Lincolnshire Council,http://statistics.data.gov.uk/id/local-authority/00FC),Childrens Services,Education And Inclusion,Sen/Inclusion,Other Local Authorities,Third Pp - Other Local Auth,PC101,22/10/2021,695508,4221.8,REVENUE,REDACTED PERSONAL INFORMATION,REDACTED PERSONAL INFORMATION
North East Lincolnshire Council,http://statistics.data.gov.uk/id/local-authority/00FC),Childrens Services,Education And Inclusion,Sen/Inclusion,Other Local Authorities,Third Pp - Other Local Auth,PC101,11/10/2021,693496,3415.5,REVENUE,REDACTED PERSONAL INFORMATION,REDACTED PERSONAL INFORMATION
North East Lincolnshire Council,http://statistics.data.gov.uk/id/local-authority/00FC),Childrens Services,Education And Inclusion,Sen/Inclusion,Other Local Authorities,Third Pp - Other Local Auth,PC101,12/10/2021,693495,3415.5,REVENUE,REDACTED PERSONAL INFORMATION,REDACTED PERSONAL INFORMATION
North East Lincolnshire Council,http://statistics.data.gov.uk/id/local-authority/00FC),Childrens Services,Education And Inclusion,Sen/Inclusion,Other Local Authorities,Third Pp - Other Local Auth,PC101,11/10/2021,693424,42360.47,REVENUE,REDACTED PERSONAL INFORMATION,REDACTED PERSONAL INFORMATION
North East Lincolnshire Council,http://statistics.data.gov.uk/id/local-authority/00FC),Childrens Services,Education And Inclusion,Sen/Inclusion,Other Local Authorities,Third Pp - Other Local Auth,PC101,11/10/2021,693427,3456,REVENUE,REDACTED PERSONAL INFORMATION,REDACTED PERSONAL INFORMATION
North East Lincolnshire Council,http://statistics.data.gov.uk/id/local-authority/00FC),Childrens Services,Education And Inclusion,Sen/Inclusion,Other Local Authorities,Third Pp - Other Local Auth,PC101,22/10/2021,695512,4326.74,REVENUE,REDACTED PERSONAL INFORMATION,REDACTED PERSONAL INFORMATION
North East Lincolnshire Council,http://statistics.data.gov.uk/id/local-authority/00FC),Childrens Services,Education And Inclusion,Sen/Inclusion,Other Local Authorities,Third Pp - Other Local Auth,PC101,22/10/2021,695514,4326.74,REVENUE,REDACTED PERSONAL INFORMATION,REDACTED PERSONAL INFORMATION
North East Lincolnshire Council,http://statistics.data.gov.uk/id/local-authority/00FC),Childrens Services,Education And Inclusion,Sen/Inclusion,Other Local Authorities,Third Pp - Other Local Auth,PC101,22/10/2021,695515,3666.74,REVENUE,REDACTED PERSONAL INFORMATION,REDACTED PERSONAL INFORMATION
North East Lincolnshire Council,http://statistics.data.gov.uk/id/local-authority/00FC),Childrens Services,Education And Inclusion,Sen/Inclusion,Other Local Authorities,Third Pp - Other Local Auth,PC101,22/10/2021,695516,4766.74,REVENUE,REDACTED PERSONAL INFORMATION,REDACTED PERSONAL INFORMATION
North East Lincolnshire Council,http://statistics.data.gov.uk/id/local-authority/00FC),Childrens Services,Education And Inclusion,Sen/Inclusion,Other Local Authorities,Third Pp - Other Local Auth,PC101,22/10/2021,695517,4400,REVENUE,REDACTED PERSONAL INFORMATION,REDACTED PERSONAL INFORMATION
North East Lincolnshire Council,http://statistics.data.gov.uk/id/local-authority/00FC),Childrens Services,Education And Inclusion,Sen/Inclusion,Other Local Authorities,Third Pp - Other Local Auth,PC101,11/10/2021,693366,5906.25,REVENUE,REDACTED PERSONAL INFORMATION,REDACTED PERSONAL INFORMATION
North East Lincolnshire Council,http://statistics.data.gov.uk/id/local-authority/00FC),Childrens Services,Education And Inclusion,Sen/Inclusion,Other Local Authorities,Third Pp - Other Local Auth,PC101,11/10/2021,693367,3656.25,REVENUE,REDACTED PERSONAL INFORMATION,REDACTED PERSONAL INFORMATION
North East Lincolnshire Council,http://statistics.data.gov.uk/id/local-authority/00FC),Childrens Services,Education And Inclusion,Sen/Inclusion,Other Local Authorities,Third Pp - Other Local Auth,PC101,11/10/2021,693368,2250,REVENUE,REDACTED PERSONAL INFORMATION,REDACTED PERSONAL INFORMATION
North East Lincolnshire Council,http://statistics.data.gov.uk/id/local-authority/00FC),Childrens Services,Education And Inclusion,Sen/Inclusion,Other Local Authorities,Third Pp - Other Local Auth,PC101,11/10/2021,693369,5906.25,REVENUE,REDACTED PERSONAL INFORMATION,REDACTED PERSONAL INFORMATION
North East Lincolnshire Council,http://statistics.data.gov.uk/id/local-authority/00FC),Childrens Services,Education And Inclusion,Sen/Inclusion,Other Local Authorities,Third Pp - Other Local Auth,PC101,11/10/2021,693370,5906.25,REVENUE,REDACTED PERSONAL INFORMATION,REDACTED PERSONAL INFORMATION
North East Lincolnshire Council,http://statistics.data.gov.uk/id/local-authority/00FC),Childrens Services,Education And Inclusion,Sen/Inclusion,Other Local Authorities,Third Pp - Other Local Auth,PC101,11/10/2021,693371,5906.25,REVENUE,REDACTED PERSONAL INFORMATION,REDACTED PERSONAL INFORMATION
North East Lincolnshire Council,http://statistics.data.gov.uk/id/local-authority/00FC),Childrens Services,Education And Inclusion,Sen/Inclusion,Other Local Authorities,Third Pp - Other Local Auth,PC101,11/10/2021,693372,5906.25,REVENUE,REDACTED PERSONAL INFORMATION,REDACTED PERSONAL INFORMATION
North East Lincolnshire Council,http://statistics.data.gov.uk/id/local-authority/00FC),Childrens Services,Education And Inclusion,Sen/Inclusion,Other Local Authorities,Third Pp - Other Local Auth,PC101,11/10/2021,693373,3656.25,REVENUE,REDACTED PERSONAL INFORMATION,REDACTED PERSONAL INFORMATION
North East Lincolnshire Council,http://statistics.data.gov.uk/id/local-authority/00FC),Childrens Services,Education And Inclusion,Sen/Inclusion,Other Local Authorities,Third Pp - Other Local Auth,PC101,11/10/2021,693374,5906.25,REVENUE,REDACTED PERSONAL INFORMATION,REDACTED PERSONAL INFORMATION
North East Lincolnshire Council,http://statistics.data.gov.uk/id/local-authority/00FC),Childrens Services,Education And Inclusion,Sen/Inclusion,Other Local Authorities,Third Pp - Other Local Auth,PC101,12/10/2021,693276,5906.25,REVENUE,REDACTED PERSONAL INFORMATION,REDACTED PERSONAL INFORMATION
North East Lincolnshire Council,http://statistics.data.gov.uk/id/local-authority/00FC),Childrens Services,Education And Inclusion,Sen/Inclusion,Other Local Authorities,Third Pp - Other Local Auth,PC101,22/10/2021,695498,2362.5,REVENUE,REDACTED PERSONAL INFORMATION,REDACTED PERSONAL INFORMATION
North East Lincolnshire Council,http://statistics.data.gov.uk/id/local-authority/00FC),Childrens Services,Education And Inclusion,Sen/Inclusion,Other Local Authorities,Third Pp - Other Local Auth,PC101,22/10/2021,695499,2362.5,REVENUE,REDACTED PERSONAL INFORMATION,REDACTED PERSONAL INFORMATION
North East Lincolnshire Council,http://statistics.data.gov.uk/id/local-authority/00FC),Childrens Services,Education And Inclusion,Sen/Inclusion,Other Local Authorities,Third Pp - Other Local Auth,PC101,22/10/2021,695500,2362.5,REVENUE,REDACTED PERSONAL INFORMATION,REDACTED PERSONAL INFORMATION
North East Lincolnshire Council,http://statistics.data.gov.uk/id/local-authority/00FC),Childrens Services,Education And Inclusion,Sen/Inclusion,Other Local Authorities,Third Pp - Other Local Auth,PC101,22/10/2021,695501,2362.5,REVENUE,REDACTED PERSONAL INFORMATION,REDACTED PERSONAL INFORMATION
North East Lincolnshire Council,http://statistics.data.gov.uk/id/local-authority/00FC),Childrens Services,Education And Inclusion,Sen/Inclusion,Other Local Authorities,Third Pp - Other Local Auth,PC101,22/10/2021,695480,2362.5,REVENUE,REDACTED PERSONAL INFORMATION,REDACTED PERSONAL INFORMATION
North East Lincolnshire Council,http://statistics.data.gov.uk/id/local-authority/00FC),Childrens Services,Education And Inclusion,Sen/Inclusion,Other Local Authorities,Third Pp - Other Local Auth,PC101,22/10/2021,695481,1462.5,REVENUE,REDACTED PERSONAL INFORMATION,REDACTED PERSONAL INFORMATION
North East Lincolnshire Council,http://statistics.data.gov.uk/id/local-authority/00FC),Childrens Services,Education And Inclusion,Sen/Inclusion,Other Local Authorities,Third Pp - Other Local Auth,PC101,22/10/2021,695502,900,REVENUE,REDACTED PERSONAL INFORMATION,REDACTED PERSONAL INFORMATION
North East Lincolnshire Council,http://statistics.data.gov.uk/id/local-authority/00FC),Childrens Services,Education And Inclusion,Sen/Inclusion,Other Local Authorities,Third Pp - Other Local Auth,PC101,22/10/2021,695503,2362.5,REVENUE,REDACTED PERSONAL INFORMATION,REDACTED PERSONAL INFORMATION
North East Lincolnshire Council,http://statistics.data.gov.uk/id/local-authority/00FC),Childrens Services,Education And Inclusion,Sen/Inclusion,Other Local Authorities,Third Pp - Other Local Auth,PC101,22/10/2021,695504,2362.5,REVENUE,REDACTED PERSONAL INFORMATION,REDACTED PERSONAL INFORMATION
North East Lincolnshire Council,http://statistics.data.gov.uk/id/local-authority/00FC),Childrens Services,Education And Inclusion,Sen/Inclusion,Other Local Authorities,Third Pp - Other Local Auth,PC101,22/10/2021,695505,2362.5,REVENUE,REDACTED PERSONAL INFORMATION,REDACTED PERSONAL INFORMATION
North East Lincolnshire Council,http://statistics.data.gov.uk/id/local-authority/00FC),Childrens Services,Education And Inclusion,Sen/Inclusion,Other Local Authorities,Third Pp - Other Local Auth,PC101,22/10/2021,695506,1462.5,REVENUE,REDACTED PERSONAL INFORMATION,REDACTED PERSONAL INFORMATION
North East Lincolnshire Council,http://statistics.data.gov.uk/id/local-authority/00FC),Childrens Services,Education And Inclusion,Sen/Inclusion,Other Local Authorities,Third Pp - Other Local Auth,PC101,22/10/2021,695509,1650,REVENUE,REDACTED PERSONAL INFORMATION,REDACTED PERSONAL INFORMATION
North East Lincolnshire Council,http://statistics.data.gov.uk/id/local-authority/00FC),Childrens Services,Education And Inclusion,Sen/Inclusion,Other Local Authorities,Third Pp - Other Local Auth,PC101,12/10/2021,690346,58130,REVENUE,REDACTED PERSONAL INFORMATION,REDACTED PERSONAL INFORMATION
North East Lincolnshire Council,http://statistics.data.gov.uk/id/local-authority/00FC),Childrens Services,Education And Inclusion,Sen/Inclusion,Other Local Authorities,Third Pp - Other Local Auth,PC101,22/10/2021,695510,51820,REVENUE,REDACTED PERSONAL INFORMATION,REDACTED PERSONAL INFORMATION
North East Lincolnshire Council,http://statistics.data.gov.uk/id/local-authority/00FC),Childrens Services,Education And Inclusion,Sen/Inclusion,Other Local Authorities,Third Pp - Other Local Auth,PC101,11/10/2021,693429,3311.89,REVENUE,REDACTED PERSONAL INFORMATION,REDACTED PERSONAL INFORMATION
North East Lincolnshire Council,http://statistics.data.gov.uk/id/local-authority/00FC),Childrens Services,Education And Inclusion,Sen/Inclusion,Other Local Authorities,Third Pp - Other Local Auth,PC101,18/10/2021,694408,13156.67,REVENUE,REDACTED PERSONAL INFORMATION,REDACTED PERSONAL INFORMATION
North East Lincolnshire Council,http://statistics.data.gov.uk/id/local-authority/00FC),Childrens Services,Education And Inclusion,Sen/Inclusion,Other Local Authorities,Third Pp - Other Local Auth,PC101,22/10/2021,695485,8595.38,REVENUE,REDACTED PERSONAL INFORMATION,REDACTED PERSONAL INFORMATION
North East Lincolnshire Council,http://statistics.data.gov.uk/id/local-authority/00FC),Childrens Services,Education And Inclusion,Sen/Inclusion,Other Local Authorities,Third Pp - Other Local Auth,PC101,11/10/2021,693380,450,REVENUE,REDACTED PERSONAL INFORMATION,REDACTED PERSONAL INFORMATION
North East Lincolnshire Council,http://statistics.data.gov.uk/id/local-authority/00FC),Childrens Services,Education And Inclusion,Sen/Inclusion,Other Local Authorities,Third Pp - Other Local Auth,PC101,12/10/2021,693492,3787.5,REVENUE,REDACTED PERSONAL INFORMATION,REDACTED PERSONAL INFORMATION
North East Lincolnshire Council,http://statistics.data.gov.uk/id/local-authority/00FC),Childrens Services,Education And Inclusion,Sen/Inclusion,Other Local Authorities,Third Pp - Other Local Auth,PC101,11/10/2021,693494,1462.5,REVENUE,REDACTED PERSONAL INFORMATION,REDACTED PERSONAL INFORMATION
North East Lincolnshire Council,http://statistics.data.gov.uk/id/local-authority/00FC),Childrens Services,Education And Inclusion,Sen/Inclusion,Other Local Authorities,Third Pp - Other Local Auth,PC101,11/10/2021,693494,1462.5,REVENUE,REDACTED PERSONAL INFORMATION,REDACTED PERSONAL INFORMATION
North East Lincolnshire Council,http://statistics.data.gov.uk/id/local-authority/00FC),Childrens Services,Education And Inclusion,Sen/Inclusion,Other Local Authorities,Third Pp - Other Local Auth,PC101,11/10/2021,693494,600,REVENUE,REDACTED PERSONAL INFORMATION,REDACTED PERSONAL INFORMATION
North East Lincolnshire Council,http://statistics.data.gov.uk/id/local-authority/00FC),Childrens Services,Education And Inclusion,Sen/Inclusion,Other Local Authorities,Third Pp - Other Local Auth,PC101,22/10/2021,695484,1623.23,REVENUE,REDACTED PERSONAL INFORMATION,REDACTED PERSONAL INFORMATION
North East Lincolnshire Council,http://statistics.data.gov.uk/id/local-authority/00FC),Childrens Services,Education And Inclusion,Sen/Inclusion,Other Local Authorities,Third Pp - Other Local Auth,PC101,22/10/2021,695483,2575.33,REVENUE,REDACTED PERSONAL INFORMATION,REDACTED PERSONAL INFORMATION
North East Lincolnshire Council,http://statistics.data.gov.uk/id/local-authority/00FC),Childrens Services,Education And Inclusion,Sen/Inclusion,Other Local Authorities,Third Pp - Other Local Auth,PC101,22/10/2021,695488,3073.99,REVENUE,REDACTED PERSONAL INFORMATION,REDACTED PERSONAL INFORMATION
North East Lincolnshire Council,http://statistics.data.gov.uk/id/local-authority/00FC),Childrens Services,Education And Inclusion,Sen/Inclusion,Other Local Authorities,Third Pp - Other Local Auth,PC101,15/10/2021,694649,990,REVENUE,REDACTED PERSONAL INFORMATION,REDACTED PERSONAL INFORMATION
North East Lincolnshire Council,http://statistics.data.gov.uk/id/local-authority/00FC),Childrens Services,Education And Inclusion,School Improvement,Private Contractors,Third Party Prov - Private,PH101,29/10/2021,696539,333.9,REVENUE,FOR UNDER FIVES LTD,100647
North East Lincolnshire Council,http://statistics.data.gov.uk/id/local-authority/00FC),Childrens Services,Education And Inclusion,School Improvement,Private Contractors,Third Party Prov - Private,PH101,29/10/2021,696611,1184.55,REVENUE,BURSAR PRIMARY ACADEMY,111550
North East Lincolnshire Council,http://statistics.data.gov.uk/id/local-authority/00FC),Childrens Services,Education And Inclusion,School Improvement,Private Contractors,Third Party Prov - Private,PH101,29/10/2021,696583,2114.7,REVENUE,BUTTERFLIES DAY NURSERY,101694
North East Lincolnshire Council,http://statistics.data.gov.uk/id/local-authority/00FC),Childrens Services,Education And Inclusion,School Improvement,Private Contractors,Third Party Prov - Private,PH101,29/10/2021,696661,1081.2,REVENUE,CANON PETER HALL CE PRIMARY ACADEMY,126646
North East Lincolnshire Council,http://statistics.data.gov.uk/id/local-authority/00FC),Childrens Services,Education And Inclusion,School Improvement,Private Contractors,Third Party Prov - Private,PH101,29/10/2021,696530,588.3,REVENUE,FOR UNDER FIVES LTD,100647
North East Lincolnshire Council,http://statistics.data.gov.uk/id/local-authority/00FC),Childrens Services,Education And Inclusion,School Improvement,Private Contractors,Third Party Prov - Private,PH101,29/10/2021,696648,556.5,REVENUE,EASTFIELD PRIMARY ACADEMY,121907
North East Lincolnshire Council,http://statistics.data.gov.uk/id/local-authority/00FC),Childrens Services,Education And Inclusion,School Improvement,Private Contractors,Third Party Prov - Private,PH101,29/10/2021,696684,1558.2,REVENUE,ELLISTON PRIMARY ACADEMY,129629
North East Lincolnshire Council,http://statistics.data.gov.uk/id/local-authority/00FC),Childrens Services,Education And Inclusion,School Improvement,Private Contractors,Third Party Prov - Private,PH101,29/10/2021,696680,556.5,REVENUE,FREESTON TOTS PRESCHOOL,128592
North East Lincolnshire Council,http://statistics.data.gov.uk/id/local-authority/00FC),Childrens Services,Education And Inclusion,School Improvement,Private Contractors,Third Party Prov - Private,PH101,29/10/2021,696567,3315.15,REVENUE,FIRST STEPS GRIMSBY LIMITED,101411
North East Lincolnshire Council,http://statistics.data.gov.uk/id/local-authority/00FC),Childrens Services,Education And Inclusion,School Improvement,Private Contractors,Third Party Prov - Private,PH101,29/10/2021,696626,1780.8,REVENUE,HUMBERSTON PRE SCHOOL,114491
North East Lincolnshire Council,http://statistics.data.gov.uk/id/local-authority/00FC),Childrens Services,Education And Inclusion,School Improvement,Private Contractors,Third Party Prov - Private,PH101,29/10/2021,696703,556.5,REVENUE,GREAT COATES PRIMARY ACADEMY,134467
North East Lincolnshire Council,http://statistics.data.gov.uk/id/local-authority/00FC),Childrens Services,Education And Inclusion,School Improvement,Private Contractors,Third Party Prov - Private,PH101,29/10/2021,696579,526.82,REVENUE,CLEETHORPES CHILDCARE,101591
North East Lincolnshire Council,http://statistics.data.gov.uk/id/local-authority/00FC),Childrens Services,Education And Inclusion,School Improvement,Private Contractors,Third Party Prov - Private,PH101,29/10/2021,696689,467.46,REVENUE,HUMBERSTON CLOVERFIELDS ACADEMY NURSERY,132178
North East Lincolnshire Council,http://statistics.data.gov.uk/id/local-authority/00FC),Childrens Services,Education And Inclusion,School Improvement,Private Contractors,Third Party Prov - Private,PH101,29/10/2021,696655,556.5,REVENUE,IMMINGHAM DAY CARE,122312
North East Lincolnshire Council,http://statistics.data.gov.uk/id/local-authority/00FC),Childrens Services,Education And Inclusion,School Improvement,Private Contractors,Third Party Prov - Private,PH101,29/10/2021,696673,413.4,REVENUE,LEAP AHEAD NURSERY,128017
North East Lincolnshire Council,http://statistics.data.gov.uk/id/local-authority/00FC),Childrens Services,Education And Inclusion,School Improvement,Private Contractors,Third Party Prov - Private,PH101,29/10/2021,696724,333.9,REVENUE,LITTLE OAKS DAY NURSERY,144718
North East Lincolnshire Council,http://statistics.data.gov.uk/id/local-authority/00FC),Childrens Services,Education And Inclusion,School Improvement,Private Contractors,Third Party Prov - Private,PH101,29/10/2021,696739,556.5,REVENUE,TEC PARTNERSHIP - LITTLE STARS NURSERY,149044
North East Lincolnshire Council,http://statistics.data.gov.uk/id/local-authority/00FC),Childrens Services,Education And Inclusion,School Improvement,Private Contractors,Third Party Prov - Private,PH101,29/10/2021,696604,779.1,REVENUE,LISLE MARSDEN CHILDCARE LIMITED,110493
North East Lincolnshire Council,http://statistics.data.gov.uk/id/local-authority/00FC),Childrens Services,Education And Inclusion,School Improvement,Private Contractors,Third Party Prov - Private,PH101,29/10/2021,696698,1335.6,REVENUE,LITTLECOATES PRIMARY ACADEMY,134261
North East Lincolnshire Council,http://statistics.data.gov.uk/id/local-authority/00FC),Childrens Services,Education And Inclusion,School Improvement,Private Contractors,Third Party Prov - Private,PH101,29/10/2021,696620,1876.2,REVENUE,MACAULAY PRIMARY ACADEMY,112680
North East Lincolnshire Council,http://statistics.data.gov.uk/id/local-authority/00FC),Childrens Services,Education And Inclusion,School Improvement,Private Contractors,Third Party Prov - Private,PH101,29/10/2021,696717,556.5,REVENUE,MIDDLETHORPE NURSERY,143658
North East Lincolnshire Council,http://statistics.data.gov.uk/id/local-authority/00FC),Childrens Services,Education And Inclusion,School Improvement,Private Contractors,Third Party Prov - Private,PH101,29/10/2021,696597,267.12,REVENUE,NEW WALTHAM ACADEMY,108556
North East Lincolnshire Council,http://statistics.data.gov.uk/id/local-authority/00FC),Childrens Services,Education And Inclusion,School Improvement,Private Contractors,Third Party Prov - Private,PH101,29/10/2021,696657,1208.4,REVENUE,OASIS ACADEMY SCHOOL (NUNSTHORPE SCHOOL),122861
North East Lincolnshire Council,http://statistics.data.gov.uk/id/local-authority/00FC),Childrens Services,Education And Inclusion,School Improvement,Private Contractors,Third Party Prov - Private,PH101,29/10/2021,696638,556.5,REVENUE,OLD CLEE PRIMARY ACADEMY,119822
North East Lincolnshire Council,http://statistics.data.gov.uk/id/local-authority/00FC),Childrens Services,Education And Inclusion,School Improvement,Private Contractors,Third Party Prov - Private,PH101,29/10/2021,696615,1892.1,REVENUE,ORMISTON SOUTH PARADE ACADEMY,111750
North East Lincolnshire Council,http://statistics.data.gov.uk/id/local-authority/00FC),Childrens Services,Education And Inclusion,School Improvement,Private Contractors,Third Party Prov - Private,PH101,29/10/2021,696704,276.93,REVENUE,PILGRIM ACADEMY,136366
North East Lincolnshire Council,http://statistics.data.gov.uk/id/local-authority/00FC),Childrens Services,Education And Inclusion,School Improvement,Private Contractors,Third Party Prov - Private,PH101,29/10/2021,696573,779.1,REVENUE,PRECIOUS TIMES CHILDCARE SERVICES,101420
North East Lincolnshire Council,http://statistics.data.gov.uk/id/local-authority/00FC),Childrens Services,Education And Inclusion,School Improvement,Private Contractors,Third Party Prov - Private,PH101,29/10/2021,696534,858.6,REVENUE,FOR UNDER FIVES LTD,100647
North East Lincolnshire Council,http://statistics.data.gov.uk/id/local-authority/00FC),Childrens Services,Education And Inclusion,School Improvement,Private Contractors,Third Party Prov - Private,PH101,29/10/2021,696649,779.1,REVENUE,REYNOLDS ACADEMY,122175
North East Lincolnshire Council,http://statistics.data.gov.uk/id/local-authority/00FC),Childrens Services,Education And Inclusion,School Improvement,Private Contractors,Third Party Prov - Private,PH101,29/10/2021,696578,541.66,REVENUE,CLEETHORPES CHILDCARE,101591
North East Lincolnshire Council,http://statistics.data.gov.uk/id/local-authority/00FC),Childrens Services,Education And Inclusion,School Improvement,Private Contractors,Third Party Prov - Private,PH101,29/10/2021,696646,994.28,REVENUE,ST CHRISTOPHERS PRE SCHOOL,121589
North East Lincolnshire Council,http://statistics.data.gov.uk/id/local-authority/00FC),Childrens Services,Education And Inclusion,School Improvement,Private Contractors,Third Party Prov - Private,PH101,29/10/2021,696547,319.59,REVENUE,ST JAMES SCHOOL,100940
North East Lincolnshire Council,http://statistics.data.gov.uk/id/local-authority/00FC),Childrens Services,Education And Inclusion,School Improvement,Private Contractors,Third Party Prov - Private,PH101,29/10/2021,696630,556.5,REVENUE,ST MARYS CATHOLIC PRIMARY VOLUNTARY ACADEMY,115108
North East Lincolnshire Council,http://statistics.data.gov.uk/id/local-authority/00FC),Childrens Services,Education And Inclusion,School Improvement,Private Contractors,Third Party Prov - Private,PH101,29/10/2021,696562,1001.7,REVENUE,ST PETERS CHILDREN CENTRE,101322
North East Lincolnshire Council,http://statistics.data.gov.uk/id/local-authority/00FC),Childrens Services,Education And Inclusion,School Improvement,Private Contractors,Third Party Prov - Private,PH101,29/10/2021,696632,445.2,REVENUE,THRUNSCOE PRIMARY AND NURSERY ACADEMY,118749
North East Lincolnshire Council,http://statistics.data.gov.uk/id/local-authority/00FC),Childrens Services,Education And Inclusion,School Improvement,Private Contractors,Third Party Prov - Private,PH101,29/10/2021,696595,667.8,REVENUE,WALTHAM LEAS PRE-SCHOOL,108236
North East Lincolnshire Council,http://statistics.data.gov.uk/id/local-authority/00FC),Childrens Services,Education And Inclusion,School Improvement,Private Contractors,Third Party Prov - Private,PH101,29/10/2021,696609,1081.2,REVENUE,WEELSBY ACADEMY,111161
North East Lincolnshire Council,http://statistics.data.gov.uk/id/local-authority/00FC),Childrens Services,Education And Inclusion,School Improvement,Private Contractors,Third Party Prov - Private,PH101,29/10/2021,696664,1327.65,REVENUE,WELHOLME ACADEMY,127227
North East Lincolnshire Council,http://statistics.data.gov.uk/id/local-authority/00FC),Childrens Services,Education And Inclusion,School Improvement,Private Contractors,Third Party Prov - Private,PH101,29/10/2021,696641,333.9,REVENUE,WILLOWS PRIMARY ACADEMY,120478
North East Lincolnshire Council,http://statistics.data.gov.uk/id/local-authority/00FC),Childrens Services,Education And Inclusion,School Improvement,Private Contractors,Third Party Prov - Private,PH101,29/10/2021,696589,1031.38,REVENUE,WIZ KIDZ,102424
North East Lincolnshire Council,http://statistics.data.gov.uk/id/local-authority/00FC),Childrens Services,Education And Inclusion,School Improvement,Private Contractors,Third Party Prov - Private,PH101,29/10/2021,696691,1637.7,REVENUE,WOODLANDS ACADEMY,132649
North East Lincolnshire Council,http://statistics.data.gov.uk/id/local-authority/00FC),Childrens Services,Education And Inclusion,School Improvement,Private Contractors,Third Party Prov - Private,PH101,29/10/2021,696623,445.2,REVENUE,YARBOROUGH ACADEMY,112852
North East Lincolnshire Council,http://statistics.data.gov.uk/id/local-authority/00FC),Childrens Services,Education And Inclusion,School Improvement,Other Agencies,Nursery Educ Fund - Standard,PJ139,29/10/2021,696635,1021.54,REVENUE,ALISON'S CHILDMINDING SERVICES,119740
North East Lincolnshire Council,http://statistics.data.gov.uk/id/local-authority/00FC),Childrens Services,Education And Inclusion,School Improvement,Other Agencies,Nursery Educ Fund - Standard,PJ139,29/10/2021,696710,478.17,REVENUE,MS AMY VERNON,141558
North East Lincolnshire Council,http://statistics.data.gov.uk/id/local-authority/00FC),Childrens Services,Education And Inclusion,School Improvement,Other Agencies,Nursery Educ Fund - Standard,PJ139,29/10/2021,696721,439.95,REVENUE,RAYCH'S RUGRATS CHILDMINDER,143723
North East Lincolnshire Council,http://statistics.data.gov.uk/id/local-authority/00FC),Childrens Services,Education And Inclusion,School Improvement,Other Agencies,Nursery Educ Fund - Standard,PJ139,29/10/2021,696538,6116.85,REVENUE,FOR UNDER FIVES LTD,100647
North East Lincolnshire Council,http://statistics.data.gov.uk/id/local-authority/00FC),Childrens Services,Education And Inclusion,School Improvement,Other Agencies,Nursery Educ Fund - Standard,PJ139,29/10/2021,696612,5119.8,REVENUE,BURSAR PRIMARY ACADEMY,111550
North East Lincolnshire Council,http://statistics.data.gov.uk/id/local-authority/00FC),Childrens Services,Education And Inclusion,School Improvement,Other Agencies,Nursery Educ Fund - Standard,PJ139,29/10/2021,696582,19461.6,REVENUE,BUTTERFLIES DAY NURSERY,101694
North East Lincolnshire Council,http://statistics.data.gov.uk/id/local-authority/00FC),Childrens Services,Education And Inclusion,School Improvement,Other Agencies,Nursery Educ Fund - Standard,PJ139,29/10/2021,696697,10494,REVENUE,CAMPDEN KIDS LTD,132975
North East Lincolnshire Council,http://statistics.data.gov.uk/id/local-authority/00FC),Childrens Services,Education And Inclusion,School Improvement,Other Agencies,Nursery Educ Fund - Standard,PJ139,29/10/2021,696660,6646.2,REVENUE,CANON PETER HALL CE PRIMARY ACADEMY,126646
North East Lincolnshire Council,http://statistics.data.gov.uk/id/local-authority/00FC),Childrens Services,Education And Inclusion,School Improvement,Other Agencies,Nursery Educ Fund - Standard,PJ139,29/10/2021,696743,621,REVENUE,KERRY BYRAM,149814
North East Lincolnshire Council,http://statistics.data.gov.uk/id/local-authority/00FC),Childrens Services,Education And Inclusion,School Improvement,Other Agencies,Nursery Educ Fund - Standard,PJ139,29/10/2021,696532,5819.4,REVENUE,FOR UNDER FIVES LTD,100647
North East Lincolnshire Council,http://statistics.data.gov.uk/id/local-authority/00FC),Childrens Services,Education And Inclusion,School Improvement,Other Agencies,Nursery Educ Fund - Standard,PJ139,29/10/2021,696558,8531.5,REVENUE,THE CHILDRENS HOUSE,101141
North East Lincolnshire Council,http://statistics.data.gov.uk/id/local-authority/00FC),Childrens Services,Education And Inclusion,School Improvement,Other Agencies,Nursery Educ Fund - Standard,PJ139,29/10/2021,696708,2893.8,REVENUE,CLARE HOLNESS,140793
North East Lincolnshire Council,http://statistics.data.gov.uk/id/local-authority/00FC),Childrens Services,Education And Inclusion,School Improvement,Other Agencies,Nursery Educ Fund - Standard,PJ139,29/10/2021,696647,25833.6,REVENUE,EASTFIELD PRIMARY ACADEMY,121907
North East Lincolnshire Council,http://statistics.data.gov.uk/id/local-authority/00FC),Childrens Services,Education And Inclusion,School Improvement,Other Agencies,Nursery Educ Fund - Standard,PJ139,29/10/2021,696598,1854.72,REVENUE,EAST RAVENDALE C OF E PRIMARY SCHOOL ACADEMY,109167
North East Lincolnshire Council,http://statistics.data.gov.uk/id/local-authority/00FC),Childrens Services,Education And Inclusion,School Improvement,Other Agencies,Nursery Educ Fund - Standard,PJ139,29/10/2021,696613,6773.4,REVENUE,EDWARD HENEAGE PRIMARY (ACADEMY),111742
North East Lincolnshire Council,http://statistics.data.gov.uk/id/local-authority/00FC),Childrens Services,Education And Inclusion,School Improvement,Other Agencies,Nursery Educ Fund - Standard,PJ139,29/10/2021,696685,4674.6,REVENUE,ELLISTON PRIMARY ACADEMY,129629
North East Lincolnshire Council,http://statistics.data.gov.uk/id/local-authority/00FC),Childrens Services,Education And Inclusion,School Improvement,Other Agencies,Nursery Educ Fund - Standard,PJ139,29/10/2021,696734,3477.6,REVENUE,EMILY MUMBY,147323
North East Lincolnshire Council,http://statistics.data.gov.uk/id/local-authority/00FC),Childrens Services,Education And Inclusion,School Improvement,Other Agencies,Nursery Educ Fund - Standard,PJ139,29/10/2021,696730,12467.61,REVENUE,EXPLOROSITY EDUCATION LTD,145026
North East Lincolnshire Council,http://statistics.data.gov.uk/id/local-authority/00FC),Childrens Services,Education And Inclusion,School Improvement,Other Agencies,Nursery Educ Fund - Standard,PJ139,29/10/2021,696683,2521.26,REVENUE,FAIRFIELD PRIMARY ACADEMY,129030
North East Lincolnshire Council,http://statistics.data.gov.uk/id/local-authority/00FC),Childrens Services,Education And Inclusion,School Improvement,Other Agencies,Nursery Educ Fund - Standard,PJ139,29/10/2021,696711,347.76,REVENUE,MRS FAY L RENSHAW,141559
North East Lincolnshire Council,http://statistics.data.gov.uk/id/local-authority/00FC),Childrens Services,Education And Inclusion,School Improvement,Other Agencies,Nursery Educ Fund - Standard,PJ139,29/10/2021,696681,2226,REVENUE,FREESTON TOTS PRESCHOOL,128592
North East Lincolnshire Council,http://statistics.data.gov.uk/id/local-authority/00FC),Childrens Services,Education And Inclusion,School Improvement,Other Agencies,Nursery Educ Fund - Standard,PJ139,29/10/2021,696568,15836.4,REVENUE,FIRST STEPS GRIMSBY LIMITED,101411
North East Lincolnshire Council,http://statistics.data.gov.uk/id/local-authority/00FC),Childrens Services,Education And Inclusion,School Improvement,Other Agencies,Nursery Educ Fund - Standard,PJ139,29/10/2021,696732,434.7,REVENUE,KEIRA GILBERT,146127
North East Lincolnshire Council,http://statistics.data.gov.uk/id/local-authority/00FC),Childrens Services,Education And Inclusion,School Improvement,Other Agencies,Nursery Educ Fund - Standard,PJ139,29/10/2021,696625,3866.88,REVENUE,HUMBERSTON PRE SCHOOL,114491
North East Lincolnshire Council,http://statistics.data.gov.uk/id/local-authority/00FC),Childrens Services,Education And Inclusion,School Improvement,Other Agencies,Nursery Educ Fund - Standard,PJ139,29/10/2021,696702,9018.97,REVENUE,GREAT COATES PRIMARY ACADEMY,134467
North East Lincolnshire Council,http://statistics.data.gov.uk/id/local-authority/00FC),Childrens Services,Education And Inclusion,School Improvement,Other Agencies,Nursery Educ Fund - Standard,PJ139,29/10/2021,696541,4347,REVENUE,FOR UNDER FIVES LTD,100647
North East Lincolnshire Council,http://statistics.data.gov.uk/id/local-authority/00FC),Childrens Services,Education And Inclusion,School Improvement,Other Agencies,Nursery Educ Fund - Standard,PJ139,29/10/2021,696555,9568.57,REVENUE,HEALING VILLAGE NURSERY,101096
North East Lincolnshire Council,http://statistics.data.gov.uk/id/local-authority/00FC),Childrens Services,Education And Inclusion,School Improvement,Other Agencies,Nursery Educ Fund - Standard,PJ139,29/10/2021,696679,652.05,REVENUE,ELLIE TOTS CHILDMINDING SERVICES,128251
North East Lincolnshire Council,http://statistics.data.gov.uk/id/local-authority/00FC),Childrens Services,Education And Inclusion,School Improvement,Other Agencies,Nursery Educ Fund - Standard,PJ139,29/10/2021,696580,337.29,REVENUE,CLEETHORPES CHILDCARE,101591
North East Lincolnshire Council,http://statistics.data.gov.uk/id/local-authority/00FC),Childrens Services,Education And Inclusion,School Improvement,Other Agencies,Nursery Educ Fund - Standard,PJ139,29/10/2021,696688,4999.05,REVENUE,HUMBERSTON CLOVERFIELDS ACADEMY NURSERY,132178
North East Lincolnshire Council,http://statistics.data.gov.uk/id/local-authority/00FC),Childrens Services,Education And Inclusion,School Improvement,Other Agencies,Nursery Educ Fund - Standard,PJ139,29/10/2021,696628,7168.93,REVENUE,HUMBERSTON PRE SCHOOL,114491
North East Lincolnshire Council,http://statistics.data.gov.uk/id/local-authority/00FC),Childrens Services,Education And Inclusion,School Improvement,Other Agencies,Nursery Educ Fund - Standard,PJ139,29/10/2021,696653,4564.35,REVENUE,IMMINGHAM DAY CARE,122312
North East Lincolnshire Council,http://statistics.data.gov.uk/id/local-authority/00FC),Childrens Services,Education And Inclusion,School Improvement,Other Agencies,Nursery Educ Fund - Standard,PJ139,29/10/2021,696554,2390.85,REVENUE,IMMINGHAM DAY NURSERY,100998
North East Lincolnshire Council,http://statistics.data.gov.uk/id/local-authority/00FC),Childrens Services,Education And Inclusion,School Improvement,Other Agencies,Nursery Educ Fund - Standard,PJ139,29/10/2021,696735,434.7,REVENUE,JOANNE BAUGHAN,148149
North East Lincolnshire Council,http://statistics.data.gov.uk/id/local-authority/00FC),Childrens Services,Education And Inclusion,School Improvement,Other Agencies,Nursery Educ Fund - Standard,PJ139,29/10/2021,696544,318,REVENUE,JUDY CLARK CHILD CARE,100939
North East Lincolnshire Council,http://statistics.data.gov.uk/id/local-authority/00FC),Childrens Services,Education And Inclusion,School Improvement,Other Agencies,Nursery Educ Fund - Standard,PJ139,29/10/2021,696728,1086.75,REVENUE,KELLY FLINN,144957
North East Lincolnshire Council,http://statistics.data.gov.uk/id/local-authority/00FC),Childrens Services,Education And Inclusion,School Improvement,Other Agencies,Nursery Educ Fund - Standard,PJ139,29/10/2021,696588,1159.2,REVENUE,MS KAREN HUDSON,102103
North East Lincolnshire Council,http://statistics.data.gov.uk/id/local-authority/00FC),Childrens Services,Education And Inclusion,School Improvement,Other Agencies,Nursery Educ Fund - Standard,PJ139,29/10/2021,696720,1117.8,REVENUE,KATIE ROBBINS,143660
North East Lincolnshire Council,http://statistics.data.gov.uk/id/local-authority/00FC),Childrens Services,Education And Inclusion,School Improvement,Other Agencies,Nursery Educ Fund - Standard,PJ139,29/10/2021,696674,13165.2,REVENUE,LEAP AHEAD NURSERY,128017
North East Lincolnshire Council,http://statistics.data.gov.uk/id/local-authority/00FC),Childrens Services,Education And Inclusion,School Improvement,Other Agencies,Nursery Educ Fund - Standard,PJ139,29/10/2021,696669,1049.4,REVENUE,LEAP AHEAD NURSERY,128017
North East Lincolnshire Council,http://statistics.data.gov.uk/id/local-authority/00FC),Childrens Services,Education And Inclusion,School Improvement,Other Agencies,Nursery Educ Fund - Standard,PJ139,29/10/2021,696608,3839.85,REVENUE,LITTLE BLOSSOMS DAY NURSERY,111058
North East Lincolnshire Council,http://statistics.data.gov.uk/id/local-authority/00FC),Childrens Services,Education And Inclusion,School Improvement,Other Agencies,Nursery Educ Fund - Standard,PJ139,29/10/2021,696723,6232.8,REVENUE,LITTLE OAKS DAY NURSERY,144718
North East Lincolnshire Council,http://statistics.data.gov.uk/id/local-authority/00FC),Childrens Services,Education And Inclusion,School Improvement,Other Agencies,Nursery Educ Fund - Standard,PJ139,29/10/2021,696740,15354.25,REVENUE,TEC PARTNERSHIP - LITTLE STARS NURSERY,149044
North East Lincolnshire Council,http://statistics.data.gov.uk/id/local-authority/00FC),Childrens Services,Education And Inclusion,School Improvement,Other Agencies,Nursery Educ Fund - Standard,PJ139,29/10/2021,696652,3048.22,REVENUE,LITTLE TWINKLES CHILDCARE LTD,122217
North East Lincolnshire Council,http://statistics.data.gov.uk/id/local-authority/00FC),Childrens Services,Education And Inclusion,School Improvement,Other Agencies,Nursery Educ Fund - Standard,PJ139,29/10/2021,696603,20853.63,REVENUE,LISLE MARSDEN CHILDCARE LIMITED,110493
North East Lincolnshire Council,http://statistics.data.gov.uk/id/local-authority/00FC),Childrens Services,Education And Inclusion,School Improvement,Other Agencies,Nursery Educ Fund - Standard,PJ139,29/10/2021,696700,26044.2,REVENUE,LITTLECOATES PRIMARY ACADEMY,134261
North East Lincolnshire Council,http://statistics.data.gov.uk/id/local-authority/00FC),Childrens Services,Education And Inclusion,School Improvement,Other Agencies,Nursery Educ Fund - Standard,PJ139,29/10/2021,696621,8427,REVENUE,MACAULAY PRIMARY ACADEMY,112680
North East Lincolnshire Council,http://statistics.data.gov.uk/id/local-authority/00FC),Childrens Services,Education And Inclusion,School Improvement,Other Agencies,Nursery Educ Fund - Standard,PJ139,29/10/2021,696718,6448.05,REVENUE,MIDDLETHORPE NURSERY,143658
North East Lincolnshire Council,http://statistics.data.gov.uk/id/local-authority/00FC),Childrens Services,Education And Inclusion,School Improvement,Other Agencies,Nursery Educ Fund - Standard,PJ139,29/10/2021,696722,890.4,REVENUE,MARINA WELLBURN,144696
North East Lincolnshire Council,http://statistics.data.gov.uk/id/local-authority/00FC),Childrens Services,Education And Inclusion,School Improvement,Other Agencies,Nursery Educ Fund - Standard,PJ139,29/10/2021,696713,659.92,REVENUE,MS NATASHA DYKE,141560
North East Lincolnshire Council,http://statistics.data.gov.uk/id/local-authority/00FC),Childrens Services,Education And Inclusion,School Improvement,Other Agencies,Nursery Educ Fund - Standard,PJ139,29/10/2021,696596,12780.18,REVENUE,NEW WALTHAM ACADEMY,108556
North East Lincolnshire Council,http://statistics.data.gov.uk/id/local-authority/00FC),Childrens Services,Education And Inclusion,School Improvement,Other Agencies,Nursery Educ Fund - Standard,PJ139,29/10/2021,696694,652.05,REVENUE,NATALIE MUNDAY,132728
North East Lincolnshire Council,http://statistics.data.gov.uk/id/local-authority/00FC),Childrens Services,Education And Inclusion,School Improvement,Other Agencies,Nursery Educ Fund - Standard,PJ139,29/10/2021,696677,8469.4,REVENUE,ONLY ABOUT KIDS,128121
North East Lincolnshire Council,http://statistics.data.gov.uk/id/local-authority/00FC),Childrens Services,Education And Inclusion,School Improvement,Other Agencies,Nursery Educ Fund - Standard,PJ139,29/10/2021,696656,6328.2,REVENUE,OASIS ACADEMY SCHOOL (NUNSTHORPE SCHOOL),122861
North East Lincolnshire Council,http://statistics.data.gov.uk/id/local-authority/00FC),Childrens Services,Education And Inclusion,School Improvement,Other Agencies,Nursery Educ Fund - Standard,PJ139,29/10/2021,696637,3299.62,REVENUE,OLD CLEE PRIMARY ACADEMY,119822
North East Lincolnshire Council,http://statistics.data.gov.uk/id/local-authority/00FC),Childrens Services,Education And Inclusion,School Improvement,Other Agencies,Nursery Educ Fund - Standard,PJ139,29/10/2021,696726,260.82,REVENUE,LAURA SAVAGE,144810
North East Lincolnshire Council,http://statistics.data.gov.uk/id/local-authority/00FC),Childrens Services,Education And Inclusion,School Improvement,Other Agencies,Nursery Educ Fund - Standard,PJ139,29/10/2021,696616,14405.4,REVENUE,ORMISTON SOUTH PARADE ACADEMY,111750
North East Lincolnshire Council,http://statistics.data.gov.uk/id/local-authority/00FC),Childrens Services,Education And Inclusion,School Improvement,Other Agencies,Nursery Educ Fund - Standard,PJ139,29/10/2021,696705,8683.65,REVENUE,PILGRIM ACADEMY,136366
North East Lincolnshire Council,http://statistics.data.gov.uk/id/local-authority/00FC),Childrens Services,Education And Inclusion,School Improvement,Other Agencies,Nursery Educ Fund - Standard,PJ139,29/10/2021,696572,7998.48,REVENUE,PRECIOUS TIMES CHILDCARE SERVICES,101420
North East Lincolnshire Council,http://statistics.data.gov.uk/id/local-authority/00FC),Childrens Services,Education And Inclusion,School Improvement,Other Agencies,Nursery Educ Fund - Standard,PJ139,29/10/2021,696574,6027.31,REVENUE,PRECIOUS TIMES CHILDCARE SERVICES,101420
North East Lincolnshire Council,http://statistics.data.gov.uk/id/local-authority/00FC),Childrens Services,Education And Inclusion,School Improvement,Other Agencies,Nursery Educ Fund - Standard,PJ139,29/10/2021,696533,8967.6,REVENUE,FOR UNDER FIVES LTD,100647
North East Lincolnshire Council,http://statistics.data.gov.uk/id/local-authority/00FC),Childrens Services,Education And Inclusion,School Improvement,Other Agencies,Nursery Educ Fund - Standard,PJ139,29/10/2021,696650,12332.04,REVENUE,REYNOLDS ACADEMY,122175
North East Lincolnshire Council,http://statistics.data.gov.uk/id/local-authority/00FC),Childrens Services,Education And Inclusion,School Improvement,Other Agencies,Nursery Educ Fund - Standard,PJ139,29/10/2021,696549,8295.52,REVENUE,READY TEDDY GO,100973
North East Lincolnshire Council,http://statistics.data.gov.uk/id/local-authority/00FC),Childrens Services,Education And Inclusion,School Improvement,Other Agencies,Nursery Educ Fund - Standard,PJ139,29/10/2021,696715,869.4,REVENUE,SARA BUNCE,142138
North East Lincolnshire Council,http://statistics.data.gov.uk/id/local-authority/00FC),Childrens Services,Education And Inclusion,School Improvement,Other Agencies,Nursery Educ Fund - Standard,PJ139,29/10/2021,696668,667.8,REVENUE,SARAH FARROW-BROWNE,127842
North East Lincolnshire Council,http://statistics.data.gov.uk/id/local-authority/00FC),Childrens Services,Education And Inclusion,School Improvement,Other Agencies,Nursery Educ Fund - Standard,PJ139,29/10/2021,696605,439.95,REVENUE,SHARON SPRINGALL,111029
North East Lincolnshire Council,http://statistics.data.gov.uk/id/local-authority/00FC),Childrens Services,Education And Inclusion,School Improvement,Other Agencies,Nursery Educ Fund - Standard,PJ139,29/10/2021,696576,22807.26,REVENUE,CLEETHORPES CHILDCARE,101591
North East Lincolnshire Council,http://statistics.data.gov.uk/id/local-authority/00FC),Childrens Services,Education And Inclusion,School Improvement,Other Agencies,Nursery Educ Fund - Standard,PJ139,29/10/2021,696536,5506.2,REVENUE,FOR UNDER FIVES LTD,100647
North East Lincolnshire Council,http://statistics.data.gov.uk/id/local-authority/00FC),Childrens Services,Education And Inclusion,School Improvement,Other Agencies,Nursery Educ Fund - Standard,PJ139,29/10/2021,696687,5651.1,REVENUE,SPRINGFIELD PRIMARY ACADEMY,131306
North East Lincolnshire Council,http://statistics.data.gov.uk/id/local-authority/00FC),Childrens Services,Education And Inclusion,School Improvement,Other Agencies,Nursery Educ Fund - Standard,PJ139,29/10/2021,696645,4170.04,REVENUE,ST CHRISTOPHERS PRE SCHOOL,121589
North East Lincolnshire Council,http://statistics.data.gov.uk/id/local-authority/00FC),Childrens Services,Education And Inclusion,School Improvement,Other Agencies,Nursery Educ Fund - Standard,PJ139,29/10/2021,696548,13221.54,REVENUE,ST JAMES SCHOOL,100940
North East Lincolnshire Council,http://statistics.data.gov.uk/id/local-authority/00FC),Childrens Services,Education And Inclusion,School Improvement,Other Agencies,Nursery Educ Fund - Standard,PJ139,29/10/2021,696599,3622.26,REVENUE,ST JOSEPH'S RC PRIMARY ACADEMY,110066
North East Lincolnshire Council,http://statistics.data.gov.uk/id/local-authority/00FC),Childrens Services,Education And Inclusion,School Improvement,Other Agencies,Nursery Educ Fund - Standard,PJ139,29/10/2021,696586,6216.21,REVENUE,ST MARGARETS PRE-SCHOOL,101724
North East Lincolnshire Council,http://statistics.data.gov.uk/id/local-authority/00FC),Childrens Services,Education And Inclusion,School Improvement,Other Agencies,Nursery Educ Fund - Standard,PJ139,29/10/2021,696629,2893.8,REVENUE,ST MARYS CATHOLIC PRIMARY VOLUNTARY ACADEMY,115108
North East Lincolnshire Council,http://statistics.data.gov.uk/id/local-authority/00FC),Childrens Services,Education And Inclusion,School Improvement,Other Agencies,Nursery Educ Fund - Standard,PJ139,29/10/2021,696561,9913.12,REVENUE,ST PETERS CHILDREN CENTRE,101322
North East Lincolnshire Council,http://statistics.data.gov.uk/id/local-authority/00FC),Childrens Services,Education And Inclusion,School Improvement,Other Agencies,Nursery Educ Fund - Standard,PJ139,29/10/2021,696618,2544,REVENUE,STRAND PRIMARY ACADEMY,111862
North East Lincolnshire Council,http://statistics.data.gov.uk/id/local-authority/00FC),Childrens Services,Education And Inclusion,School Improvement,Other Agencies,Nursery Educ Fund - Standard,PJ139,29/10/2021,696741,2226,REVENUE,THE AVENUE PRESCHOOL CIO,149253
North East Lincolnshire Council,http://statistics.data.gov.uk/id/local-authority/00FC),Childrens Services,Education And Inclusion,School Improvement,Other Agencies,Nursery Educ Fund - Standard,PJ139,29/10/2021,696631,22037.4,REVENUE,THRUNSCOE PRIMARY AND NURSERY ACADEMY,118749
North East Lincolnshire Council,http://statistics.data.gov.uk/id/local-authority/00FC),Childrens Services,Education And Inclusion,School Improvement,Other Agencies,Nursery Educ Fund - Standard,PJ139,29/10/2021,696594,30362.76,REVENUE,WALTHAM LEAS PRE-SCHOOL,108236
North East Lincolnshire Council,http://statistics.data.gov.uk/id/local-authority/00FC),Childrens Services,Education And Inclusion,School Improvement,Other Agencies,Nursery Educ Fund - Standard,PJ139,29/10/2021,696610,4356.6,REVENUE,WEELSBY ACADEMY,111161
North East Lincolnshire Council,http://statistics.data.gov.uk/id/local-authority/00FC),Childrens Services,Education And Inclusion,School Improvement,Other Agencies,Nursery Educ Fund - Standard,PJ139,29/10/2021,696665,9063,REVENUE,WELHOLME ACADEMY,127227
North East Lincolnshire Council,http://statistics.data.gov.uk/id/local-authority/00FC),Childrens Services,Education And Inclusion,School Improvement,Other Agencies,Nursery Educ Fund - Standard,PJ139,29/10/2021,696642,1113,REVENUE,WILLOWS PRIMARY ACADEMY,120478
North East Lincolnshire Council,http://statistics.data.gov.uk/id/local-authority/00FC),Childrens Services,Education And Inclusion,School Improvement,Other Agencies,Nursery Educ Fund - Standard,PJ139,29/10/2021,696591,1320.76,REVENUE,WIZ KIDZ,102424
North East Lincolnshire Council,http://statistics.data.gov.uk/id/local-authority/00FC),Childrens Services,Education And Inclusion,School Improvement,Other Agencies,Nursery Educ Fund - Standard,PJ139,29/10/2021,696692,7950,REVENUE,WOODLANDS ACADEMY,132649
North East Lincolnshire Council,http://statistics.data.gov.uk/id/local-authority/00FC),Childrens Services,Education And Inclusion,School Improvement,Other Agencies,Nursery Educ Fund - Standard,PJ139,29/10/2021,696622,12637.35,REVENUE,YARBOROUGH ACADEMY,112852
North East Lincolnshire Council,http://statistics.data.gov.uk/id/local-authority/00FC),Childrens Services,Education And Inclusion,School Improvement,Other Agencies,Other,PJ121,29/10/2021,696636,270.9,REVENUE,ALISON'S CHILDMINDING SERVICES,119740
North East Lincolnshire Council,http://statistics.data.gov.uk/id/local-authority/00FC),Childrens Services,Education And Inclusion,School Improvement,Other Agencies,Other,PJ121,29/10/2021,696633,1083.6,REVENUE,MISS AMANDA YOUNG,119739
North East Lincolnshire Council,http://statistics.data.gov.uk/id/local-authority/00FC),Childrens Services,Education And Inclusion,School Improvement,Other Agencies,Other,PJ121,29/10/2021,696537,3753.9,REVENUE,FOR UNDER FIVES LTD,100647
North East Lincolnshire Council,http://statistics.data.gov.uk/id/local-authority/00FC),Childrens Services,Education And Inclusion,School Improvement,Other Agencies,Other,PJ121,29/10/2021,696581,16370.1,REVENUE,BUTTERFLIES DAY NURSERY,101694
North East Lincolnshire Council,http://statistics.data.gov.uk/id/local-authority/00FC),Childrens Services,Education And Inclusion,School Improvement,Other Agencies,Other,PJ121,29/10/2021,696696,6501.6,REVENUE,CAMPDEN KIDS LTD,132975
North East Lincolnshire Council,http://statistics.data.gov.uk/id/local-authority/00FC),Childrens Services,Education And Inclusion,School Improvement,Other Agencies,Other,PJ121,29/10/2021,696531,3521.7,REVENUE,FOR UNDER FIVES LTD,100647
North East Lincolnshire Council,http://statistics.data.gov.uk/id/local-authority/00FC),Childrens Services,Education And Inclusion,School Improvement,Other Agencies,Other,PJ121,29/10/2021,696559,8684.28,REVENUE,THE CHILDRENS HOUSE,101141
North East Lincolnshire Council,http://statistics.data.gov.uk/id/local-authority/00FC),Childrens Services,Education And Inclusion,School Improvement,Other Agencies,Other,PJ121,29/10/2021,696709,1083.6,REVENUE,CLARE HOLNESS,140793
North East Lincolnshire Council,http://statistics.data.gov.uk/id/local-authority/00FC),Childrens Services,Education And Inclusion,School Improvement,Other Agencies,Other,PJ121,29/10/2021,696667,309.6,REVENUE,ANDREA CULLUM - LITTLE GEMS,127347
North East Lincolnshire Council,http://statistics.data.gov.uk/id/local-authority/00FC),Childrens Services,Education And Inclusion,School Improvement,Other Agencies,Other,PJ121,29/10/2021,696592,309.6,REVENUE,CATHERINE WALLACE,103189
North East Lincolnshire Council,http://statistics.data.gov.uk/id/local-authority/00FC),Childrens Services,Education And Inclusion,School Improvement,Other Agencies,Other,PJ121,29/10/2021,696682,7043.4,REVENUE,FREESTON TOTS PRESCHOOL,128592
North East Lincolnshire Council,http://statistics.data.gov.uk/id/local-authority/00FC),Childrens Services,Education And Inclusion,School Improvement,Other Agencies,Other,PJ121,29/10/2021,696566,22136.4,REVENUE,FIRST STEPS GRIMSBY LIMITED,101411
North East Lincolnshire Council,http://statistics.data.gov.uk/id/local-authority/00FC),Childrens Services,Education And Inclusion,School Improvement,Other Agencies,Other,PJ121,29/10/2021,696662,2322,REVENUE,FIRST STEPS WITH SURE START,126658
North East Lincolnshire Council,http://statistics.data.gov.uk/id/local-authority/00FC),Childrens Services,Education And Inclusion,School Improvement,Other Agencies,Other,PJ121,29/10/2021,696733,270.9,REVENUE,KEIRA GILBERT,146127
North East Lincolnshire Council,http://statistics.data.gov.uk/id/local-authority/00FC),Childrens Services,Education And Inclusion,School Improvement,Other Agencies,Other,PJ121,29/10/2021,696624,3405.6,REVENUE,HUMBERSTON PRE SCHOOL,114491
North East Lincolnshire Council,http://statistics.data.gov.uk/id/local-authority/00FC),Childrens Services,Education And Inclusion,School Improvement,Other Agencies,Other,PJ121,29/10/2021,696542,1896.3,REVENUE,FOR UNDER FIVES LTD,100647
North East Lincolnshire Council,http://statistics.data.gov.uk/id/local-authority/00FC),Childrens Services,Education And Inclusion,School Improvement,Other Agencies,Other,PJ121,29/10/2021,696678,541.8,REVENUE,ELLIE TOTS CHILDMINDING SERVICES,128251
North East Lincolnshire Council,http://statistics.data.gov.uk/id/local-authority/00FC),Childrens Services,Education And Inclusion,School Improvement,Other Agencies,Other,PJ121,29/10/2021,696577,9306.06,REVENUE,CLEETHORPES CHILDCARE,101591
North East Lincolnshire Council,http://statistics.data.gov.uk/id/local-authority/00FC),Childrens Services,Education And Inclusion,School Improvement,Other Agencies,Other,PJ121,29/10/2021,696627,812.7,REVENUE,HUMBERSTON PRE SCHOOL,114491
North East Lincolnshire Council,http://statistics.data.gov.uk/id/local-authority/00FC),Childrens Services,Education And Inclusion,School Improvement,Other Agencies,Other,PJ121,29/10/2021,696654,5108.4,REVENUE,IMMINGHAM DAY CARE,122312
North East Lincolnshire Council,http://statistics.data.gov.uk/id/local-authority/00FC),Childrens Services,Education And Inclusion,School Improvement,Other Agencies,Other,PJ121,29/10/2021,696552,4063.5,REVENUE,IMMINGHAM DAY NURSERY,100998
North East Lincolnshire Council,http://statistics.data.gov.uk/id/local-authority/00FC),Childrens Services,Education And Inclusion,School Improvement,Other Agencies,Other,PJ121,29/10/2021,696701,270.9,REVENUE,JULIE MOORE CHILDMINDING,134452
North East Lincolnshire Council,http://statistics.data.gov.uk/id/local-authority/00FC),Childrens Services,Education And Inclusion,School Improvement,Other Agencies,Other,PJ121,29/10/2021,696545,6772.5,REVENUE,JUDY CLARK CHILD CARE,100939
North East Lincolnshire Council,http://statistics.data.gov.uk/id/local-authority/00FC),Childrens Services,Education And Inclusion,School Improvement,Other Agencies,Other,PJ121,29/10/2021,696729,1625.4,REVENUE,KELLY FLINN,144957
North East Lincolnshire Council,http://statistics.data.gov.uk/id/local-authority/00FC),Childrens Services,Education And Inclusion,School Improvement,Other Agencies,Other,PJ121,29/10/2021,696671,11377.8,REVENUE,LEAP AHEAD NURSERY,128017
North East Lincolnshire Council,http://statistics.data.gov.uk/id/local-authority/00FC),Childrens Services,Education And Inclusion,School Improvement,Other Agencies,Other,PJ121,29/10/2021,696672,5688.9,REVENUE,LEAP AHEAD NURSERY,128017
North East Lincolnshire Council,http://statistics.data.gov.uk/id/local-authority/00FC),Childrens Services,Education And Inclusion,School Improvement,Other Agencies,Other,PJ121,29/10/2021,696707,270.9,REVENUE,MRS LYNSEY CONNOLLY,140212
North East Lincolnshire Council,http://statistics.data.gov.uk/id/local-authority/00FC),Childrens Services,Education And Inclusion,School Improvement,Other Agencies,Other,PJ121,29/10/2021,696606,3867.42,REVENUE,LITTLE BLOSSOMS DAY NURSERY,111058
North East Lincolnshire Council,http://statistics.data.gov.uk/id/local-authority/00FC),Childrens Services,Education And Inclusion,School Improvement,Other Agencies,Other,PJ121,29/10/2021,696725,5820.48,REVENUE,LITTLE OAKS DAY NURSERY,144718
North East Lincolnshire Council,http://statistics.data.gov.uk/id/local-authority/00FC),Childrens Services,Education And Inclusion,School Improvement,Other Agencies,Other,PJ121,29/10/2021,696738,9030,REVENUE,TEC PARTNERSHIP - LITTLE STARS NURSERY,149044
North East Lincolnshire Council,http://statistics.data.gov.uk/id/local-authority/00FC),Childrens Services,Education And Inclusion,School Improvement,Other Agencies,Other,PJ121,29/10/2021,696651,541.8,REVENUE,LITTLE TWINKLES CHILDCARE LTD,122217
North East Lincolnshire Council,http://statistics.data.gov.uk/id/local-authority/00FC),Childrens Services,Education And Inclusion,School Improvement,Other Agencies,Other,PJ121,29/10/2021,696602,9644.04,REVENUE,LISLE MARSDEN CHILDCARE LIMITED,110493
North East Lincolnshire Council,http://statistics.data.gov.uk/id/local-authority/00FC),Childrens Services,Education And Inclusion,School Improvement,Other Agencies,Other,PJ121,29/10/2021,696699,2979.9,REVENUE,LITTLECOATES PRIMARY ACADEMY,134261
North East Lincolnshire Council,http://statistics.data.gov.uk/id/local-authority/00FC),Childrens Services,Education And Inclusion,School Improvement,Other Agencies,Other,PJ121,29/10/2021,696719,541.8,REVENUE,MIDDLETHORPE NURSERY,143658
North East Lincolnshire Council,http://statistics.data.gov.uk/id/local-authority/00FC),Childrens Services,Education And Inclusion,School Improvement,Other Agencies,Other,PJ121,29/10/2021,696639,1354.5,REVENUE,NICKY'S CHILDMINDING,119901
North East Lincolnshire Council,http://statistics.data.gov.uk/id/local-authority/00FC),Childrens Services,Education And Inclusion,School Improvement,Other Agencies,Other,PJ121,29/10/2021,696736,1083.6,REVENUE,EMMA FLORES,148270
North East Lincolnshire Council,http://statistics.data.gov.uk/id/local-authority/00FC),Childrens Services,Education And Inclusion,School Improvement,Other Agencies,Other,PJ121,29/10/2021,696714,270.9,REVENUE,MS NATASHA DYKE,141560
North East Lincolnshire Council,http://statistics.data.gov.uk/id/local-authority/00FC),Childrens Services,Education And Inclusion,School Improvement,Other Agencies,Other,PJ121,29/10/2021,696675,541.8,REVENUE,ONLY ABOUT KIDS,128121
North East Lincolnshire Council,http://statistics.data.gov.uk/id/local-authority/00FC),Childrens Services,Education And Inclusion,School Improvement,Other Agencies,Other,PJ121,29/10/2021,696727,270.9,REVENUE,LAURA SAVAGE,144810
North East Lincolnshire Council,http://statistics.data.gov.uk/id/local-authority/00FC),Childrens Services,Education And Inclusion,School Improvement,Other Agencies,Other,PJ121,29/10/2021,696617,6075.9,REVENUE,ORMISTON SOUTH PARADE ACADEMY,111750
North East Lincolnshire Council,http://statistics.data.gov.uk/id/local-authority/00FC),Childrens Services,Education And Inclusion,School Improvement,Other Agencies,Other,PJ121,29/10/2021,696569,1517.04,REVENUE,PRECIOUS TIMES CHILDCARE SERVICES,101420
North East Lincolnshire Council,http://statistics.data.gov.uk/id/local-authority/00FC),Childrens Services,Education And Inclusion,School Improvement,Other Agencies,Other,PJ121,29/10/2021,696570,10294.2,REVENUE,PRECIOUS TIMES CHILDCARE SERVICES,101420
North East Lincolnshire Council,http://statistics.data.gov.uk/id/local-authority/00FC),Childrens Services,Education And Inclusion,School Improvement,Other Agencies,Other,PJ121,29/10/2021,696551,1787.94,REVENUE,READY TEDDY GO,100973
North East Lincolnshire Council,http://statistics.data.gov.uk/id/local-authority/00FC),Childrens Services,Education And Inclusion,School Improvement,Other Agencies,Other,PJ121,29/10/2021,696540,1354.5,REVENUE,FOR UNDER FIVES LTD,100647
North East Lincolnshire Council,http://statistics.data.gov.uk/id/local-authority/00FC),Childrens Services,Education And Inclusion,School Improvement,Other Agencies,Other,PJ121,29/10/2021,696587,1354.5,REVENUE,SARAH SHOTBOLT,101742
North East Lincolnshire Council,http://statistics.data.gov.uk/id/local-authority/00FC),Childrens Services,Education And Inclusion,School Improvement,Other Agencies,Other,PJ121,29/10/2021,696644,3366.9,REVENUE,ST CHRISTOPHERS PRE SCHOOL,121589
North East Lincolnshire Council,http://statistics.data.gov.uk/id/local-authority/00FC),Childrens Services,Education And Inclusion,School Improvement,Other Agencies,Other,PJ121,29/10/2021,696546,259.29,REVENUE,ST JAMES SCHOOL,100940
North East Lincolnshire Council,http://statistics.data.gov.uk/id/local-authority/00FC),Childrens Services,Education And Inclusion,School Improvement,Other Agencies,Other,PJ121,29/10/2021,696584,2004.66,REVENUE,ST MARGARETS PRE-SCHOOL,101724
North East Lincolnshire Council,http://statistics.data.gov.uk/id/local-authority/00FC),Childrens Services,Education And Inclusion,School Improvement,Other Agencies,Other,PJ121,29/10/2021,696560,8939.7,REVENUE,ST PETERS CHILDREN CENTRE,101322
North East Lincolnshire Council,http://statistics.data.gov.uk/id/local-authority/00FC),Childrens Services,Education And Inclusion,School Improvement,Other Agencies,Other,PJ121,29/10/2021,696742,1625.4,REVENUE,THE AVENUE PRESCHOOL CIO,149253
North East Lincolnshire Council,http://statistics.data.gov.uk/id/local-authority/00FC),Childrens Services,Education And Inclusion,School Improvement,Other Agencies,Other,PJ121,29/10/2021,696563,928.8,REVENUE,MS TRACEY RICHARDS,101325
North East Lincolnshire Council,http://statistics.data.gov.uk/id/local-authority/00FC),Childrens Services,Education And Inclusion,School Improvement,Other Agencies,Other,PJ121,29/10/2021,696706,541.8,REVENUE,MRS VERITY TAYLOR-GREEN,138243
North East Lincolnshire Council,http://statistics.data.gov.uk/id/local-authority/00FC),Childrens Services,Education And Inclusion,School Improvement,Other Agencies,Other,PJ121,29/10/2021,696593,1625.4,REVENUE,WALTHAM LEAS PRE-SCHOOL,108236
North East Lincolnshire Council,http://statistics.data.gov.uk/id/local-authority/00FC),Childrens Services,Education And Inclusion,School Improvement,Other Agencies,Other,PJ121,29/10/2021,696666,1006.2,REVENUE,WELHOLME ACADEMY,127227
North East Lincolnshire Council,http://statistics.data.gov.uk/id/local-authority/00FC),Childrens Services,Education And Inclusion,School Improvement,Other Agencies,Other,PJ121,29/10/2021,696565,1769.88,REVENUE,WENDOVER PRE-SCHOOL,101350
North East Lincolnshire Council,http://statistics.data.gov.uk/id/local-authority/00FC),Childrens Services,Education And Inclusion,School Improvement,Other Agencies,Other,PJ121,29/10/2021,696590,5660.52,REVENUE,WIZ KIDZ,102424
North East Lincolnshire Council,http://statistics.data.gov.uk/id/local-authority/00FC),Childrens Services,Education And Inclusion,School Improvement,Communications And Computing,Computer H/Ware - Purchases,LF105,08/10/2021,691476,330,REVENUE,TOTAL COMPUTER NETWORKS LTD,141310
North East Lincolnshire Council,http://statistics.data.gov.uk/id/local-authority/00FC),Childrens Services,Education And Inclusion,School Improvement,Contributions To Provisions,Contributions - Other,LK103,27/10/2021,696271,2834.23,REVENUE,WIZ KIDZ,102424
North East Lincolnshire Council,http://statistics.data.gov.uk/id/local-authority/00FC),Childrens Services,Education And Inclusion,School Improvement,Contributions To Provisions,Contributions - Other,LK103,28/10/2021,696337,1231,REVENUE,CLEETHORPES CHILDCARE,101591
North East Lincolnshire Council,http://statistics.data.gov.uk/id/local-authority/00FC),Childrens Services,Education And Inclusion,School Improvement,Contributions To Provisions,Contributions - Other,LK103,28/10/2021,696337,360,REVENUE,CLEETHORPES CHILDCARE,101591
North East Lincolnshire Council,http://statistics.data.gov.uk/id/local-authority/00FC),Childrens Services,Education And Inclusion,School Improvement,Contributions To Provisions,Contributions - Other,LK103,27/10/2021,696272,418.11,REVENUE,ST PETERS CHILDREN CENTRE,101322
North East Lincolnshire Council,http://statistics.data.gov.uk/id/local-authority/00FC),Childrens Services,Education And Inclusion,School Improvement,Contributions To Provisions,Contributions - Other,LK103,28/10/2021,696339,295,REVENUE,FOR UNDER FIVES LTD,100647
North East Lincolnshire Council,http://statistics.data.gov.uk/id/local-authority/00FC),Childrens Services,Education And Inclusion,School Improvement,Contributions To Provisions,Contributions - Other,LK103,28/10/2021,696339,712.5,REVENUE,FOR UNDER FIVES LTD,100647
North East Lincolnshire Council,http://statistics.data.gov.uk/id/local-authority/00FC),Childrens Services,Education And Inclusion,School Improvement,Contributions To Provisions,Contributions - Other,LK103,28/10/2021,696336,2700,REVENUE,HUMBERSTON PRE SCHOOL,114491
North East Lincolnshire Council,http://statistics.data.gov.uk/id/local-authority/00FC),Childrens Services,Education And Inclusion,School Improvement,Contributions To Provisions,Contributions - Other,LK103,27/10/2021,696273,2109.47,REVENUE,ST CHRISTOPHERS PRE SCHOOL,121589
North East Lincolnshire Council,http://statistics.data.gov.uk/id/local-authority/00FC),Childrens Services,Education And Inclusion,School Improvement,Contributions To Provisions,Contributions - Other,LK103,12/10/2021,693482,750,REVENUE,LACEBY ACRES ACADEMY,124644
North East Lincolnshire Council,http://statistics.data.gov.uk/id/local-authority/00FC),Childrens Services,Education And Inclusion,School Improvement,Contributions To Provisions,Contributions - Other,LK103,12/10/2021,693440,750,REVENUE,YARBOROUGH ACADEMY,112852
North East Lincolnshire Council,http://statistics.data.gov.uk/id/local-authority/00FC),Childrens Services,Education And Inclusion,School Improvement,Contributions To Provisions,Contributions - Other,LK103,12/10/2021,693440,750,REVENUE,YARBOROUGH ACADEMY,112852
North East Lincolnshire Council,http://statistics.data.gov.uk/id/local-authority/00FC),Childrens Services,Education And Inclusion,School Improvement,Contributions To Provisions,Contributions - Other,LK103,12/10/2021,693482,750,REVENUE,LACEBY ACRES ACADEMY,124644
North East Lincolnshire Council,http://statistics.data.gov.uk/id/local-authority/00FC),Childrens Services,Education And Inclusion,School Improvement,Contributions To Provisions,Contributions - Other,LK103,21/10/2021,695299,750,REVENUE,ST CHRISTOPHERS PRE SCHOOL,121589
North East Lincolnshire Council,http://statistics.data.gov.uk/id/local-authority/00FC),Childrens Services,Education And Inclusion,School Improvement,Contributions To Provisions,Contributions - Other,LK103,21/10/2021,695300,750,REVENUE,WENDOVER PRE-SCHOOL,101350
North East Lincolnshire Council,http://statistics.data.gov.uk/id/local-authority/00FC),Childrens Services,Education And Inclusion,School Improvement,Contributions To Provisions,Contributions - Other,LK103,21/10/2021,695298,750,REVENUE,WIZ KIDZ,102424
North East Lincolnshire Council,http://statistics.data.gov.uk/id/local-authority/00FC),Childrens Services,Education And Inclusion,Reynolds Day Care,Energy Costs,Electricity,GB102,05/10/2021,692741,440.49,REVENUE,REYNOLDS ACADEMY,122175
North East Lincolnshire Council,http://statistics.data.gov.uk/id/local-authority/00FC),Childrens Services,Safer And Partnerships,Young And Safe,Voluntary Associations,Third Pp - Third Sector,PF101,28/10/2021,696241,16125,REVENUE,THE BLUE DOOR,146428
North East Lincolnshire Council,http://statistics.data.gov.uk/id/local-authority/00FC),Childrens Services,Safer And Partnerships,Young And Safe,Private Contractors,Third Party Prov - Private,PH101,22/10/2021,694752,2000,REVENUE,THE MADDOCKS CONSULTANCY LTD,148498
North East Lincolnshire Council,http://statistics.data.gov.uk/id/local-authority/00FC),Childrens Services,Safer And Partnerships,Young And Safe,Indirect Employee Expenses,Staff Training,EB122,13/10/2021,693866,255,REVENUE,NUCO TRAINING LTD,112495
North East Lincolnshire Council,http://statistics.data.gov.uk/id/local-authority/00FC),Childrens Services,Safer And Partnerships,Young And Safe,Indirect Employee Expenses,Staff Training,EB122,13/10/2021,693866,255,REVENUE,NUCO TRAINING LTD,112495
North East Lincolnshire Council,http://statistics.data.gov.uk/id/local-authority/00FC),Childrens Services,Safer And Partnerships,Young And Safe,Equip / Furniture / Materials,Equipment - Purchase,LA101,12/10/2021,693867,3000,REVENUE,WEST MARSH DEVELOPMENT TRUST,105846
North East Lincolnshire Council,http://statistics.data.gov.uk/id/local-authority/00FC),Childrens Services,Safer And Partnerships,Young And Safe,Equip / Furniture / Materials,Equipment - Purchase,LA101,12/10/2021,693873,402.19,REVENUE,FUSION BOXING FIT,131192
North East Lincolnshire Council,http://statistics.data.gov.uk/id/local-authority/00FC),Childrens Services,Safer And Partnerships,Young And Safe,Miscellaneous Expenses,Activities - Service Users,LL114,12/10/2021,693868,450,REVENUE,WEST MARSH DEVELOPMENT TRUST,105846
North East Lincolnshire Council,http://statistics.data.gov.uk/id/local-authority/00FC),Childrens Services,Safer And Partnerships,Young And Safe,Voluntary Associations,Third Pp - Third Sector,PF101,12/10/2021,693869,1800,REVENUE,IAN COXAN,103410
North East Lincolnshire Council,http://statistics.data.gov.uk/id/local-authority/00FC),Childrens Services,Safer And Partnerships,Young And Safe,Equip / Furniture / Materials,Equipment - Purchase,LA101,04/10/2021,687553,7230.6,REVENUE,VISUAL MANAGEMENT SYSTEMS LTD,148926
North East Lincolnshire Council,http://statistics.data.gov.uk/id/local-authority/00FC),Childrens Services,Safer And Partnerships,Child Safeguarding Review Serv,Direct Employee Expenses,Agency Staff,EA105,05/10/2021,692227,1593,REVENUE,ATTENTI CONSULTING,146503
North East Lincolnshire Council,http://statistics.data.gov.uk/id/local-authority/00FC),Childrens Services,Safer And Partnerships,Child Safeguarding Review Serv,Direct Employee Expenses,Agency Staff,EA105,12/10/2021,693168,1964.7,REVENUE,ATTENTI CONSULTING,146503
North East Lincolnshire Council,http://statistics.data.gov.uk/id/local-authority/00FC),Childrens Services,Safer And Partnerships,Child Safeguarding Review Serv,Direct Employee Expenses,Agency Staff,EA105,18/10/2021,694813,1964.7,REVENUE,ATTENTI CONSULTING,146503
North East Lincolnshire Council,http://statistics.data.gov.uk/id/local-authority/00FC),Childrens Services,Safer And Partnerships,Child Safeguarding Review Serv,Direct Employee Expenses,Agency Staff,EA105,19/10/2021,695201,2507.5,REVENUE,ATTENTI CONSULTING,146503
North East Lincolnshire Council,http://statistics.data.gov.uk/id/local-authority/00FC),Childrens Services,Safer And Partnerships,Child Safeguarding Review Serv,Direct Employee Expenses,Agency Staff,EA105,19/10/2021,695202,2507.5,REVENUE,ATTENTI CONSULTING,146503
North East Lincolnshire Council,http://statistics.data.gov.uk/id/local-authority/00FC),Childrens Services,Safer And Partnerships,Child Safeguarding Review Serv,Direct Employee Expenses,Agency Staff,EA105,25/10/2021,695659,2507.5,REVENUE,ATTENTI CONSULTING,146503
North East Lincolnshire Council,http://statistics.data.gov.uk/id/local-authority/00FC),Childrens Services,Safer And Partnerships,Ass Dir - Safer,Direct Employee Expenses,Agency Staff,EA105,18/10/2021,692228,2950,REVENUE,ATTENTI CONSULTING,146503
North East Lincolnshire Council,http://statistics.data.gov.uk/id/local-authority/00FC),Childrens Services,Safer And Partnerships,Ass Dir - Safer,Direct Employee Expenses,Agency Staff,EA105,18/10/2021,693170,2950,REVENUE,ATTENTI CONSULTING,146503
North East Lincolnshire Council,http://statistics.data.gov.uk/id/local-authority/00FC),Childrens Services,Safer And Partnerships,Ass Dir - Safer,Direct Employee Expenses,Agency Staff,EA105,19/10/2021,694416,2950,REVENUE,ATTENTI CONSULTING,146503
North East Lincolnshire Council,http://statistics.data.gov.uk/id/local-authority/00FC),Childrens Services,Childrens Trust,Palliative / Complex Care,Private Contractors,Third Party Prov - Private,PH101,01/10/2021,692497,2975.66,REVENUE,AK PAYROLL SERVICES LTD,145106
North East Lincolnshire Council,http://statistics.data.gov.uk/id/local-authority/00FC),Childrens Services,Childrens Trust,Palliative / Complex Care,Private Contractors,Third Party Prov - Private,PH101,01/10/2021,692496,265.9,REVENUE,AK PAYROLL SERVICES LTD,145107
North East Lincolnshire Council,http://statistics.data.gov.uk/id/local-authority/00FC),Childrens Services,Childrens Trust,Palliative / Complex Care,Private Contractors,Third Party Prov - Private,PH101,01/10/2021,692495,966.7,REVENUE,AK PAYROLL SERVICES LTD,145113
North East Lincolnshire Council,http://statistics.data.gov.uk/id/local-authority/00FC),Childrens Services,Childrens Trust,Palliative / Complex Care,Private Contractors,Third Party Prov - Private,PH101,01/10/2021,692494,1901.1,REVENUE,AK PAYROLL SERVICES LTD,145112
North East Lincolnshire Council,http://statistics.data.gov.uk/id/local-authority/00FC),Childrens Services,Childrens Trust,Palliative / Complex Care,Private Contractors,Third Party Prov - Private,PH101,01/10/2021,692493,990.06,REVENUE,AK PAYROLL SERVICES LTD,145109
North East Lincolnshire Council,http://statistics.data.gov.uk/id/local-authority/00FC),Childrens Services,Childrens Trust,Palliative / Complex Care,Private Contractors,Third Party Prov - Private,PH101,11/10/2021,693426,1254,REVENUE,APOLLO HOME HEALTHCARE LIMITED,138437
North East Lincolnshire Council,http://statistics.data.gov.uk/id/local-authority/00FC),Childrens Services,Childrens Trust,Palliative / Complex Care,Private Contractors,Third Party Prov - Private,PH101,11/10/2021,693759,988,REVENUE,APOLLO HOME HEALTHCARE LIMITED,138437
North East Lincolnshire Council,http://statistics.data.gov.uk/id/local-authority/00FC),Childrens Services,Childrens Trust,Palliative / Complex Care,Private Contractors,Third Party Prov - Private,PH101,18/10/2021,694798,760,REVENUE,APOLLO HOME HEALTHCARE LIMITED,138437
North East Lincolnshire Council,http://statistics.data.gov.uk/id/local-authority/00FC),Childrens Services,Childrens Trust,Childrens Mental & Emot Health,Health Authorities,Third Pp - Health Auth,PD101,12/10/2021,693825,700,REVENUE,FORTIS THERAPY & TRAINING,120445
North East Lincolnshire Council,http://statistics.data.gov.uk/id/local-authority/00FC),Childrens Services,Childrens Trust,Childrens Mental & Emot Health,Health Authorities,Third Pp - Health Auth,PD101,21/10/2021,695350,1712,REVENUE,NHS NORTH EAST LINCOLNSHIRE CCG,121549
North East Lincolnshire Council,http://statistics.data.gov.uk/id/local-authority/00FC),Childrens Services,Childrens Trust,Childrens Mental & Emot Health,Health Authorities,Third Pp - Health Auth,PD101,25/10/2021,695367,300,REVENUE,FORTIS THERAPY & TRAINING,120445
North East Lincolnshire Council,http://statistics.data.gov.uk/id/local-authority/00FC),Childrens Services,Childrens Trust,Childrens Mental & Emot Health,Health Authorities,Third Pp - Health Auth,PD101,25/10/2021,695366,400,REVENUE,FORTIS THERAPY & TRAINING,120445
North East Lincolnshire Council,http://statistics.data.gov.uk/id/local-authority/00FC),Childrens Services,Childrens Trust,Childrens Mental & Emot Health,Health Authorities,Third Pp - Health Auth,PD101,21/10/2021,695304,500,REVENUE,FORTIS THERAPY & TRAINING,120445
North East Lincolnshire Council,http://statistics.data.gov.uk/id/local-authority/00FC),Childrens Services,Childrens Trust,Childrens Mental & Emot Health,Health Authorities,Third Pp - Health Auth,PD101,25/10/2021,695369,270,REVENUE,THE PURPLE HOUSE CLINIC,140915
North East Lincolnshire Council,http://statistics.data.gov.uk/id/local-authority/00FC),Childrens Services,Childrens Trust,Childrens Mental & Emot Health,Health Authorities,Third Pp - Health Auth,PD101,25/10/2021,695368,675,REVENUE,THE PURPLE HOUSE CLINIC,140915
North East Lincolnshire Council,http://statistics.data.gov.uk/id/local-authority/00FC),Childrens Services,Childrens Trust,Childrens Mental & Emot Health,Health Authorities,Third Pp - Health Auth,PD101,28/10/2021,696498,500,REVENUE,TIME TO LISTEN LIMITED,140435
North East Lincolnshire Council,http://statistics.data.gov.uk/id/local-authority/00FC),Childrens Services,Childrens Trust,Childrens Mental & Emot Health,Private Contractors,Contract Payments,PH105,11/10/2021,693521,248705.75,REVENUE,LINCOLNSHIRE PARTNERSHIP NHS FOUNDATION TRUST,105021
North East Lincolnshire Council,http://statistics.data.gov.uk/id/local-authority/00FC),Childrens Services,Childrens Trust,Childrens Mental & Emot Health,Other Agencies,Top Up,PJ123,12/10/2021,693524,13799.91,REVENUE,LINCOLNSHIRE PARTNERSHIP NHS FOUNDATION TRUST,105021
North East Lincolnshire Council,http://statistics.data.gov.uk/id/local-authority/00FC),Childrens Services,Childrens Trust,Childrens Mental & Emot Health,Health Authorities,Third Pp - Health Auth,PD101,05/10/2021,692655,12172.17,REVENUE,NHS NORTH EAST LINCOLNSHIRE CCG,121549
North East Lincolnshire Council,http://statistics.data.gov.uk/id/local-authority/00FC),Childrens Services,Childrens Trust,Childrens Mental & Emot Health,Health Authorities,Third Pp - Health Auth,PD101,13/10/2021,691805,3326.07,REVENUE,NHS NORTH EAST LINCOLNSHIRE CCG,121549
North East Lincolnshire Council,http://statistics.data.gov.uk/id/local-authority/00FC),Childrens Services,Childrens Trust,Childrens Mental & Emot Health,Health Authorities,Third Pp - Health Auth,PD101,04/10/2021,692686,13361.06,REVENUE,NHS NORTH EAST LINCOLNSHIRE CCG,121549
North East Lincolnshire Council,http://statistics.data.gov.uk/id/local-authority/00FC),Childrens Services,Childrens Trust,Childrens Mental & Emot Health,Health Authorities,Third Pp - Health Auth,PD101,19/10/2021,694366,2640.59,REVENUE,NHS NORTH EAST LINCOLNSHIRE CCG,121549
North East Lincolnshire Council,http://statistics.data.gov.uk/id/local-authority/00FC),Childrens Services,Childrens Trust,Childrens Mental & Emot Health,Private Contractors,Contract Payments,PH105,14/10/2021,694289,90689.5,REVENUE,COMPASS SERVICES TO IMPROVE HEALTH,145810
North East Lincolnshire Council,http://statistics.data.gov.uk/id/local-authority/00FC),Childrens Services,Childrens Trust,Childrens Mental & Emot Health,Private Contractors,Contract Payments,PH105,28/10/2021,696381,90689.5,REVENUE,COMPASS SERVICES TO IMPROVE HEALTH,145810
North East Lincolnshire Council,http://statistics.data.gov.uk/id/local-authority/00FC),Childrens Services,Childrens Trust,Childrens Mental & Emot Health,Private Contractors,Contract Payments,PH105,19/10/2021,695261,150394.4,REVENUE,COMPASS SERVICES TO IMPROVE HEALTH,145810
North East Lincolnshire Council,http://statistics.data.gov.uk/id/local-authority/00FC),Childrens Services,Childrens Trust,Childrens Mental & Emot Health,Private Contractors,Contract Payments,PH105,19/10/2021,695260,42510.6,REVENUE,COMPASS SERVICES TO IMPROVE HEALTH,145810
North East Lincolnshire Council,http://statistics.data.gov.uk/id/local-authority/00FC),Childrens Services,Director - Children / Fam Serv,Director Children & Fam Serv,Private Contractors,Contract Payments,PH105,18/10/2021,694744,825,REVENUE,SIGNIS LTD,145139
North East Lincolnshire Council,http://statistics.data.gov.uk/id/local-authority/00FC),Childrens Services,Director - Children / Fam Serv,Director Children & Fam Serv,Private Contractors,Contract Payments,PH105,18/10/2021,694745,2291.66,REVENUE,SIGNIS LTD,145139
North East Lincolnshire Council,http://statistics.data.gov.uk/id/local-authority/00FC),Childrens Services,Director - Children / Fam Serv,Director Children & Fam Serv,Private Contractors,Third Party Prov - Private,PH101,07/10/2021,693208,4900,REVENUE,MA EDUCATION LTD,105566
